Local authority department which incurred the expenditure,Service Division,Cost Centre,Summary of the Purpose of Expenditure,Expense Type,Expense Code,Detailed Expense Type,Date of Transaction,Transaction Number,Beneficiary,Merchant Category Number,Merchant Category,Gross Amount,VAT,Net Amount
Resources,Financial Services,65180,Collections,Supplies and Services,338045,Services,01-Feb-17,5713349077,HMCOURT-SERVICES.G,9222,Legal expenses,110,0,110
Regeneration and Local Services,Direct Services,10301,C&G - North Grounds Maintenance,Supplies and Services,304259,Equipment and Materials,01-Feb-17,5713349095,TRAVIS PERKINS,5211,Equipment-purchase and rental,20.7,3.45,17.25
Dedicated Schools Grant,Dedicated Schools Grant,79052,Part Sighted-Belmont Comp,Supplies and Services,384999,Miscellaneous Expenses,01-Feb-17,5713349187,LogickeyboardBsp Euro,5734,Other expenses,193.44,0,193.44
Children and Young Peoples Services,Childrens Services,85957,Secure Management,Supplies and Services,328041,Clothing Uniforms and Laundry,01-Feb-17,5713349243,WWW.FOOTASYLUM.COM,5941,Clothing uniforms and laundry,28.94,0,28.94
Children and Young Peoples Services,Childrens Services,85957,Secure Management,Supplies and Services,324117,Provisions,01-Feb-17,5713349245,TESCO STORES 6329,5411,Catering costs - provisions,56.48,0,56.48
Children and Young Peoples Services,Childrens Services,85957,Secure Management,Supplies and Services,328041,Clothing Uniforms and Laundry,01-Feb-17,5713349247,NEXT DIRECTORY,5651,Clothing uniforms and laundry,69.99,0,69.99
Children and Young Peoples Services,Childrens Services,85957,Secure Management,Supplies and Services,328041,Clothing Uniforms and Laundry,01-Feb-17,5713349253,VERY.CO.UK,5964,Clothing uniforms and laundry,45,0,45
Children and Young Peoples Services,Childrens Services,85957,Secure Management,Supplies and Services,328041,Clothing Uniforms and Laundry,01-Feb-17,5713349255,VERY.CO.UK,5964,Clothing uniforms and laundry,7.99,0,7.99
Children and Young Peoples Services,Childrens Services,85957,Secure Management,Supplies and Services,328041,Clothing Uniforms and Laundry,01-Feb-17,5713349259,VERY.CO.UK,5964,Clothing uniforms and laundry,3.99,0,3.99
Resources,Financial Services,52865,SF-Financial Services Team,Supplies and Services,304259,Equipment and Materials,01-Feb-17,5713349317,WILKO RETAIL LIMIT,5722,Equipment-purchase and rental,12.3,0,12.3
Children and Young Peoples Services,Childrens Services,71440,Barnard Castle One Point Hub,Supplies and Services,312011,Newspapers Books and Periodicals,01-Feb-17,5713349399,Amazon UK Marketplace,5942,Books-school library,27.06,0,27.06
Children and Young Peoples Services,Childrens Services,71440,Barnard Castle One Point Hub,Supplies and Services,304403,Equipment and Materials,01-Feb-17,5713349405,AMAZON UK RETAIL AMAZO,5999,Other consumables,13.36,0,13.36
Children and Young Peoples Services,Childrens Services,71440,Barnard Castle One Point Hub,Supplies and Services,304403,Equipment and Materials,01-Feb-17,5713349411,AMAZON UK RETAIL AMAZO,5999,Other consumables,11.69,0,11.69
Regeneration and Local Services,Direct Services,21242,Catering - County Hall,Supplies and Services,324117,Provisions,01-Feb-17,5713349425,JR HOLLAND FOODSERVICE,5422,Catering costs - provisions,102.13,0,102.13
Regeneration and Local Services,Direct Services,21242,Catering - County Hall,Supplies and Services,324117,Provisions,01-Feb-17,5713349433,JR HOLLAND FOODSERVICE,5422,Catering costs - provisions,31.35,0,31.35
Regeneration and Local Services,Direct Services,21242,Catering - County Hall,Supplies and Services,324117,Provisions,01-Feb-17,5713349437,JR HOLLAND FOODSERVICE,5422,Catering costs - provisions,23.42,0,23.42
Regeneration and Local Services,Direct Services,21242,Catering - County Hall,Supplies and Services,324117,Provisions,01-Feb-17,5713349441,BRAKE BROS LTD,5811,Catering costs - provisions,347.52,57.92,289.6
Regeneration and Local Services,Direct Services,21242,Catering - County Hall,Supplies and Services,324117,Provisions,01-Feb-17,000005713349441 - 1,BRAKE BROS LTD,5811,Catering costs - provisions,454.03,,454.03
Children and Young Peoples Services,Childrens Services,85361,LAC & Permanence Team 1,Supplies and Services,304259,Equipment and Materials,01-Feb-17,5713349617,GRO HM PASSPORT OFFICE,9399,Equipment-purchase and rental,27.75,0,27.75
Regeneration and Local Services,Culture & Sport,11060,Hardwick Park Catering,Supplies and Services,324117,Provisions,01-Feb-17,5713349815,JR HOLLAND FOODSERVICE,5422,Catering costs - provisions,89.92,0,89.92
Regeneration and Local Services,Culture & Sport,11060,Hardwick Park Catering,Supplies and Services,324117,Provisions,01-Feb-17,5713349837,JR HOLLAND FOODSERVICE,5422,Catering costs - provisions,36.22,0,36.22
Regeneration and Local Services,Culture & Sport,11060,Hardwick Park Catering,Supplies and Services,324117,Provisions,01-Feb-17,5713349851,BRAKE BROS LTD,5811,Catering costs - provisions,44.04,7.34,36.7
Regeneration and Local Services,Culture & Sport,11060,Hardwick Park Catering,Supplies and Services,324117,Provisions,01-Feb-17,000005713349851 - 1,BRAKE BROS LTD,5811,Catering costs - provisions,101.63,,101.63
Regeneration and Local Services,Culture & Sport,11060,Hardwick Park Catering,Supplies and Services,324117,Provisions,01-Feb-17,5713349883,BRAKE BROS LTD,5811,Catering costs - provisions,44.44,0,44.44
Resources,I.C.T. Services,65335,Operations - System & Repairs Trading,Supplies and Services,304639,Equipment and Materials,01-Feb-17,5713349939,Amazon UK Marketplace,5942,Technicians-supplies,19.98,0,19.98
Regeneration and Local Services,Culture & Sport,54815,Gala Theatre Stage School,Supplies and Services,304259,Equipment and Materials,01-Feb-17,5713349961,WP-AMERITZ MUSIC L,5735,Equipment-purchase and rental,1.5,0,1.5
Adult and Health Services,Head of Adults,55302,Durham Pathways,Supplies and Services,342033,Computers and Communications,01-Feb-17,5713350095,Amazon UK Marketplace,5942,Computer hardware,51.8,0,51.8
Adult and Health Services,Planning & Service Strategy,52934,Training - Social Work - Childrens Care,Supplies and Services,312009,Newspapers Books and Periodicals,01-Feb-17,5713350099,Amazon UK Marketplace,5942,Newspapers books and periodicals,36.14,0,36.14
Adult and Health Services,Planning & Service Strategy,52934,Training - Social Work - Childrens Care,Supplies and Services,304649,Equipment and Materials,01-Feb-17,5713350103,Amazon UK Marketplace,5942,Toys,91.86,0,91.86
Adult and Health Services,Planning & Service Strategy,52934,Training - Social Work - Childrens Care,Supplies and Services,304649,Equipment and Materials,01-Feb-17,5713350109,Amazon UK Marketplace,5942,Toys,122.47,0,122.47
Adult and Health Services,Planning & Service Strategy,52934,Training - Social Work - Childrens Care,Supplies and Services,312009,Newspapers Books and Periodicals,01-Feb-17,5713350115,Amazon EU,5969,Newspapers books and periodicals,96.94,0,96.94
Adult and Health Services,EnvironmentHealth & Consumer Protection,10829,Environment Protection,Supplies and Services,338048,Services,01-Feb-17,5713350123,HMCOURTS-SERVICE.G,9222,Court Costs,20,0,20
Regeneration and Local Services,Direct Services,10525,Catering - Green Lane,Supplies and Services,324117,Provisions,01-Feb-17,5713350179,JR HOLLAND FOODSERVICE,5422,Catering costs - provisions,52.29,0,52.29
Children and Young Peoples Services,Childrens Services,85333,Coxhoe Satelite Home,Supplies and Services,324117,Provisions,01-Feb-17,5713350487,ALDI,5411,Catering costs - provisions,25.17,0,25.17
Children and Young Peoples Services,Childrens Services,85333,Coxhoe Satelite Home,Supplies and Services,324117,Provisions,01-Feb-17,5713350491,TESCO STORES 2371,5411,Catering costs - provisions,24.4,0,24.4
Children and Young Peoples Services,Childrens Services,85333,Coxhoe Satelite Home,Supplies and Services,324117,Provisions,01-Feb-17,5713350499,TESCO STORES 2371,5411,Catering costs - provisions,24.23,0,24.23
Resources,I.C.T. Services,69010,Administration,Supplies and Services,304259,Equipment and Materials,01-Feb-17,5713350607,Amazon Digital Dwnlds,5735,Equipment-purchase and rental,6.44,0,6.44
Resources,I.C.T. Services,69010,Administration,Supplies and Services,312011,Newspapers Books and Periodicals,01-Feb-17,5713350617,Amazon UK Marketplace,5942,Books-school library,3.94,0,3.94
Resources,I.C.T. Services,69010,Administration,Supplies and Services,304999,Equipment and Materials,01-Feb-17,5713350619,WWW.COUNTRYBASKETS.CO.,5193,Misc equipment tools and materials,36.98,6.16,30.82
Regeneration and Local Services,Culture & Sport,54399,Local Delivery-Libraries,Supplies and Services,312011,Newspapers Books and Periodicals,01-Feb-17,5713350727,Amazon UK Marketplace,5942,Books-school library,17.62,0,17.62
Regeneration and Local Services,Culture & Sport,54235,Bp Auckland Town Hall Cafe,Supplies and Services,324117,Provisions,01-Feb-17,5713350957,JR HOLLAND FOODSERVICE,5422,Catering costs - provisions,40.28,0,40.28
Regeneration and Local Services,Culture & Sport,54235,Bp Auckland Town Hall Cafe,Supplies and Services,324117,Provisions,01-Feb-17,5713350961,BRAKE BROS LTD,5811,Catering costs - provisions,126.95,0,126.95
Regeneration and Local Services,Transport and Contracted Services,31701,Care Connect All Localities,Supplies and Services,344033,Telephones,01-Feb-17,5713350965,BT BILL PAYMENT 2,4812,Telephones general-all costs,94.17,15.7,78.47
Regeneration and Local Services,Direct Services,21324,Catering - Meadowfield,Supplies and Services,324117,Provisions,01-Feb-17,5713351007,JR HOLLAND FOODSERVICE,5422,Catering costs - provisions,50.75,0,50.75
Regeneration and Local Services,Direct Services,21324,Catering - Meadowfield,Supplies and Services,324117,Provisions,01-Feb-17,5713351017,JR HOLLAND FOODSERVICE,5422,Catering costs - provisions,6.87,0,6.87
Regeneration and Local Services,Direct Services,21324,Catering - Meadowfield,Supplies and Services,324117,Provisions,01-Feb-17,5713351023,BRAKE BROS LTD,5811,Catering costs - provisions,164.4,27.4,137
Regeneration and Local Services,Direct Services,21324,Catering - Meadowfield,Supplies and Services,324117,Provisions,01-Feb-17,000005713351023 - 1,BRAKE BROS LTD,5811,Catering costs - provisions,59.64,,59.64
Regeneration and Local Services,Culture & Sport,11191,Wellbeing4Life,Supplies and Services,324117,Provisions,01-Feb-17,5713351201,SAINSBURYS SACAT 0776,5411,Catering costs - provisions,28.44,0,28.44
Regeneration and Local Services,Culture & Sport,10605,Woodhouse Close Leisure Complex,Supplies and Services,324117,Provisions,01-Feb-17,5713351337,JR HOLLAND FOODSERVICE,5422,Catering costs - provisions,44.46,0,44.46
Regeneration and Local Services,Spatial Policy Planning Assets & Environment,31200,North Pennines Core,Supplies and Services,384999,Miscellaneous Expenses,01-Feb-17,5713351399,THE RABY ESTATES,5970,Other expenses,68,0,68
Regeneration and Local Services,Spatial Policy Planning Assets & Environment,31200,North Pennines Core,Supplies and Services,324117,Provisions,01-Feb-17,5713351405,SCOTMID CO-OP STANHOPE,5411,Catering costs - provisions,4.88,0,4.88
Children and Young Peoples Services,Childrens Services,85957,Secure Management,Supplies and Services,328041,Clothing Uniforms and Laundry,01-Feb-17,5717974651,WWW.TOPSHOP.COM,5691,Clothing uniforms and laundry,26,0,26
Resources,I.C.T. Services,69010,Administration,Supplies and Services,324117,Provisions,01-Feb-17,5717975001,LIGHT/MINI IN THE BOX,5399,Catering costs - provisions,111.46,0,111.46
Children and Young Peoples Services,Childrens Services,88011,Seaham Locality,Supplies and Services,384956,Miscellaneous Expenses,01-Feb-17,5717975177,TVLICENSING.CO.UK,7392,Licences,145.5,0,145.5
Children and Young Peoples Services,Childrens Services,85957,Secure Management,Supplies and Services,328041,Clothing Uniforms and Laundry,01-Feb-17,5754789131,NEXT DIRECTORY,5651,Clothing uniforms and laundry,-41.01,0,-41.01
Children and Young Peoples Services,Education,71801,Selby Cottage Childcare Centre,Supplies and Services,324117,Provisions,02-Feb-17,5717974609,TESCO STORES 2278,5411,Catering costs - provisions,19.3,0,19.3
Children and Young Peoples Services,Childrens Services,85957,Secure Management,Supplies and Services,324117,Provisions,02-Feb-17,5717974649,TESCO STORES 6329,5411,Catering costs - provisions,105.81,0,105.81
Regeneration and Local Services,Economic Development and Housing,30699,Business Growth and Innovation General,Supplies and Services,336005,Advertising,02-Feb-17,5717974701,ADROLL,7311,Advertising other than for staff,2.06,0,2.06
Regeneration and Local Services,Economic Development and Housing,30699,Business Growth and Innovation General,Supplies and Services,304403,Equipment and Materials,02-Feb-17,5717974705,ADOBE CREATIVE CLOUD,5734,Other consumables,45.73,7.62,38.11
Regeneration and Local Services,Economic Development and Housing,30699,Business Growth and Innovation General,Supplies and Services,312011,Newspapers Books and Periodicals,02-Feb-17,5717974707,FASTHOSTS INTERNET,4816,Books-school library,59.99,10,49.99
Adult and Health Services,Planning & Service Strategy,52953,Training - Social Work,Supplies and Services,312009,Newspapers Books and Periodicals,02-Feb-17,5717974717,AMAZON UK RETAIL AMAZO,5999,Newspapers books and periodicals,14.99,0,14.99
Regeneration and Local Services,Direct Services,21242,Catering - County Hall,Supplies and Services,324117,Provisions,02-Feb-17,5717974729,JR HOLLAND FOODSERVICE,5422,Catering costs - provisions,88.38,0,88.38
Regeneration and Local Services,Direct Services,21242,Catering - County Hall,Supplies and Services,324117,Provisions,02-Feb-17,5717974731,JR HOLLAND FOODSERVICE,5422,Catering costs - provisions,13.16,0,13.16
Regeneration and Local Services,Direct Services,21242,Catering - County Hall,Supplies and Services,324117,Provisions,02-Feb-17,5717974733,BRAKE BROS LTD,5811,Catering costs - provisions,399.11,0,399.11
Regeneration and Local Services,Culture & Sport,54812,Gala Theatre - Catering etc,Supplies and Services,324117,Provisions,02-Feb-17,5717974743,JR HOLLAND FOODSERVICE,5422,Catering costs - provisions,66.67,0,66.67
Children and Young Peoples Services,Childrens Services,85361,LAC & Permanence Team 1,Supplies and Services,304259,Equipment and Materials,02-Feb-17,5717974769,GRO HM PASSPORT OFFICE,9399,Equipment-purchase and rental,9.25,0,9.25
Regeneration and Local Services,Culture & Sport,11219,Office Services,Supplies and Services,304999,Equipment and Materials,02-Feb-17,5717974777,GOOGLE ADWS2420292471,5968,Misc equipment tools and materials,15.72,0,15.72
Regeneration and Local Services,Culture & Sport,11219,Office Services,Third Party Payments,430100,Rendered by Private Contractors,02-Feb-17,5717974781,MAILCHIMP,7399,Payments to sub-contractors,44.29,0,44.29
Children and Young Peoples Services,Childrens Services,88063,Bishop Auckland 0 - 5,Supplies and Services,324117,Provisions,02-Feb-17,5717974795,ASDA STORES,5411,Catering costs - provisions,4.7,0,4.7
Children and Young Peoples Services,Education,71732,Dean Bank Childcare,Supplies and Services,328041,Clothing Uniforms and Laundry,02-Feb-17,5717974799,W BOYES & CO LTD BISHO,5310,Clothing uniforms and laundry,10.51,0,10.51
Children and Young Peoples Services,Education,71732,Dean Bank Childcare,Supplies and Services,328041,Clothing Uniforms and Laundry,02-Feb-17,5717974803,POUNDLAND LTD 1390,5310,Clothing uniforms and laundry,30.2,0,30.2
Children and Young Peoples Services,Education,71732,Dean Bank Childcare,Supplies and Services,328041,Clothing Uniforms and Laundry,02-Feb-17,5717974805,POUNDWORLD RETAIL,5310,Clothing uniforms and laundry,7,0,7
Regeneration and Local Services,Economic Development and Housing,30737,Durham Works Flexible Fund,Supplies and Services,304245,Equipment and Materials,02-Feb-17,5717974821,SCREWFIX DIRECT,5211,Materials,24.99,0,24.99
Children and Young Peoples Services,Childrens Services,85965,Barnard,Supplies and Services,304649,Equipment and Materials,02-Feb-17,5717974829,"Amazon Svcs Europe,SAR",5942,Toys,59.93,0,59.93
Children and Young Peoples Services,Childrens Services,85965,Barnard,Supplies and Services,304649,Equipment and Materials,02-Feb-17,5717974831,Amazon UK Marketplace,5942,Toys,1.89,0,1.89
Children and Young Peoples Services,Childrens Services,85952,Secure Education,Supplies and Services,384999,Miscellaneous Expenses,02-Feb-17,5717974833,Amazon UK Marketplace,5942,Other expenses,6.45,0,6.45
Children and Young Peoples Services,Childrens Services,85957,Secure Management,Supplies and Services,328041,Clothing Uniforms and Laundry,02-Feb-17,5717974837,M and M Direct Ltd,5941,Clothing uniforms and laundry,19.99,0,19.99
Children and Young Peoples Services,Childrens Services,85952,Secure Education,Supplies and Services,384999,Miscellaneous Expenses,02-Feb-17,5717974839,WWW.THETORTOISESHOP.CO,5995,Other expenses,16.99,0,16.99
Children and Young Peoples Services,Childrens Services,85952,Secure Education,Supplies and Services,304259,Equipment and Materials,02-Feb-17,5717974843,WWW.GAK.CO.UK,5733,Equipment-purchase and rental,32.44,0,32.44
Children and Young Peoples Services,Childrens Services,85957,Secure Management,Supplies and Services,328041,Clothing Uniforms and Laundry,02-Feb-17,5717974845,VERY.CO.UK,5964,Clothing uniforms and laundry,45,0,45
Children and Young Peoples Services,Childrens Services,85957,Secure Management,Supplies and Services,328041,Clothing Uniforms and Laundry,02-Feb-17,5717974847,VERY.CO.UK,5964,Clothing uniforms and laundry,45,0,45
Children and Young Peoples Services,Childrens Services,85957,Secure Management,Supplies and Services,328041,Clothing Uniforms and Laundry,02-Feb-17,5717974851,VERY.CO.UK,5964,Clothing uniforms and laundry,3.99,0,3.99
Children and Young Peoples Services,Childrens Services,88063,Bishop Auckland 0 - 5,Supplies and Services,324117,Provisions,02-Feb-17,5717974919,ASDA STORES,5411,Catering costs - provisions,17.63,0,17.63
Regeneration and Local Services,Direct Services,20082,Bldg Serv - R&M Div 82- Lifts,Supplies and Services,384999,Miscellaneous Expenses,02-Feb-17,5717974957,NEWCASTLE CITY COUNCIL,4789,Other expenses,250.92,0,250.92
Children and Young Peoples Services,Childrens Services,88043,Consett 0 - 5,Supplies and Services,312011,Newspapers Books and Periodicals,02-Feb-17,5717974967,Amazon UK Marketplace,5942,Books-school library,20.97,0,20.97
Resources,I.C.T. Services,69010,Administration,Supplies and Services,312011,Newspapers Books and Periodicals,02-Feb-17,5717974975,Amazon UK Marketplace,5942,Books-school library,75,0,75
Resources,I.C.T. Services,69010,Administration,Supplies and Services,312011,Newspapers Books and Periodicals,02-Feb-17,5717974979,Amazon UK Marketplace,5942,Books-school library,74.55,0,74.55
Resources,I.C.T. Services,69010,Administration,Supplies and Services,312011,Newspapers Books and Periodicals,02-Feb-17,5717974983,"Amazon Svcs Europe,SAR",5942,Books-school library,12.99,0,12.99
Resources,I.C.T. Services,69010,Administration,Supplies and Services,312011,Newspapers Books and Periodicals,02-Feb-17,5717974987,Amazon UK Marketplace,5942,Books-school library,23.2,0,23.2
Resources,I.C.T. Services,69010,Administration,Supplies and Services,312011,Newspapers Books and Periodicals,02-Feb-17,5717974991,Amazon UK Marketplace,5942,Books-school library,38.3,0,38.3
Resources,I.C.T. Services,69010,Administration,Supplies and Services,312011,Newspapers Books and Periodicals,02-Feb-17,5717974993,Amazon UK Marketplace,5942,Books-school library,41.25,0,41.25
Resources,I.C.T. Services,69010,Administration,Supplies and Services,312011,Newspapers Books and Periodicals,02-Feb-17,5717974995,Amazon UK Marketplace,5942,Books-school library,55.93,0,55.93
Resources,I.C.T. Services,69010,Administration,Supplies and Services,312011,Newspapers Books and Periodicals,02-Feb-17,5717974999,Amazon UK Marketplace,5942,Books-school library,20.97,0,20.97
Resources,I.C.T. Services,69010,Administration,Third Party Payments,430100,Rendered by Private Contractors,02-Feb-17,5717975003,EB THINKING DIGITAL 2,7399,Payments to sub-contractors,125,0,125
Children and Young Peoples Services,Childrens Services,85333,Coxhoe Satelite Home,Supplies and Services,308011,Furniture,02-Feb-17,5717975049,IKEA LIMITED,5712,Furniture repair and replacement,117.1,0,117.1
Regeneration and Local Services,Direct Services,10301,C&G - North Grounds Maintenance,Supplies and Services,304259,Equipment and Materials,02-Feb-17,5717975053,TRAVIS PERKINS,5211,Equipment-purchase and rental,267.84,44.64,223.2
Regeneration and Local Services,Economic Development and Housing,30737,Durham Works Flexible Fund,Transport,235057,Public Transport,02-Feb-17,5717975113,WWW.SIMPLYGO.COM,4131,Staff travelling,89.6,0,89.6
Regeneration and Local Services,Culture & Sport,11060,Hardwick Park Catering,Supplies and Services,304245,Equipment and Materials,02-Feb-17,5717975129,Amazon UK Marketplace,5942,Materials,29.98,0,29.98
Regeneration and Local Services,Culture & Sport,10605,Woodhouse Close Leisure Complex,Supplies and Services,324117,Provisions,02-Feb-17,5717975133,BRAKE BROS LTD,5811,Catering costs - provisions,61.2,10.2,51
Regeneration and Local Services,Culture & Sport,10605,Woodhouse Close Leisure Complex,Supplies and Services,324117,Provisions,02-Feb-17,000005717975133 - 1,BRAKE BROS LTD,5811,Catering costs - provisions,162.91,,162.91
Regeneration and Local Services,Spatial Policy Planning Assets & Environment,31200,North Pennines Core,Supplies and Services,324117,Provisions,02-Feb-17,5717975159,SCOTMID CO-OP STANHOPE,5411,Catering costs - provisions,2.25,0,2.25
Regeneration and Local Services,Economic Development and Housing,30554,International Relations,Payments In Advance,932001,Payments in advance,02-Feb-17,5723238393,ROYAL DUTCH AIRLINES (KLM),3010,Payments in advance,357.94,0,357.94
Regeneration and Local Services,Economic Development and Housing,30554,International Relations,Payments In Advance,932001,Payments in advance,02-Feb-17,5723238395,ROYAL DUTCH AIRLINES (KLM),3010,Payments in advance,357.94,0,357.94
Regeneration and Local Services,Culture & Sport,11219,Office Services,Supplies and Services,304999,Equipment and Materials,02-Feb-17,5723238437,SURVEYMONKEY.COM,5968,Misc equipment tools and materials,300,0,300
Children and Young Peoples Services,Childrens Services,85957,Secure Management,Supplies and Services,312009,Newspapers Books and Periodicals,02-Feb-17,5723238533,AMAZON UK RETAIL AMAZO,5999,Newspapers books and periodicals,224.8,0,224.8
Resources,I.C.T. Services,69010,Administration,Supplies and Services,304403,Equipment and Materials,02-Feb-17,5723238709,AMAZON UK RETAIL AMAZO,5999,Other consumables,72.16,0,72.16
Resources,I.C.T. Services,69010,Administration,Supplies and Services,304403,Equipment and Materials,02-Feb-17,5723238713,AMAZON UK RETAIL AMAZO,5999,Other consumables,274.95,0,274.95
Resources,I.C.T. Services,69010,Administration,Supplies and Services,304403,Equipment and Materials,02-Feb-17,5723238715,AMAZON UK RETAIL AMAZO,5999,Other consumables,164.97,0,164.97
Regeneration and Local Services,Economic Development and Housing,30699,Business Growth and Innovation General,Supplies and Services,336005,Advertising,03-Feb-17,5717974711,ADROLL,7311,Advertising other than for staff,0.06,0,0.06
Children and Young Peoples Services,Childrens Services,85965,Barnard,Supplies and Services,304649,Equipment and Materials,03-Feb-17,5717974841,Amazon UK Marketplace,5942,Toys,3.11,0,3.11
Children and Young Peoples Services,Childrens Services,88043,Consett 0 - 5,Supplies and Services,312011,Newspapers Books and Periodicals,03-Feb-17,5717974971,"Amazon Svcs Europe,SAR",5942,Books-school library,14.6,0,14.6
Regeneration and Local Services,Direct Services,10383,C&G - South Street Cleansing,Supplies and Services,304999,Equipment and Materials,03-Feb-17,5723238283,NEW ROW FARM NURSERIES,5193,Misc equipment tools and materials,54.26,0,54.26
Children and Young Peoples Services,Childrens Services,85957,Secure Management,Supplies and Services,304649,Equipment and Materials,03-Feb-17,5723238287,Amazon UK Marketplace,5942,Toys,3.1,0,3.1
Children and Young Peoples Services,Childrens Services,85957,Secure Management,Supplies and Services,324117,Provisions,03-Feb-17,5723238289,TESCO STORES 6329,5411,Catering costs - provisions,79.09,13.18,65.91
Adult and Health Services,Head of Adults,51613,OP/PD Easington,Supplies and Services,332048,Printing Stationery and Gen Off Exps,03-Feb-17,5723238333,AMAZON UK RETAIL AMAZO,5999,Administrative stationery etc,19.68,0,19.68
Regeneration and Local Services,Direct Services,21242,Catering - County Hall,Supplies and Services,324117,Provisions,03-Feb-17,5723238371,JR HOLLAND FOODSERVICE,5422,Catering costs - provisions,103.11,0,103.11
Regeneration and Local Services,Direct Services,21242,Catering - County Hall,Supplies and Services,324117,Provisions,03-Feb-17,5723238375,JR HOLLAND FOODSERVICE,5422,Catering costs - provisions,13.16,0,13.16
Regeneration and Local Services,Direct Services,21242,Catering - County Hall,Supplies and Services,324117,Provisions,03-Feb-17,5723238377,JR HOLLAND FOODSERVICE,5422,Catering costs - provisions,4.76,0,4.76
Children and Young Peoples Services,Education,70169,Durham SSP,Supplies and Services,384199,Miscellaneous Expenses,03-Feb-17,5723238389,Amazon UK Marketplace,5942,Other hired and contracted services,33.99,0,33.99
Regeneration and Local Services,Economic Development and Housing,30749,Employability - Youth Contract,Employees,40149,Recruitment Instruction and Training,03-Feb-17,5723238453,www.crbdirect.org.uk-0,8999,Training-all costs,75,0,75
Children and Young Peoples Services,Education,71732,Dean Bank Childcare,Supplies and Services,324117,Provisions,03-Feb-17,5723238459,ASDA SUPERSTORE 4987,5411,Catering costs - provisions,8.53,0,8.53
Adult and Health Services,Head of Adults,55207,South & West Durham MH Support & Recovery Team,Supplies and Services,312009,Newspapers Books and Periodicals,03-Feb-17,5723238475,Amazon UK Marketplace,5942,Newspapers books and periodicals,2.81,0,2.81
Regeneration and Local Services,Technical Services,18700,Highways Services - Management and Administration,Supplies and Services,304259,Equipment and Materials,03-Feb-17,5723238481,HALFORDS ON LINE,5940,Equipment-purchase and rental,99.99,0,99.99
Children and Young Peoples Services,Childrens Services,85965,Barnard,Supplies and Services,304649,Equipment and Materials,03-Feb-17,5723238513,Amazon UK Marketplace,5942,Toys,6.49,0,6.49
Children and Young Peoples Services,Childrens Services,85965,Barnard,Supplies and Services,304649,Equipment and Materials,03-Feb-17,5723238517,Amazon UK Marketplace,5942,Toys,2.4,0,2.4
Children and Young Peoples Services,Childrens Services,85965,Barnard,Supplies and Services,304649,Equipment and Materials,03-Feb-17,5723238521,Amazon UK Marketplace,5942,Toys,1.84,0,1.84
Children and Young Peoples Services,Childrens Services,85955,Auckland,Supplies and Services,332047,Printing Stationery and Gen Off Exps,03-Feb-17,5723238525,Amazon UK Marketplace,5942,Stationery,3.98,0,3.98
Children and Young Peoples Services,Childrens Services,85952,Secure Education,Supplies and Services,304259,Equipment and Materials,03-Feb-17,5723238529,WWW.THOMANN.DE,5733,Equipment-purchase and rental,111.72,0,111.72
Regeneration and Local Services,Direct Services,10301,C&G - North Grounds Maintenance,Supplies and Services,304403,Equipment and Materials,03-Feb-17,5723238553,BESCOL,5231,Other consumables,170.72,28.45,142.27
Regeneration and Local Services,Direct Services,10301,C&G - North Grounds Maintenance,Supplies and Services,304403,Equipment and Materials,03-Feb-17,5723238555,BESCOL,5231,Other consumables,37.78,6.3,31.48
Regeneration and Local Services,Direct Services,10301,C&G - North Grounds Maintenance,Supplies and Services,312011,Newspapers Books and Periodicals,03-Feb-17,5723238557,GRALANDS WOODWORK SUPP,5251,Books-school library,34.65,0,34.65
Regeneration and Local Services,Culture & Sport,11060,Hardwick Park Catering,Supplies and Services,324117,Provisions,03-Feb-17,5723238561,JR HOLLAND FOODSERVICE,5422,Catering costs - provisions,57.23,0,57.23
Regeneration and Local Services,Culture & Sport,11060,Hardwick Park Catering,Supplies and Services,324117,Provisions,03-Feb-17,5723238565,BRAKE BROS LTD,5811,Catering costs - provisions,119.7,19.95,99.75
Regeneration and Local Services,Culture & Sport,11060,Hardwick Park Catering,Supplies and Services,324117,Provisions,03-Feb-17,000005723238565 - 1,BRAKE BROS LTD,5811,Catering costs - provisions,126.21,,126.21
Resources,I.C.T. Services,65335,Operations - System & Repairs Trading,Supplies and Services,304639,Equipment and Materials,03-Feb-17,5723238575,THE REPLACE BASE LTD,7699,Technicians-supplies,7.93,0,7.93
Regeneration and Local Services,Direct Services,21234,Catering - Locomotion,Supplies and Services,324117,Provisions,03-Feb-17,5723238587,BRAKE BROS LTD,5811,Catering costs - provisions,244.26,40.71,203.55
Regeneration and Local Services,Direct Services,21234,Catering - Locomotion,Supplies and Services,324117,Provisions,03-Feb-17,000005723238587 - 1,BRAKE BROS LTD,5811,Catering costs - provisions,47.69,,47.69
Regeneration and Local Services,Direct Services,21234,Catering - Locomotion,Supplies and Services,324117,Provisions,03-Feb-17,5723238591,BRAKE BROS LTD,5811,Catering costs - provisions,112.74,18.79,93.95
Regeneration and Local Services,Direct Services,21234,Catering - Locomotion,Supplies and Services,324117,Provisions,03-Feb-17,000005723238591 - 1,BRAKE BROS LTD,5811,Catering costs - provisions,113.23,,113.23
Regeneration and Local Services,Economic Development and Housing,31500,Housing Solutions - Core Team,Supplies and Services,384999,Miscellaneous Expenses,03-Feb-17,5723238599,WWW.GOV.UK,8999,Other expenses,10,0,10
Regeneration and Local Services,Direct Services,10525,Catering - Green Lane,Supplies and Services,324117,Provisions,03-Feb-17,5723238617,JR HOLLAND FOODSERVICE,5422,Catering costs - provisions,36.4,0,36.4
Children and Young Peoples Services,Childrens Services,85352,Tow Law CU,Supplies and Services,324117,Provisions,03-Feb-17,5723238633,WM MORRISONS,5411,Catering costs - provisions,49.3,0,49.3
Children and Young Peoples Services,Childrens Services,88063,Bishop Auckland 0 - 5,Supplies and Services,324117,Provisions,03-Feb-17,5723238649,WM MORRISON 040,5411,Catering costs - provisions,5.1,0,5.1
Resources,Financial Services,66890,Operations & Data,Supplies and Services,384956,Miscellaneous Expenses,03-Feb-17,5723238653,UKBA6038603610,9399,Licences,"1,476.00",0,1476
Regeneration and Local Services,Direct Services,20073,Bldg Serv - R&M Div 73 - Gas Servicing,Supplies and Services,312009,Newspapers Books and Periodicals,03-Feb-17,5723238683,WATERSTONES.COM,5942,Newspapers books and periodicals,66.43,0,66.43
Children and Young Peoples Services,Childrens Services,85333,Coxhoe Satelite Home,Supplies and Services,324117,Provisions,03-Feb-17,5723238687,ALDI,5411,Catering costs - provisions,75.96,0,75.96
Children and Young Peoples Services,Childrens Services,85333,Coxhoe Satelite Home,Supplies and Services,312011,Newspapers Books and Periodicals,03-Feb-17,5723238689,HOME BARGAINS,5251,Books-school library,26.82,4.47,22.35
Children and Young Peoples Services,Childrens Services,85333,Coxhoe Satelite Home,Supplies and Services,324117,Provisions,03-Feb-17,5723238691,TESCO STORES 2371,5411,Catering costs - provisions,36.87,0,36.87
Children and Young Peoples Services,Childrens Services,88043,Consett 0 - 5,Supplies and Services,312011,Newspapers Books and Periodicals,03-Feb-17,5723238695,Amazon UK Marketplace,5942,Books-school library,108.83,0,108.83
Regeneration and Local Services,Culture & Sport,11191,Wellbeing4Life,Supplies and Services,304259,Equipment and Materials,03-Feb-17,5723238699,WILKO RETAIL LIMIT,5722,Equipment-purchase and rental,8,0,8
Regeneration and Local Services,Culture & Sport,11191,Wellbeing4Life,Supplies and Services,384999,Miscellaneous Expenses,03-Feb-17,5723238705,CRAFTERS COMPANION LTD,5970,Other expenses,58.3,0,58.3
Resources,I.C.T. Services,69010,Administration,Transport,235057,Public Transport,03-Feb-17,5723238717,OYSTER RENEW WEB,4112,Staff travelling,50,0,50
Children and Young Peoples Services,Childrens Services,88013,Seaham 0 - 5,Supplies and Services,304259,Equipment and Materials,03-Feb-17,5723238725,WILKO.COM,5722,Equipment-purchase and rental,26.5,0,26.5
Children and Young Peoples Services,Childrens Services,88001,Peterlee Locality,Supplies and Services,304259,Equipment and Materials,03-Feb-17,5723238745,HARTLEPOOL BC CNP,9399,Equipment-purchase and rental,14.25,0,14.25
Children and Young Peoples Services,Childrens Services,88001,Peterlee Locality,Supplies and Services,308011,Furniture,03-Feb-17,5723238749,IKEA ONLINE,5719,Furniture repair and replacement,46.5,7.75,38.75
Children and Young Peoples Services,Childrens Services,88001,Peterlee Locality,Supplies and Services,324117,Provisions,03-Feb-17,5723238751,ASDA GEORGE COM LEEDS,5411,Catering costs - provisions,149.95,0,149.95
Children and Young Peoples Services,Childrens Services,88001,Peterlee Locality,Supplies and Services,304403,Equipment and Materials,03-Feb-17,5723238753,TESCO - Seller_IST_1_2,5999,Other consumables,129.99,0,129.99
Children and Young Peoples Services,Childrens Services,85801,CDYOS - Support,Supplies and Services,304259,Equipment and Materials,03-Feb-17,5723238765,B&Q DIRECT,5211,Equipment-purchase and rental,32.88,0,32.88
Regeneration and Local Services,Transport and Contracted Services,31701,Care Connect All Localities,Supplies and Services,344033,Telephones,03-Feb-17,5723238769,BT BILL PAYMENT 2,4812,Telephones general-all costs,88.47,0,88.47
Regeneration and Local Services,Transport and Contracted Services,31701,Care Connect All Localities,Supplies and Services,344033,Telephones,03-Feb-17,5723238773,BT BILL PAYMENT 2,4812,Telephones general-all costs,88.47,0,88.47
Regeneration and Local Services,Transport and Contracted Services,31701,Care Connect All Localities,Supplies and Services,344033,Telephones,03-Feb-17,5723238775,BT BILL PAYMENT 2,4812,Telephones general-all costs,88.47,0,88.47
Regeneration and Local Services,Transport and Contracted Services,31701,Care Connect All Localities,Supplies and Services,344033,Telephones,03-Feb-17,5723238777,BT BILL PAYMENT 2,4812,Telephones general-all costs,11.84,0,11.84
Regeneration and Local Services,Direct Services,21324,Catering - Meadowfield,Supplies and Services,324117,Provisions,03-Feb-17,5723238791,JR HOLLAND FOODSERVICE,5422,Catering costs - provisions,46.79,0,46.79
Regeneration and Local Services,Direct Services,21324,Catering - Meadowfield,Supplies and Services,324117,Provisions,03-Feb-17,5723238793,JR HOLLAND FOODSERVICE,5422,Catering costs - provisions,9.87,0,9.87
Regeneration and Local Services,Culture & Sport,10605,Woodhouse Close Leisure Complex,Supplies and Services,324117,Provisions,03-Feb-17,5723238903,BRAKE BROS LTD,5811,Catering costs - provisions,105.11,0,105.11
Regeneration and Local Services,Spatial Policy Planning Assets & Environment,31200,North Pennines Core,Supplies and Services,324117,Provisions,03-Feb-17,5723238933,SCOTMID CO-OP STANHOPE,5411,Catering costs - provisions,2.54,0,2.54
Children and Young Peoples Services,Childrens Services,85957,Secure Management,Supplies and Services,304649,Equipment and Materials,04-Feb-17,5723238291,Amazon EU,5969,Toys,59.1,0,59.1
Children and Young Peoples Services,Childrens Services,85957,Secure Management,Supplies and Services,324117,Provisions,04-Feb-17,5723238295,TESCO STORES 6329,5411,Catering costs - provisions,123.41,0,123.41
Regeneration and Local Services,Economic Development and Housing,30699,Business Growth and Innovation General,Supplies and Services,304403,Equipment and Materials,04-Feb-17,5723238317,MEETEDGAR MONTHLY,5734,Other consumables,39.29,0,39.29
Regeneration and Local Services,Culture & Sport,54233,Bp Auckland Town Hall Library,Supplies and Services,324117,Provisions,04-Feb-17,5723238383,WM MORRISON 040,5411,Catering costs - provisions,76.46,12.74,63.72
Regeneration and Local Services,Culture & Sport,54233,Bp Auckland Town Hall Library,Supplies and Services,304403,Equipment and Materials,04-Feb-17,5723238385,AMAZON UK RETAIL AMAZO,5999,Other consumables,9.99,0,9.99
Children and Young Peoples Services,Childrens Services,85341,High Etherley Satelite Home,Supplies and Services,324117,Provisions,04-Feb-17,5723238465,TESCO STORES 6329,5411,Catering costs - provisions,164.74,0,164.74
Adult and Health Services,Head of Adults,55302,Durham Pathways,Supplies and Services,312009,Newspapers Books and Periodicals,04-Feb-17,5723238479,Amazon EU,5969,Newspapers books and periodicals,34.84,0,34.84
Children and Young Peoples Services,Education,71903,EYDCP-Sustainability EDS,Supplies and Services,312011,Newspapers Books and Periodicals,04-Feb-17,5723238489,Amazon EU,5969,Books-school library,23.28,0,23.28
Regeneration and Local Services,Culture & Sport,54813,Gala Theatre - Technical,Supplies and Services,304221,Equipment and Materials,04-Feb-17,5723238579,WWW.GAFFERTAPE.COM,5085,Direct materials,53.01,8.84,44.17
Children and Young Peoples Services,Childrens Services,88083,Ferryhill 0 - 5,Supplies and Services,312011,Newspapers Books and Periodicals,04-Feb-17,5723238843,HOME BARGAINS,5251,Books-school library,15.26,0,15.26
Regeneration and Local Services,Economic Development and Housing,30737,Durham Works Flexible Fund,Transport,235057,Public Transport,04-Feb-17,5723238875,WWW.SIMPLYGO.COM,4131,Staff travelling,89.6,0,89.6
Regeneration and Local Services,Direct Services,21235,Catering - Wharton Park,Supplies and Services,324117,Provisions,04-Feb-17,5723238897,BRAKE BROS LTD,5811,Catering costs - provisions,121.56,20.26,101.3
Regeneration and Local Services,Direct Services,21235,Catering - Wharton Park,Supplies and Services,324117,Provisions,04-Feb-17,000005723238897 - 1,BRAKE BROS LTD,5811,Catering costs - provisions,24.33,,24.33
Children and Young Peoples Services,Childrens Services,85333,Coxhoe Satelite Home,Supplies and Services,304999,Equipment and Materials,05-Feb-17,5723238431,TALK TALK BUSINESS,5968,Misc equipment tools and materials,43.8,0,43.8
Children and Young Peoples Services,Childrens Services,85333,Coxhoe Satelite Home,Supplies and Services,304999,Equipment and Materials,05-Feb-17,5723238433,TALK TALK BUSINESS,5968,Misc equipment tools and materials,43.8,0,43.8
Regeneration and Local Services,Culture & Sport,11086,Positive Futures,Supplies and Services,324117,Provisions,05-Feb-17,5723238839,W M MORRISONS,5411,Catering costs - provisions,10.08,0,10.08
Regeneration and Local Services,Economic Development and Housing,30737,Durham Works Flexible Fund,Transport,235057,Public Transport,05-Feb-17,5723238879,WWW.SIMPLYGO.COM,4131,Staff travelling,24.9,0,24.9
Regeneration and Local Services,Economic Development and Housing,30699,Business Growth and Innovation General,Supplies and Services,304403,Equipment and Materials,06-Feb-17,5723238321,MEETEDGAR MONTHLY,5734,Other consumables,1.08,0,1.08
Children and Young Peoples Services,Education,71801,Selby Cottage Childcare Centre,Supplies and Services,324117,Provisions,06-Feb-17,5730812047,TESCO STORES 2278,5411,Catering costs - provisions,1.9,0,1.9
Resources,Financial Services,65180,Collections,Supplies and Services,338045,Services,06-Feb-17,5730812059,HMCOURT-SERVICES.G,9222,Legal expenses,110,0,110
Children and Young Peoples Services,Childrens Services,88093,Newton Aycliffe 0 - 5,Supplies and Services,324117,Provisions,06-Feb-17,5730812063,ASDA HOME SHOPPING,5411,Catering costs - provisions,28.08,0,28.08
Regeneration and Local Services,Economic Development and Housing,30699,Business Growth and Innovation General,Supplies and Services,312011,Newspapers Books and Periodicals,06-Feb-17,5730812091,FASTHOSTS INTERNET,4816,Books-school library,23.99,4,19.99
Regeneration and Local Services,Economic Development and Housing,30699,Business Growth and Innovation General,Supplies and Services,312011,Newspapers Books and Periodicals,06-Feb-17,5730812093,FASTHOSTS INTERNET,4816,Books-school library,13.19,2.2,10.99
Regeneration and Local Services,Economic Development and Housing,30699,Business Growth and Innovation General,Supplies and Services,312011,Newspapers Books and Periodicals,06-Feb-17,5730812097,FASTHOSTS INTERNET,4816,Books-school library,207.49,34.58,172.91
Resources,Financial Services,65180,Collections,Supplies and Services,338045,Services,06-Feb-17,5730812101,CCBCOFFICE,9222,Legal expenses,100,0,100
Regeneration and Local Services,Economic Development and Housing,30674,Business Services General,Transport,235057,Public Transport,06-Feb-17,5730812113,VIRGIN TRAINS EC,4112,Staff travelling,6.9,0,6.9
Regeneration and Local Services,Direct Services,10367,C&G - South Grounds Maintenance,Supplies and Services,304259,Equipment and Materials,06-Feb-17,5730812119,SCREWFIX,5211,Equipment-purchase and rental,13.58,2.26,11.32
Children and Young Peoples Services,Childrens Services,71440,Barnard Castle One Point Hub,Supplies and Services,312011,Newspapers Books and Periodicals,06-Feb-17,5730812121,Amazon EU,5969,Books-school library,19.45,0,19.45
Children and Young Peoples Services,Childrens Services,71440,Barnard Castle One Point Hub,Supplies and Services,304403,Equipment and Materials,06-Feb-17,5730812125,AMAZON UK RETAIL AMAZO,5999,Other consumables,155.59,0,155.59
Regeneration and Local Services,Direct Services,21242,Catering - County Hall,Supplies and Services,324117,Provisions,06-Feb-17,5730812129,BRAMBLES FOODS LTD,5499,Catering costs - provisions,338.88,0,338.88
Regeneration and Local Services,Direct Services,21242,Catering - County Hall,Supplies and Services,324117,Provisions,06-Feb-17,5730812131,JR HOLLAND FOODSERVICE,5422,Catering costs - provisions,98.93,0,98.93
Regeneration and Local Services,Direct Services,21242,Catering - County Hall,Supplies and Services,324117,Provisions,06-Feb-17,5730812133,JR HOLLAND FOODSERVICE,5422,Catering costs - provisions,13.52,0,13.52
Regeneration and Local Services,Direct Services,21242,Catering - County Hall,Supplies and Services,324117,Provisions,06-Feb-17,5730812135,BRAKE BROS LTD,5811,Catering costs - provisions,324.48,54.08,270.4
Regeneration and Local Services,Direct Services,21242,Catering - County Hall,Supplies and Services,324117,Provisions,06-Feb-17,000005730812135 - 1,BRAKE BROS LTD,5811,Catering costs - provisions,177.82,,177.82
Regeneration and Local Services,Culture & Sport,54233,Bp Auckland Town Hall Library,Supplies and Services,304403,Equipment and Materials,06-Feb-17,5730812141,AMAZON UK RETAIL AMAZO,5999,Other consumables,22.99,0,22.99
Children and Young Peoples Services,Childrens Services,88063,Bishop Auckland 0 - 5,Supplies and Services,324117,Provisions,06-Feb-17,5730812167,SAINSBURYS SACAT 2199,5411,Catering costs - provisions,20.99,0,20.99
Regeneration and Local Services,Economic Development and Housing,30749,Employability - Youth Contract,Employees,40149,Recruitment Instruction and Training,06-Feb-17,5730812169,EDUCATION & TRAINI,8220,Training-all costs,200,0,200
Children and Young Peoples Services,Education,71732,Dean Bank Childcare,Supplies and Services,312011,Newspapers Books and Periodicals,06-Feb-17,5730812189,Amazon UK Marketplace,5942,Books-school library,36.64,0,36.64
Children and Young Peoples Services,Education,71732,Dean Bank Childcare,Supplies and Services,312011,Newspapers Books and Periodicals,06-Feb-17,5730812193,Amazon UK Marketplace,5942,Books-school library,8.94,0,8.94
Children and Young Peoples Services,Education,71732,Dean Bank Childcare,Supplies and Services,324117,Provisions,06-Feb-17,5730812195,ASDA HOME SHOPPING,5411,Catering costs - provisions,0.16,0,0.16
Children and Young Peoples Services,Education,71732,Dean Bank Childcare,Supplies and Services,324117,Provisions,06-Feb-17,5730812197,ASDA HOME SHOPPING,5411,Catering costs - provisions,43.93,0,43.93
Regeneration and Local Services,Economic Development and Housing,30737,Durham Works Flexible Fund,Supplies and Services,384999,Miscellaneous Expenses,06-Feb-17,5730812209,TICKETSOURCE LTD,7922,Other expenses,26.4,0,26.4
Children and Young Peoples Services,Childrens Services,85956,Lumley,Supplies and Services,332047,Printing Stationery and Gen Off Exps,06-Feb-17,5730812233,Amazon UK Marketplace,5942,Stationery,6.99,0,6.99
Children and Young Peoples Services,Childrens Services,85957,Secure Management,Supplies and Services,328041,Clothing Uniforms and Laundry,06-Feb-17,5730812235,NEXT DIRECTORY,5651,Clothing uniforms and laundry,51.99,0,51.99
Children and Young Peoples Services,Childrens Services,85957,Secure Management,Supplies and Services,328041,Clothing Uniforms and Laundry,06-Feb-17,5730812237,AMAZON UK RETAIL AMAZO,5999,Clothing uniforms and laundry,12.99,0,12.99
Children and Young Peoples Services,Childrens Services,85957,Secure Management,Supplies and Services,304403,Equipment and Materials,06-Feb-17,5730812239,AMAZON UK RETAIL AMAZO,5999,Other consumables,12.99,0,12.99
Regeneration and Local Services,Direct Services,10301,C&G - North Grounds Maintenance,Supplies and Services,328041,Clothing Uniforms and Laundry,06-Feb-17,5730812245,THOMAS OWEN & SONS /N/,5611,Clothing uniforms and laundry,364.9,60.82,304.08
Regeneration and Local Services,Culture & Sport,11060,Hardwick Park Catering,Supplies and Services,324117,Provisions,06-Feb-17,5730812247,JR HOLLAND FOODSERVICE,5422,Catering costs - provisions,13.18,0,13.18
Regeneration and Local Services,Culture & Sport,11060,Hardwick Park Catering,Supplies and Services,324117,Provisions,06-Feb-17,5730812249,BRAKE BROS LTD,5811,Catering costs - provisions,73.92,12.32,61.6
Regeneration and Local Services,Culture & Sport,11060,Hardwick Park Catering,Supplies and Services,324117,Provisions,06-Feb-17,000005730812249 - 1,BRAKE BROS LTD,5811,Catering costs - provisions,173.28,,173.28
Regeneration and Local Services,Culture & Sport,11060,Hardwick Park Catering,Supplies and Services,324117,Provisions,06-Feb-17,5730812251,BRAKE BROS LTD,5811,Catering costs - provisions,68.56,0,68.56
Regeneration and Local Services,Direct Services,21234,Catering - Locomotion,Supplies and Services,324117,Provisions,06-Feb-17,5730812261,BRAMBLES FOODS LTD,5499,Catering costs - provisions,126.56,0,126.56
Regeneration and Local Services,Direct Services,21234,Catering - Locomotion,Supplies and Services,324117,Provisions,06-Feb-17,5730812265,BRAMBLES FOODS LTD,5499,Catering costs - provisions,27.62,0,27.62
Regeneration and Local Services,Direct Services,10525,Catering - Green Lane,Supplies and Services,324117,Provisions,06-Feb-17,5730812277,BRAMBLES FOODS LTD,5499,Catering costs - provisions,55.14,0,55.14
Regeneration and Local Services,Direct Services,10525,Catering - Green Lane,Supplies and Services,324117,Provisions,06-Feb-17,5730812279,BRAKE BROS LTD,5811,Catering costs - provisions,76.41,0,76.41
Regeneration and Local Services,Culture & Sport,54308,Shotton Library,Supplies and Services,384999,Miscellaneous Expenses,06-Feb-17,5730812297,WWW.BLUEFROGTOYS.CO.UK,5945,Other expenses,13.93,0,13.93
Children and Young Peoples Services,Childrens Services,88063,Bishop Auckland 0 - 5,Supplies and Services,324117,Provisions,06-Feb-17,5730812315,WM MORRISON 040,5411,Catering costs - provisions,24.61,0,24.61
Regeneration and Local Services,Direct Services,21234,Catering - Locomotion,Supplies and Services,328041,Clothing Uniforms and Laundry,06-Feb-17,5730812317,ARGOS BISHOP AUCKL,5310,Clothing uniforms and laundry,39.99,0,39.99
Resources,I.C.T. Services,69010,Administration,Supplies and Services,312011,Newspapers Books and Periodicals,06-Feb-17,5730812331,Amazon UK Marketplace,5942,Books-school library,4.1,0,4.1
Resources,I.C.T. Services,69010,Administration,Supplies and Services,340001,Postages,06-Feb-17,5730812333,ROYAL MAIL ONLINE SHOP,9402,Postages,256,0,256
Resources,I.C.T. Services,69010,Administration,Supplies and Services,304403,Equipment and Materials,06-Feb-17,5730812337,APPY PIE,5734,Other consumables,48,0,48
Regeneration and Local Services,Culture & Sport,54235,Bp Auckland Town Hall Cafe,Supplies and Services,324117,Provisions,06-Feb-17,5730812397,JR HOLLAND FOODSERVICE,5422,Catering costs - provisions,21.46,0,21.46
Regeneration and Local Services,Transport and Contracted Services,31701,Care Connect All Localities,Supplies and Services,344033,Telephones,06-Feb-17,5730812405,BT BILL PAYMENT 2,4812,Telephones general-all costs,-44.71,0,-44.71
Regeneration and Local Services,Transport and Contracted Services,31701,Care Connect All Localities,Supplies and Services,344033,Telephones,06-Feb-17,5730812409,BT BILL PAYMENT 2,4812,Telephones general-all costs,-76.1,0,-76.1
Regeneration and Local Services,Direct Services,21324,Catering - Meadowfield,Supplies and Services,324117,Provisions,06-Feb-17,5730812427,BRAMBLES FOODS LTD,5499,Catering costs - provisions,35.75,0,35.75
Regeneration and Local Services,Culture & Sport,11086,Positive Futures,Supplies and Services,324117,Provisions,06-Feb-17,5730812435,W M MORRISONS,5411,Catering costs - provisions,1.63,0,1.63
Regeneration and Local Services,Economic Development and Housing,30737,Durham Works Flexible Fund,Transport,235057,Public Transport,06-Feb-17,5730812449,WWW.SIMPLYGO.COM,4131,Staff travelling,6.4,0,6.4
Regeneration and Local Services,Direct Services,21235,Catering - Wharton Park,Supplies and Services,324117,Provisions,06-Feb-17,5730812467,BRAMBLES FOODS LTD,5499,Catering costs - provisions,126.56,0,126.56
Regeneration and Local Services,Direct Services,21235,Catering - Wharton Park,Supplies and Services,324117,Provisions,06-Feb-17,5730812469,JR HOLLAND FOODSERVICE,5422,Catering costs - provisions,24.59,0,24.59
Regeneration and Local Services,Culture & Sport,26591,Hardwick Park,Supplies and Services,304245,Equipment and Materials,06-Feb-17,5730812475,WWW.MUDDYFACES.CO.UK,5641,Materials,73.13,12.19,60.94
Regeneration and Local Services,Culture & Sport,10605,Woodhouse Close Leisure Complex,Supplies and Services,324117,Provisions,06-Feb-17,5730812481,JR HOLLAND FOODSERVICE,5422,Catering costs - provisions,48.85,0,48.85
Regeneration and Local Services,Culture & Sport,10605,Woodhouse Close Leisure Complex,Supplies and Services,324117,Provisions,06-Feb-17,5730812485,BRAKE BROS LTD,5811,Catering costs - provisions,82.25,0,82.25
Regeneration and Local Services,Culture & Sport,11225,Locality 2 Team Management,Supplies and Services,312011,Newspapers Books and Periodicals,06-Feb-17,5730812509,CHARLES DICKENS (SPENN,5251,Books-school library,25.96,0,25.96
Regeneration and Local Services,Economic Development and Housing,30737,Durham Works Flexible Fund,Supplies and Services,328041,Clothing Uniforms and Laundry,06-Feb-17,5730812513,WWW.ASOS.COM,5651,Clothing uniforms and laundry,62.5,0,62.5
Regeneration and Local Services,Economic Development and Housing,30674,Business Services General,Transport,235057,Public Transport,06-Feb-17,5733960935,ECML NEWCASTLE PARKING,7523,Staff travelling,16,0,16
Children and Young Peoples Services,Childrens Services,71440,Barnard Castle One Point Hub,Supplies and Services,304403,Equipment and Materials,06-Feb-17,5733960947,AMAZON UK RETAIL AMAZO,5999,Other consumables,19.45,0,19.45
Children and Young Peoples Services,Childrens Services,85351,Framwellgate Moor CU,Transport,235057,Public Transport,06-Feb-17,5733961015,WYNVR.CO.UK HOL ACCOM,4722,Staff travelling,473.6,0,473.6
Children and Young Peoples Services,Education,71732,Dean Bank Childcare,Supplies and Services,328041,Clothing Uniforms and Laundry,06-Feb-17,5733961039,B&M RETAIL LTD,5310,Clothing uniforms and laundry,25.44,0,25.44
Regeneration and Local Services,Culture & Sport,54308,Shotton Library,Supplies and Services,304403,Equipment and Materials,06-Feb-17,5733961179,AMAZON UK RETAIL AMAZO,5999,Other consumables,12.58,0,12.58
Regeneration and Local Services,Culture & Sport,54399,Local Delivery-Libraries,Supplies and Services,304403,Equipment and Materials,06-Feb-17,5733961259,AMAZON UK RETAIL AMAZO,5999,Other consumables,79.9,0,79.9
Children and Young Peoples Services,Education,71732,Dean Bank Childcare,Supplies and Services,312011,Newspapers Books and Periodicals,07-Feb-17,5730812199,Amazon UK Marketplace,5942,Books-school library,15.4,0,15.4
Resources,I.C.T. Services,65335,Operations - System & Repairs Trading,Supplies and Services,304639,Equipment and Materials,07-Feb-17,5730812259,Amazon UK Marketplace,5942,Technicians-supplies,9.7,0,9.7
Children and Young Peoples Services,Education,71801,Selby Cottage Childcare Centre,Supplies and Services,324117,Provisions,07-Feb-17,5733960865,TESCO STORES 2278,5411,Catering costs - provisions,17.04,0,17.04
Children and Young Peoples Services,Education,71801,Selby Cottage Childcare Centre,Supplies and Services,324117,Provisions,07-Feb-17,5733960867,TESCO STORES 2278,5411,Catering costs - provisions,14.57,0,14.57
Adult and Health Services,EnvironmentHealth & Consumer Protection,10934,Works in Default Holding Code,Income,720130,Fees and Charges,07-Feb-17,5733960873,WWW.MONEYCLAIM.GOV,9399,Fees-legal,35,0,35
Adult and Health Services,Planning & Service Strategy,52953,Training - Social Work,Supplies and Services,312009,Newspapers Books and Periodicals,07-Feb-17,5733960895,PAYPAL J R PRESS,5942,Newspapers books and periodicals,38.49,0,38.49
Regeneration and Local Services,Direct Services,10383,C&G - South Street Cleansing,Supplies and Services,324117,Provisions,07-Feb-17,5733960905,J M RAINE,5399,Catering costs - provisions,23.88,3.98,19.9
Children and Young Peoples Services,Childrens Services,85957,Secure Management,Supplies and Services,304245,Equipment and Materials,07-Feb-17,5733960915,Amazon UK Marketplace,5942,Materials,35.39,0,35.39
Children and Young Peoples Services,Childrens Services,85957,Secure Management,Supplies and Services,312011,Newspapers Books and Periodicals,07-Feb-17,5733960917,Amazon UK Marketplace,5942,Books-school library,47.03,0,47.03
Children and Young Peoples Services,Childrens Services,85952,Secure Education,Supplies and Services,304252,Equipment and Materials,07-Feb-17,5733960919,WWW.PREMIERCATERINGEQU,5065,Equipment-repairsserviceinsurance,62.4,10.4,52
Children and Young Peoples Services,Childrens Services,85957,Secure Management,Supplies and Services,304245,Equipment and Materials,07-Feb-17,5733960921,WWW.SIMPLYPLASTICS.COM,5085,Materials,94.52,15.75,78.77
Children and Young Peoples Services,Childrens Services,71440,Barnard Castle One Point Hub,Supplies and Services,304403,Equipment and Materials,07-Feb-17,5733960949,AMAZON UK RETAIL AMAZO,5999,Other consumables,215.5,0,215.5
Regeneration and Local Services,Direct Services,21242,Catering - County Hall,Supplies and Services,324117,Provisions,07-Feb-17,5733960953,FREEMAN CATERING BUTCH,5422,Catering costs - provisions,148.43,0,148.43
Regeneration and Local Services,Direct Services,21242,Catering - County Hall,Supplies and Services,324117,Provisions,07-Feb-17,5733960955,JR HOLLAND FOODSERVICE,5422,Catering costs - provisions,78.44,0,78.44
Regeneration and Local Services,Direct Services,21242,Catering - County Hall,Supplies and Services,324117,Provisions,07-Feb-17,5733960959,JR HOLLAND FOODSERVICE,5422,Catering costs - provisions,6.58,0,6.58
Regeneration and Local Services,Direct Services,21242,Catering - County Hall,Supplies and Services,324117,Provisions,07-Feb-17,5733960961,BRAKE BROS LTD,5811,Catering costs - provisions,185.13,0,185.13
Resources,I.C.T. Services,65464,Domains,Supplies and Services,372009,Subscriptions,07-Feb-17,5733960975,WEB NETWORKSOLUTIONS,5968,Subscriptions,127.8,0,127.8
Regeneration and Local Services,Culture & Sport,54812,Gala Theatre - Catering etc,Supplies and Services,324117,Provisions,07-Feb-17,5733960983,FREEMAN CATERING BUTCH,5422,Catering costs - provisions,28.61,0,28.61
Regeneration and Local Services,Culture & Sport,54812,Gala Theatre - Catering etc,Supplies and Services,324117,Provisions,07-Feb-17,5733960987,JR HOLLAND FOODSERVICE,5422,Catering costs - provisions,35.57,0,35.57
Regeneration and Local Services,Culture & Sport,54812,Gala Theatre - Catering etc,Supplies and Services,324117,Provisions,07-Feb-17,5733960993,BRAKE BROS LTD,5811,Catering costs - provisions,192.96,32.16,160.8
Regeneration and Local Services,Culture & Sport,54812,Gala Theatre - Catering etc,Supplies and Services,324117,Provisions,07-Feb-17,000005733960993 - 1,BRAKE BROS LTD,5811,Catering costs - provisions,84.54,,84.54
Children and Young Peoples Services,Childrens Services,85351,Framwellgate Moor CU,Supplies and Services,312011,Newspapers Books and Periodicals,07-Feb-17,5733961005,Amazon UK Marketplace,5942,Books-school library,25.79,4.3,21.49
Children and Young Peoples Services,Childrens Services,85351,Framwellgate Moor CU,Supplies and Services,324117,Provisions,07-Feb-17,5733961017,ASDA HOME SHOPPING,5411,Catering costs - provisions,148.76,0,148.76
Children and Young Peoples Services,Childrens Services,88083,Ferryhill 0 - 5,Supplies and Services,304403,Equipment and Materials,07-Feb-17,5733961021,ASDA SUPERSTORE 4987,5411,Other consumables,35.09,0,35.09
Children and Young Peoples Services,Education,71732,Dean Bank Childcare,Supplies and Services,324117,Provisions,07-Feb-17,5733961041,CO-OP GROUP 010503,5411,Catering costs - provisions,11.57,0,11.57
Children and Young Peoples Services,Education,71732,Dean Bank Childcare,Supplies and Services,324117,Provisions,07-Feb-17,5733961043,ASDA HOME SHOPPING,5411,Catering costs - provisions,5,0,5
Regeneration and Local Services,Direct Services,10301,C&G - North Grounds Maintenance,Supplies and Services,304999,Equipment and Materials,07-Feb-17,5733961051,GUSTHARTS CHAINSAW CTR,7699,Misc equipment tools and materials,481.39,80.23,401.16
Regeneration and Local Services,Economic Development and Housing,30737,Durham Works Flexible Fund,Supplies and Services,328041,Clothing Uniforms and Laundry,07-Feb-17,5733961055,NEW LOOK MCOMM,5621,Clothing uniforms and laundry,188.42,0,188.42
Children and Young Peoples Services,Childrens Services,85957,Secure Management,Supplies and Services,328041,Clothing Uniforms and Laundry,07-Feb-17,5733961073,M and M Direct Ltd,5941,Clothing uniforms and laundry,59.92,0,59.92
Children and Young Peoples Services,Childrens Services,85957,Secure Management,Supplies and Services,328041,Clothing Uniforms and Laundry,07-Feb-17,5733961077,WWW.FOOTLOCKER.EU,5661,Clothing uniforms and laundry,104.99,0,104.99
Children and Young Peoples Services,Childrens Services,85957,Secure Management,Supplies and Services,328041,Clothing Uniforms and Laundry,07-Feb-17,5733961079,WWW.FOOTASYLUM.COM,5941,Clothing uniforms and laundry,70.99,0,70.99
Children and Young Peoples Services,Childrens Services,85957,Secure Management,Supplies and Services,328041,Clothing Uniforms and Laundry,07-Feb-17,5733961081,NEXT DIRECTORY,5651,Clothing uniforms and laundry,53.99,0,53.99
Children and Young Peoples Services,Childrens Services,85957,Secure Management,Supplies and Services,328041,Clothing Uniforms and Laundry,07-Feb-17,5733961085,VERY.CO.UK,5964,Clothing uniforms and laundry,48,0,48
Children and Young Peoples Services,Childrens Services,85957,Secure Management,Supplies and Services,328041,Clothing Uniforms and Laundry,07-Feb-17,5733961087,VERY.CO.UK,5964,Clothing uniforms and laundry,48,8,40
Children and Young Peoples Services,Childrens Services,85957,Secure Management,Supplies and Services,328041,Clothing Uniforms and Laundry,07-Feb-17,5733961089,VERY.CO.UK,5964,Clothing uniforms and laundry,45,0,45
Children and Young Peoples Services,Childrens Services,85957,Secure Management,Supplies and Services,328041,Clothing Uniforms and Laundry,07-Feb-17,5733961093,VERY.CO.UK,5964,Clothing uniforms and laundry,22,0,22
Children and Young Peoples Services,Childrens Services,85957,Secure Management,Supplies and Services,328041,Clothing Uniforms and Laundry,07-Feb-17,5733961095,VERY.CO.UK,5964,Clothing uniforms and laundry,3.99,0,3.99
Regeneration and Local Services,Spatial Policy Planning Assets & Environment,31222,North Pennines Allen Valleys Landscape Partnership,Supplies and Services,342033,Computers and Communications,07-Feb-17,5733961101,WWW.LEISURE.ORDNANCE,5964,Computer hardware,33.98,0,33.98
Regeneration and Local Services,Culture & Sport,11060,Hardwick Park Catering,Supplies and Services,324117,Provisions,07-Feb-17,5733961107,FREEMAN CATERING BUTCH,5422,Catering costs - provisions,36.88,0,36.88
Regeneration and Local Services,Culture & Sport,11060,Hardwick Park Catering,Supplies and Services,324117,Provisions,07-Feb-17,5733961109,JR HOLLAND FOODSERVICE,5422,Catering costs - provisions,70.55,0,70.55
Regeneration and Local Services,Culture & Sport,11060,Hardwick Park Catering,Supplies and Services,324117,Provisions,07-Feb-17,5733961113,JR HOLLAND FOODSERVICE,5422,Catering costs - provisions,24.97,0,24.97
Resources,I.C.T. Services,65335,Operations - System & Repairs Trading,Supplies and Services,304639,Equipment and Materials,07-Feb-17,5733961121,Amazon UK Marketplace,5942,Technicians-supplies,26.99,0,26.99
Regeneration and Local Services,Direct Services,21234,Catering - Locomotion,Supplies and Services,324117,Provisions,07-Feb-17,5733961125,JR HOLLAND FOODSERVICE,5422,Catering costs - provisions,76.05,0,76.05
Regeneration and Local Services,Culture & Sport,11204,Events,Supplies and Services,304639,Equipment and Materials,07-Feb-17,5733961129,Amazon UK Marketplace,5942,Technicians-supplies,11.98,0,11.98
Children and Young Peoples Services,Childrens Services,88083,Ferryhill 0 - 5,Supplies and Services,364320,Grants to Voluntary Organisations,07-Feb-17,5733961137,DAYS INN,7011,Accommodation assistance,90,15,75
Children and Young Peoples Services,Childrens Services,88083,Ferryhill 0 - 5,Supplies and Services,364320,Grants to Voluntary Organisations,07-Feb-17,5733961139,DAYS INN,7011,Accommodation assistance,30,0,30
Regeneration and Local Services,Direct Services,10525,Catering - Green Lane,Supplies and Services,324117,Provisions,07-Feb-17,5733961151,FREEMAN CATERING BUTCH,5422,Catering costs - provisions,73.19,0,73.19
Regeneration and Local Services,Direct Services,10525,Catering - Green Lane,Supplies and Services,324117,Provisions,07-Feb-17,5733961153,FREEMAN CATERING BUTCH,5422,Catering costs - provisions,56.86,0,56.86
Regeneration and Local Services,Direct Services,10525,Catering - Green Lane,Supplies and Services,324117,Provisions,07-Feb-17,5733961155,FREEMAN CATERING BUTCH,5422,Catering costs - provisions,3.03,0,3.03
Regeneration and Local Services,Direct Services,10525,Catering - Green Lane,Supplies and Services,324117,Provisions,07-Feb-17,5733961159,BRAKE BROS LTD,5811,Catering costs - provisions,102.66,17.11,85.55
Regeneration and Local Services,Direct Services,10525,Catering - Green Lane,Supplies and Services,324117,Provisions,07-Feb-17,000005733961159 - 1,BRAKE BROS LTD,5811,Catering costs - provisions,121.13,,121.13
Regeneration and Local Services,Culture & Sport,54308,Shotton Library,Supplies and Services,312011,Newspapers Books and Periodicals,07-Feb-17,5733961175,Amazon UK Marketplace,5942,Books-school library,5.89,0,5.89
Children and Young Peoples Services,Childrens Services,88063,Bishop Auckland 0 - 5,Supplies and Services,308011,Furniture,07-Feb-17,5733961187,FRANKS THE FLOORING ST,5713,Furniture repair and replacement,150,0,150
Children and Young Peoples Services,Childrens Services,88043,Consett 0 - 5,Supplies and Services,312011,Newspapers Books and Periodicals,07-Feb-17,5733961223,Amazon UK Marketplace,5942,Books-school library,12.57,0,12.57
Children and Young Peoples Services,Childrens Services,88043,Consett 0 - 5,Supplies and Services,312011,Newspapers Books and Periodicals,07-Feb-17,5733961225,Amazon UK Marketplace,5942,Books-school library,50.7,0,50.7
Children and Young Peoples Services,Childrens Services,88043,Consett 0 - 5,Supplies and Services,312011,Newspapers Books and Periodicals,07-Feb-17,5733961227,Amazon UK Marketplace,5942,Books-school library,46.4,0,46.4
Regeneration and Local Services,Culture & Sport,11191,Wellbeing4Life,Supplies and Services,324117,Provisions,07-Feb-17,5733961235,SAINSBURYS SACAT 2199,5411,Catering costs - provisions,9.9,0,9.9
Regeneration and Local Services,Culture & Sport,11191,Wellbeing4Life,Supplies and Services,324117,Provisions,07-Feb-17,5733961239,ONE STOP 6178,5411,Catering costs - provisions,3,0,3
Resources,I.C.T. Services,69010,Administration,Supplies and Services,312011,Newspapers Books and Periodicals,07-Feb-17,5733961243,Amazon UK Marketplace,5942,Books-school library,20.82,0,20.82
Resources,I.C.T. Services,69010,Administration,Supplies and Services,372009,Subscriptions,07-Feb-17,5733961245,NEWSQUEST MEDIA,2741,Subscriptions,135.2,0,135.2
Regeneration and Local Services,Culture & Sport,54235,Bp Auckland Town Hall Cafe,Supplies and Services,324117,Provisions,07-Feb-17,5733961303,JR HOLLAND FOODSERVICE,5422,Catering costs - provisions,20.26,0,20.26
Regeneration and Local Services,Transport and Contracted Services,31701,Care Connect All Localities,Supplies and Services,344033,Telephones,07-Feb-17,5733961309,BT BILL PAYMENT 2,4812,Telephones general-all costs,-69.44,0,-69.44
Regeneration and Local Services,Direct Services,21324,Catering - Meadowfield,Supplies and Services,324117,Provisions,07-Feb-17,5733961327,FREEMAN CATERING BUTCH,5422,Catering costs - provisions,60.9,0,60.9
Regeneration and Local Services,Direct Services,21324,Catering - Meadowfield,Supplies and Services,324117,Provisions,07-Feb-17,5733961331,FREEMAN CATERING BUTCH,5422,Catering costs - provisions,44.48,0,44.48
Regeneration and Local Services,Direct Services,21324,Catering - Meadowfield,Supplies and Services,324117,Provisions,07-Feb-17,5733961335,BRAKE BROS LTD,5811,Catering costs - provisions,44.32,0,44.32
Regeneration and Local Services,Culture & Sport,11086,Positive Futures,Supplies and Services,324117,Provisions,07-Feb-17,5733961377,ASDA STORES,5411,Catering costs - provisions,43.43,0,43.43
Children and Young Peoples Services,Childrens Services,85331,New Lea Childrens Home,Supplies and Services,308011,Furniture,07-Feb-17,5733961397,IKEA ONLINE,5719,Furniture repair and replacement,390,0,390
Children and Young Peoples Services,Childrens Services,85331,New Lea Childrens Home,Supplies and Services,324117,Provisions,07-Feb-17,5733961401,ASDA HOME SHOPPING,5411,Catering costs - provisions,229.3,0,229.3
Children and Young Peoples Services,Childrens Services,85331,New Lea Childrens Home,Supplies and Services,328041,Clothing Uniforms and Laundry,07-Feb-17,5733961403,ARGOS RETAIL GROUP,5310,Clothing uniforms and laundry,55.07,0,55.07
Children and Young Peoples Services,Childrens Services,85331,New Lea Childrens Home,Supplies and Services,328041,Clothing Uniforms and Laundry,07-Feb-17,5733961405,ARGOS RETAIL GROUP,5310,Clothing uniforms and laundry,75.13,0,75.13
Children and Young Peoples Services,Childrens Services,85331,New Lea Childrens Home,Supplies and Services,324117,Provisions,07-Feb-17,5733961409,ASDA HOME SHOPPING,5411,Catering costs - provisions,-2.04,0,-2.04
Regeneration and Local Services,Economic Development and Housing,30737,Durham Works Flexible Fund,Transport,235057,Public Transport,07-Feb-17,5733961411,GO NORTH EAST - V/T,4131,Staff travelling,76.8,0,76.8
Regeneration and Local Services,Culture & Sport,10605,Woodhouse Close Leisure Complex,Supplies and Services,324117,Provisions,07-Feb-17,5733961437,FREEMAN CATERING BUTCH,5422,Catering costs - provisions,49.8,0,49.8
Regeneration and Local Services,Spatial Policy Planning Assets & Environment,31200,North Pennines Core,Supplies and Services,384999,Miscellaneous Expenses,07-Feb-17,5733961449,WWW.ROTHERVALLEYOPTICS,5945,Other expenses,106.5,0,106.5
Regeneration and Local Services,Spatial Policy Planning Assets & Environment,31200,North Pennines Core,Supplies and Services,304403,Equipment and Materials,07-Feb-17,5733961451,WWW.MODERNASTRONOM,5999,Other consumables,92.99,0,92.99
Regeneration and Local Services,Spatial Policy Planning Assets & Environment,31200,North Pennines Core,Employees,40149,Recruitment Instruction and Training,07-Feb-17,5733961455,PP BSSS,8398,Training-all costs,30,0,30
Children and Young Peoples Services,Childrens Services,85555,Child Protection Team Peterlee,Supplies and Services,332047,Printing Stationery and Gen Off Exps,07-Feb-17,5733961469,SUNDERLAND CC,9399,Stationery,60,0,60
Children and Young Peoples Services,Childrens Services,85342,9 Cedar Drive Aycliffe,Employees,40149,Recruitment Instruction and Training,07-Feb-17,5738073855,PARENTPAY E-COM R,8220,Training-all costs,20,0,20
Children and Young Peoples Services,Childrens Services,85957,Secure Management,Supplies and Services,304403,Equipment and Materials,07-Feb-17,5738073937,AMAZON UK RETAIL AMAZO,5999,Other consumables,4.31,0,4.31
Children and Young Peoples Services,Childrens Services,88043,Consett 0 - 5,Supplies and Services,304403,Equipment and Materials,07-Feb-17,5738074019,AMAZON UK RETAIL AMAZO,5999,Other consumables,80.49,0,80.49
Children and Young Peoples Services,Childrens Services,88043,Consett 0 - 5,Supplies and Services,304403,Equipment and Materials,07-Feb-17,5738074021,AMAZON UK RETAIL AMAZO,5999,Other consumables,26.85,0,26.85
Children and Young Peoples Services,Childrens Services,88043,Consett 0 - 5,Supplies and Services,304403,Equipment and Materials,07-Feb-17,5738074023,AMAZON UK RETAIL AMAZO,5999,Other consumables,70.49,0,70.49
Children and Young Peoples Services,Childrens Services,88043,Consett 0 - 5,Supplies and Services,304403,Equipment and Materials,07-Feb-17,5738074025,AMAZON UK RETAIL AMAZO,5999,Other consumables,7.98,0,7.98
Regeneration and Local Services,Direct Services,10301,C&G - North Grounds Maintenance,Supplies and Services,372009,Subscriptions,07-Feb-17,5738074083,OLIVERS TREE SERVICES,7299,Subscriptions,18,3,15
Regeneration and Local Services,Culture & Sport,26591,Hardwick Park,Supplies and Services,304245,Equipment and Materials,07-Feb-17,5738074145,AMAZON UK RETAIL AMAZO,5999,Materials,11.98,0,11.98
Resources,I.C.T. Services,65464,Domains,Supplies and Services,372009,Subscriptions,08-Feb-17,5733960979,WEB NETWORKSOLUTIONS,5968,Subscriptions,3.51,0,3.51
Children and Young Peoples Services,Childrens Services,88043,Consett 0 - 5,Supplies and Services,312011,Newspapers Books and Periodicals,08-Feb-17,5733961231,Amazon UK Marketplace,5942,Books-school library,104.8,0,104.8
Children and Young Peoples Services,Education,71801,Selby Cottage Childcare Centre,Supplies and Services,324117,Provisions,08-Feb-17,5738073823,ONE STOP 3026,5411,Catering costs - provisions,6,0,6
Children and Young Peoples Services,Education,71801,Selby Cottage Childcare Centre,Supplies and Services,324117,Provisions,08-Feb-17,5738073825,TESCO STORES 2278,5411,Catering costs - provisions,4,0,4
Children and Young Peoples Services,Education,71801,Selby Cottage Childcare Centre,Supplies and Services,324117,Provisions,08-Feb-17,5738073827,TESCO STORES 2278,5411,Catering costs - provisions,45.38,0,45.38
Children and Young Peoples Services,Childrens Services,88093,Newton Aycliffe 0 - 5,Supplies and Services,304259,Equipment and Materials,08-Feb-17,5738073833,W BOYES & CO LTD NEWTO,5310,Equipment-purchase and rental,15.9,0,15.9
Dedicated Schools Grant,Dedicated Schools Grant,79052,Part Sighted-Belmont Comp,Supplies and Services,372009,Subscriptions,08-Feb-17,5738073841,FREELANCE PROFESSIONAL,6300,Subscriptions,11.88,0,11.88
Regeneration and Local Services,Direct Services,10383,C&G - South Street Cleansing,Supplies and Services,304259,Equipment and Materials,08-Feb-17,5738073853,S&A BUILDERS MERCHANTS,5211,Equipment-purchase and rental,270,45,225
Children and Young Peoples Services,Childrens Services,85342,9 Cedar Drive Aycliffe,Supplies and Services,324117,Provisions,08-Feb-17,5738073857,TESCO STORES 2916,5411,Catering costs - provisions,28,0,28
Adult and Health Services,EnvironmentHealth & Consumer Protection,10934,Works in Default Holding Code,Income,720130,Fees and Charges,08-Feb-17,5738073859,COUNTY COURT,9222,Fees-legal,110,0,110
Resources,Financial Services,65180,Collections,Supplies and Services,338045,Services,08-Feb-17,5738073861,WWW.MONEYCLAIM.GOV,9399,Legal expenses,105,0,105
Resources,Financial Services,65180,Collections,Supplies and Services,338045,Services,08-Feb-17,5738073863,WWW.MONEYCLAIM.GOV,9399,Legal expenses,559.28,0,559.28
Regeneration and Local Services,Economic Development and Housing,30737,Durham Works Flexible Fund,Supplies and Services,328041,Clothing Uniforms and Laundry,08-Feb-17,5738073873,WWW.ASOS.COM,5651,Clothing uniforms and laundry,74.5,0,74.5
Regeneration and Local Services,Economic Development and Housing,30737,Durham Works Flexible Fund,Supplies and Services,328041,Clothing Uniforms and Laundry,08-Feb-17,5738073875,WWWMISSGUIDEDCOUK,5691,Clothing uniforms and laundry,54.99,0,54.99
Regeneration and Local Services,Direct Services,21242,Catering - County Hall,Supplies and Services,324117,Provisions,08-Feb-17,5738073877,JR HOLLAND FOODSERVICE,5422,Catering costs - provisions,131.82,0,131.82
Regeneration and Local Services,Direct Services,21242,Catering - County Hall,Supplies and Services,324117,Provisions,08-Feb-17,5738073879,JR HOLLAND FOODSERVICE,5422,Catering costs - provisions,31.56,0,31.56
Regeneration and Local Services,Direct Services,21242,Catering - County Hall,Supplies and Services,324117,Provisions,08-Feb-17,5738073881,JR HOLLAND FOODSERVICE,5422,Catering costs - provisions,31.35,0,31.35
Regeneration and Local Services,Direct Services,21242,Catering - County Hall,Supplies and Services,324117,Provisions,08-Feb-17,5738073883,BRAKE BROS LTD,5811,Catering costs - provisions,452.82,75.47,377.35
Regeneration and Local Services,Direct Services,21242,Catering - County Hall,Supplies and Services,324117,Provisions,08-Feb-17,000005738073883 - 1,BRAKE BROS LTD,5811,Catering costs - provisions,206.29,,206.29
Resources,I.C.T. Services,65464,Domains,Supplies and Services,372009,Subscriptions,08-Feb-17,5738073885,NOMINET UK,7379,Subscriptions,18,0,18
Children and Young Peoples Services,Education,71732,Dean Bank Childcare,Supplies and Services,312011,Newspapers Books and Periodicals,08-Feb-17,5738073913,HOME BARGAINS SPENNYMO,5251,Books-school library,15.42,0,15.42
Regeneration and Local Services,Economic Development and Housing,30554,International Relations,Payments In Advance,932001,Payments in advance,08-Feb-17,5738073915,DERWENT MANOR HOTEL,7011,Payments in advance,225.25,0,225.25
Regeneration and Local Services,Economic Development and Housing,30554,International Relations,Payments In Advance,932001,Payments in advance,08-Feb-17,5738073919,DERWENT MANOR HOTEL,7011,Payments in advance,225.25,0,225.25
Regeneration and Local Services,Economic Development and Housing,30554,International Relations,Payments In Advance,932001,Payments in advance,08-Feb-17,5738073923,DERWENT MANOR HOTEL,7011,Payments in advance,225.25,0,225.25
Regeneration and Local Services,Economic Development and Housing,30737,Durham Works Flexible Fund,Transport,230031,Contract Hire,08-Feb-17,5738073925,WWW.SIMPLYGO.COM,4131,Pupils-transport to play fields etc,5,0,5
Children and Young Peoples Services,Childrens Services,85957,Secure Management,Premises,115125,Repairs to Grounds,08-Feb-17,5738073933,WWW.DOORSTUFF.CO.UK,5251,General maintenance,87.36,0,87.36
Children and Young Peoples Services,Childrens Services,85957,Secure Management,Supplies and Services,324117,Provisions,08-Feb-17,5738073935,TESCO STORES 6329,5411,Catering costs - provisions,152.65,0,152.65
Regeneration and Local Services,Culture & Sport,11060,Hardwick Park Catering,Supplies and Services,324117,Provisions,08-Feb-17,5738073941,JR HOLLAND FOODSERVICE,5422,Catering costs - provisions,46.81,0,46.81
Regeneration and Local Services,Culture & Sport,11060,Hardwick Park Catering,Supplies and Services,324117,Provisions,08-Feb-17,5738073943,BRAKE BROS LTD,5811,Catering costs - provisions,102.72,17.12,85.6
Regeneration and Local Services,Culture & Sport,11060,Hardwick Park Catering,Supplies and Services,324117,Provisions,08-Feb-17,000005738073943 - 1,BRAKE BROS LTD,5811,Catering costs - provisions,215.82,,215.82
Regeneration and Local Services,Technical Services,10984,Training and Development,Employees,40149,Recruitment Instruction and Training,08-Feb-17,5738073945,PARAGON TRAINING,8220,Training-all costs,244,0,244
Resources,I.C.T. Services,65335,Operations - System & Repairs Trading,Supplies and Services,304639,Equipment and Materials,08-Feb-17,5738073947,Amazon UK Marketplace,5942,Technicians-supplies,17.84,0,17.84
Resources,I.C.T. Services,65335,Operations - System & Repairs Trading,Supplies and Services,304639,Equipment and Materials,08-Feb-17,5738073949,Amazon UK Marketplace,5942,Technicians-supplies,58.7,0,58.7
Resources,I.C.T. Services,65335,Operations - System & Repairs Trading,Supplies and Services,304639,Equipment and Materials,08-Feb-17,5738073951,PROMETHEAN LTD,5722,Technicians-supplies,108.61,18.1,90.51
Resources,I.C.T. Services,65335,Operations - System & Repairs Trading,Supplies and Services,304639,Equipment and Materials,08-Feb-17,5738073953,THE REPLACE BASE LTD,7699,Technicians-supplies,133.87,0,133.87
Children and Young Peoples Services,Childrens Services,85551,Short Break Services-Park Hse Sher,Supplies and Services,304403,Equipment and Materials,08-Feb-17,5738073955,UNIFIT,5065,Other consumables,26.96,0,26.96
Regeneration and Local Services,Culture & Sport,11204,Events,Supplies and Services,304639,Equipment and Materials,08-Feb-17,5738073957,Amazon UK Marketplace,5942,Technicians-supplies,52.73,0,52.73
Regeneration and Local Services,Direct Services,10525,Catering - Green Lane,Supplies and Services,324117,Provisions,08-Feb-17,5738073959,JR HOLLAND FOODSERVICE,5422,Catering costs - provisions,48.25,0,48.25
Children and Young Peoples Services,Education,76004,Music - Parents Fund,Supplies and Services,312009,Newspapers Books and Periodicals,08-Feb-17,5738073979,PAYPAL WONDERFULWI,5942,Newspapers books and periodicals,28.23,0,28.23
Resources,Resources Management,69000,Resources Management,Supplies and Services,324117,Provisions,08-Feb-17,5738074011,CO-OP GROUP 010503,5411,Catering costs - provisions,2.94,0,2.94
Children and Young Peoples Services,Childrens Services,88043,Consett 0 - 5,Supplies and Services,312011,Newspapers Books and Periodicals,08-Feb-17,5738074017,Amazon UK Marketplace,5942,Books-school library,5.79,0,5.79
Regeneration and Local Services,Culture & Sport,11191,Wellbeing4Life,Supplies and Services,304259,Equipment and Materials,08-Feb-17,5738074029,WILKO RETAIL LIMIT,5722,Equipment-purchase and rental,1.7,0,1.7
Resources,I.C.T. Services,69010,Administration,Supplies and Services,312011,Newspapers Books and Periodicals,08-Feb-17,5738074035,Amazon UK Marketplace,5942,Books-school library,48.54,0,48.54
Resources,I.C.T. Services,69010,Administration,Supplies and Services,312011,Newspapers Books and Periodicals,08-Feb-17,5738074037,Amazon UK Marketplace,5942,Books-school library,32.78,0,32.78
Resources,I.C.T. Services,69010,Administration,Supplies and Services,312011,Newspapers Books and Periodicals,08-Feb-17,5738074039,Amazon UK Marketplace,5942,Books-school library,52.39,0,52.39
Regeneration and Local Services,Culture & Sport,11056,AAP Funding - Sport & Leisure,Supplies and Services,304649,Equipment and Materials,08-Feb-17,5738074043,PAYPAL FUNWITHMUM,5641,Toys,114,0,114
Regeneration and Local Services,Culture & Sport,54235,Bp Auckland Town Hall Cafe,Supplies and Services,324117,Provisions,08-Feb-17,5738074065,JR HOLLAND FOODSERVICE,5422,Catering costs - provisions,23.63,0,23.63
Regeneration and Local Services,Direct Services,21324,Catering - Meadowfield,Supplies and Services,324117,Provisions,08-Feb-17,5738074069,JR HOLLAND FOODSERVICE,5422,Catering costs - provisions,34.64,0,34.64
Regeneration and Local Services,Direct Services,21324,Catering - Meadowfield,Supplies and Services,324117,Provisions,08-Feb-17,5738074073,JR HOLLAND FOODSERVICE,5422,Catering costs - provisions,13.45,0,13.45
Regeneration and Local Services,Direct Services,21324,Catering - Meadowfield,Supplies and Services,324117,Provisions,08-Feb-17,5738074075,BRAKE BROS LTD,5811,Catering costs - provisions,135.36,22.56,112.8
Regeneration and Local Services,Direct Services,21324,Catering - Meadowfield,Supplies and Services,324117,Provisions,08-Feb-17,000005738074075 - 1,BRAKE BROS LTD,5811,Catering costs - provisions,74.92,,74.92
Children and Young Peoples Services,Childrens Services,85333,Coxhoe Satelite Home,Supplies and Services,312011,Newspapers Books and Periodicals,08-Feb-17,5738074079,Amazon UK Marketplace,5942,Books-school library,17.99,0,17.99
Regeneration and Local Services,Direct Services,10301,C&G - North Grounds Maintenance,Supplies and Services,328041,Clothing Uniforms and Laundry,08-Feb-17,5738074111,Argos Durham Arnis,5310,Clothing uniforms and laundry,92.98,0,92.98
Regeneration and Local Services,Culture & Sport,11191,Wellbeing4Life,Supplies and Services,324117,Provisions,08-Feb-17,5738074113,TESCO STORES 2916,5411,Catering costs - provisions,19.15,0,19.15
Children and Young Peoples Services,Childrens Services,71404,Laurel Avenue Childrens Centre,Supplies and Services,324117,Provisions,08-Feb-17,5738074129,TESCO STORES 2371,5411,Catering costs - provisions,17.2,0,17.2
Regeneration and Local Services,Direct Services,21235,Catering - Wharton Park,Supplies and Services,324117,Provisions,08-Feb-17,5738074137,JR HOLLAND FOODSERVICE,5422,Catering costs - provisions,18.94,0,18.94
Regeneration and Local Services,Direct Services,21235,Catering - Wharton Park,Supplies and Services,324117,Provisions,08-Feb-17,5738074139,BRAKE BROS LTD,5811,Catering costs - provisions,68.94,11.49,57.45
Regeneration and Local Services,Direct Services,21235,Catering - Wharton Park,Supplies and Services,324117,Provisions,08-Feb-17,000005738074139 - 1,BRAKE BROS LTD,5811,Catering costs - provisions,109.55,,109.55
Regeneration and Local Services,Culture & Sport,10605,Woodhouse Close Leisure Complex,Supplies and Services,324117,Provisions,08-Feb-17,5738074149,JR HOLLAND FOODSERVICE,5422,Catering costs - provisions,39.76,0,39.76
Children and Young Peoples Services,Childrens Services,71693,Brandon Childrens Centre,Supplies and Services,312011,Newspapers Books and Periodicals,08-Feb-17,5738074161,Amazon UK Marketplace,5942,Books-school library,23.94,0,23.94
Children and Young Peoples Services,Childrens Services,71693,Brandon Childrens Centre,Supplies and Services,304259,Equipment and Materials,08-Feb-17,5738074163,WILKO.COM,5722,Equipment-purchase and rental,12,0,12
Regeneration and Local Services,Economic Development and Housing,30737,Durham Works Flexible Fund,Transport,235057,Public Transport,08-Feb-17,5738074165,WWW.SIMPLYGO.COM,4131,Staff travelling,89,0,89
Regeneration and Local Services,Spatial Policy Planning Assets & Environment,31200,North Pennines Core,Supplies and Services,304259,Equipment and Materials,08-Feb-17,5738074173,DURHAM COUNTY COUNCIL,9399,Equipment-purchase and rental,50,0,50
Regeneration and Local Services,Spatial Policy Planning Assets & Environment,31200,North Pennines Core,Supplies and Services,384999,Miscellaneous Expenses,08-Feb-17,5738074175,WWW.ROTHERVALLEYOPTICS,5945,Other expenses,-14.2,0,-14.2
Resources,I.C.T. Services,69010,Administration,Supplies and Services,352001,Conference Expenses,08-Feb-17,5742584945,THE KINGSLODGE INN,7011,Conferencesseminars fees etc,79,0,79
Resources,Corporate Finance,69800,Corporate Procurement,Supplies and Services,352001,Conference Expenses,08-Feb-17,5742585107,REDACTIVE,7399,Conferencesseminars fees etc,540,0,540
Children and Young Peoples Services,Childrens Services,71693,Brandon Childrens Centre,Supplies and Services,304403,Equipment and Materials,08-Feb-17,5742585121,AMAZON UK RETAIL AMAZO,5999,Other consumables,15.32,0,15.32
Children and Young Peoples Services,Education,71801,Selby Cottage Childcare Centre,Supplies and Services,324117,Provisions,09-Feb-17,5742584575,TESCO STORES 2278,5411,Catering costs - provisions,2.95,0,2.95
Adult and Health Services,EnvironmentHealth & Consumer Protection,10934,Works in Default Holding Code,Income,720130,Fees and Charges,09-Feb-17,5742584585,HMCOURT-SERVICES.G,9222,Fees-legal,100,0,100
Children and Young Peoples Services,Childrens Services,88093,Newton Aycliffe 0 - 5,Supplies and Services,304259,Equipment and Materials,09-Feb-17,5742584589,Amazon UK Marketplace,5942,Equipment-purchase and rental,5.38,0,5.38
Children and Young Peoples Services,Childrens Services,88093,Newton Aycliffe 0 - 5,Supplies and Services,304259,Equipment and Materials,09-Feb-17,5742584591,Amazon UK Marketplace,5942,Equipment-purchase and rental,8.65,0,8.65
Children and Young Peoples Services,Childrens Services,88093,Newton Aycliffe 0 - 5,Supplies and Services,304259,Equipment and Materials,09-Feb-17,5742584595,Amazon UK Marketplace,5942,Equipment-purchase and rental,7.32,0,7.32
Children and Young Peoples Services,Childrens Services,88093,Newton Aycliffe 0 - 5,Supplies and Services,304259,Equipment and Materials,09-Feb-17,5742584599,Amazon UK Marketplace,5942,Equipment-purchase and rental,8.89,0,8.89
Children and Young Peoples Services,Childrens Services,88093,Newton Aycliffe 0 - 5,Supplies and Services,304259,Equipment and Materials,09-Feb-17,5742584601,Amazon UK Marketplace,5942,Equipment-purchase and rental,4.99,0,4.99
Children and Young Peoples Services,Childrens Services,88093,Newton Aycliffe 0 - 5,Supplies and Services,304259,Equipment and Materials,09-Feb-17,5742584603,ARGOS LTD,5310,Equipment-purchase and rental,29.99,0,29.99
Children and Young Peoples Services,Childrens Services,88093,Newton Aycliffe 0 - 5,Supplies and Services,304259,Equipment and Materials,09-Feb-17,5742584605,ARGOS LTD,5310,Equipment-purchase and rental,29.99,0,29.99
Regeneration and Local Services,Economic Development and Housing,30699,Business Growth and Innovation General,Supplies and Services,336005,Advertising,09-Feb-17,5742584621,ADROLL,7311,Advertising other than for staff,2.35,0,2.35
Regeneration and Local Services,Direct Services,10367,C&G - South Grounds Maintenance,Supplies and Services,304259,Equipment and Materials,09-Feb-17,5742584633,SCREWFIX,5211,Equipment-purchase and rental,14.98,2.5,12.48
Regeneration and Local Services,Economic Development and Housing,30737,Durham Works Flexible Fund,Supplies and Services,328041,Clothing Uniforms and Laundry,09-Feb-17,5742584669,YOURSCLOTHING.CO.U,5621,Clothing uniforms and laundry,49.49,0,49.49
Regeneration and Local Services,Direct Services,21242,Catering - County Hall,Supplies and Services,324117,Provisions,09-Feb-17,5742584673,JR HOLLAND FOODSERVICE,5422,Catering costs - provisions,67.24,0,67.24
Regeneration and Local Services,Direct Services,21242,Catering - County Hall,Supplies and Services,324117,Provisions,09-Feb-17,5742584679,JR HOLLAND FOODSERVICE,5422,Catering costs - provisions,43.5,0,43.5
Regeneration and Local Services,Direct Services,21242,Catering - County Hall,Supplies and Services,324117,Provisions,09-Feb-17,5742584681,JR HOLLAND FOODSERVICE,5422,Catering costs - provisions,13.16,0,13.16
Regeneration and Local Services,Culture & Sport,54812,Gala Theatre - Catering etc,Supplies and Services,324117,Provisions,09-Feb-17,5742584685,JR HOLLAND FOODSERVICE,5422,Catering costs - provisions,76.76,0,76.76
Regeneration and Local Services,Direct Services,10900,Fleet - Meadowfield Fleet,Transport,215013,Running Costs of Vehicles,09-Feb-17,5742584727,DVLA VEHICLE TAX,9399,Vehicle Excise Duty (VED),12.5,0,12.5
Regeneration and Local Services,Direct Services,10900,Fleet - Meadowfield Fleet,Transport,215013,Running Costs of Vehicles,09-Feb-17,5742584729,DVLA VEHICLE TAX,9399,Vehicle Excise Duty (VED),167.5,0,167.5
Regeneration and Local Services,Direct Services,10900,Fleet - Meadowfield Fleet,Transport,215013,Running Costs of Vehicles,09-Feb-17,5742584731,DVLA VEHICLE TAX,9399,Vehicle Excise Duty (VED),167.5,0,167.5
Regeneration and Local Services,Direct Services,10900,Fleet - Meadowfield Fleet,Transport,215013,Running Costs of Vehicles,09-Feb-17,5742584735,DVLA VEHICLE TAX,9399,Vehicle Excise Duty (VED),167.5,0,167.5
Regeneration and Local Services,Direct Services,10900,Fleet - Meadowfield Fleet,Transport,215013,Running Costs of Vehicles,09-Feb-17,5742584737,DVLA VEHICLE TAX,9399,Vehicle Excise Duty (VED),167.5,0,167.5
Regeneration and Local Services,Direct Services,10900,Fleet - Meadowfield Fleet,Transport,215013,Running Costs of Vehicles,09-Feb-17,5742584741,DVLA VEHICLE TAX,9399,Vehicle Excise Duty (VED),167.5,0,167.5
Regeneration and Local Services,Direct Services,10864,Fleet - Hackworth Road Fleet,Transport,215013,Running Costs of Vehicles,09-Feb-17,5742584743,DVLA VEHICLE TAX,9399,Vehicle Excise Duty (VED),167.5,0,167.5
Regeneration and Local Services,Direct Services,10900,Fleet - Meadowfield Fleet,Transport,215013,Running Costs of Vehicles,09-Feb-17,5742584747,DVLA VEHICLE TAX,9399,Vehicle Excise Duty (VED),167.5,0,167.5
Regeneration and Local Services,Direct Services,10864,Fleet - Hackworth Road Fleet,Transport,215013,Running Costs of Vehicles,09-Feb-17,5742584753,DVLA VEHICLE TAX,9399,Vehicle Excise Duty (VED),167.5,0,167.5
Regeneration and Local Services,Direct Services,10900,Fleet - Meadowfield Fleet,Transport,215013,Running Costs of Vehicles,09-Feb-17,5742584755,DVLA VEHICLE TAX,9399,Vehicle Excise Duty (VED),167.5,0,167.5
Regeneration and Local Services,Direct Services,10900,Fleet - Meadowfield Fleet,Transport,215013,Running Costs of Vehicles,09-Feb-17,5742584759,DVLA VEHICLE TAX,9399,Vehicle Excise Duty (VED),212.5,0,212.5
Regeneration and Local Services,Direct Services,10900,Fleet - Meadowfield Fleet,Transport,215013,Running Costs of Vehicles,09-Feb-17,5742584761,DVLA VEHICLE TAX,9399,Vehicle Excise Duty (VED),167.5,0,167.5
Regeneration and Local Services,Direct Services,10900,Fleet - Meadowfield Fleet,Transport,215013,Running Costs of Vehicles,09-Feb-17,5742584765,DVLA VEHICLE TAX,9399,Vehicle Excise Duty (VED),167.5,0,167.5
Children and Young Peoples Services,Childrens Services,85332,Middlestone Moor CU,Supplies and Services,324117,Provisions,09-Feb-17,5742584785,TESCO STORES 2371,5411,Catering costs - provisions,164.69,0,164.69
Regeneration and Local Services,Economic Development and Housing,30737,Durham Works Flexible Fund,Transport,230031,Contract Hire,09-Feb-17,5742584803,WWW.SIMPLYGO.COM,4131,Pupils-transport to play fields etc,68,0,68
Regeneration and Local Services,Economic Development and Housing,30737,Durham Works Flexible Fund,Transport,230031,Contract Hire,09-Feb-17,5742584805,WWW.SIMPLYGO.COM,4131,Pupils-transport to play fields etc,68,0,68
Children and Young Peoples Services,Childrens Services,85965,Barnard,Supplies and Services,304649,Equipment and Materials,09-Feb-17,5742584811,Amazon UK Marketplace,5942,Toys,12.99,0,12.99
Children and Young Peoples Services,Childrens Services,85957,Secure Management,Supplies and Services,328041,Clothing Uniforms and Laundry,09-Feb-17,5742584813,M and M Direct Ltd,5941,Clothing uniforms and laundry,64.96,0,64.96
Children and Young Peoples Services,Childrens Services,85957,Secure Management,Supplies and Services,328041,Clothing Uniforms and Laundry,09-Feb-17,5742584815,RMS EMBROIDERY EMBROID,5655,Clothing uniforms and laundry,412.4,0,412.4
Children and Young Peoples Services,Childrens Services,85954,Walworth,Supplies and Services,384999,Miscellaneous Expenses,09-Feb-17,5742584819,BLACKBURN ROVERS,7997,Other expenses,20,0,20
Children and Young Peoples Services,Childrens Services,85957,Secure Management,Supplies and Services,328041,Clothing Uniforms and Laundry,09-Feb-17,5742584821,MAINLINE MENSWEAR,5611,Clothing uniforms and laundry,69.95,0,69.95
Children and Young Peoples Services,Childrens Services,85957,Secure Management,Supplies and Services,324117,Provisions,09-Feb-17,5742584827,TESCO STORES 6329,5411,Catering costs - provisions,102.13,0,102.13
Regeneration and Local Services,Culture & Sport,11060,Hardwick Park Catering,Supplies and Services,324117,Provisions,09-Feb-17,5742584829,JR HOLLAND FOODSERVICE,5422,Catering costs - provisions,23.4,0,23.4
Regeneration and Local Services,Direct Services,21234,Catering - Locomotion,Supplies and Services,324117,Provisions,09-Feb-17,5742584833,BRAKE BROS LTD,5811,Catering costs - provisions,232.5,38.75,193.75
Regeneration and Local Services,Direct Services,21234,Catering - Locomotion,Supplies and Services,324117,Provisions,09-Feb-17,000005742584833 - 1,BRAKE BROS LTD,5811,Catering costs - provisions,51.47,,51.47
Children and Young Peoples Services,Childrens Services,85352,Tow Law CU,Supplies and Services,324117,Provisions,09-Feb-17,5742584851,TESCO STORES 2371,5411,Catering costs - provisions,233.57,0,233.57
Children and Young Peoples Services,Childrens Services,88063,Bishop Auckland 0 - 5,Supplies and Services,324117,Provisions,09-Feb-17,5742584865,ALDI,5411,Catering costs - provisions,39.9,0,39.9
Children and Young Peoples Services,Childrens Services,88063,Bishop Auckland 0 - 5,Supplies and Services,324117,Provisions,09-Feb-17,5742584869,TESCO STORES 6329,5411,Catering costs - provisions,11.39,0,11.39
Children and Young Peoples Services,Childrens Services,85333,Coxhoe Satelite Home,Supplies and Services,324117,Provisions,09-Feb-17,5742584929,ALDI,5411,Catering costs - provisions,77.33,0,77.33
Children and Young Peoples Services,Childrens Services,88043,Consett 0 - 5,Supplies and Services,304259,Equipment and Materials,09-Feb-17,5742584933,DURHAM COUNTY COUNCIL,9399,Equipment-purchase and rental,12,0,12
Resources,I.C.T. Services,69010,Administration,Supplies and Services,312011,Newspapers Books and Periodicals,09-Feb-17,5742584941,Amazon UK Marketplace,5942,Books-school library,13.5,0,13.5
Resources,I.C.T. Services,69010,Administration,Supplies and Services,384999,Miscellaneous Expenses,09-Feb-17,5742584947,PAYPAL TSRGD.CO.UK,5946,Other expenses,470,0,470
Resources,I.C.T. Services,69010,Administration,Supplies and Services,304259,Equipment and Materials,09-Feb-17,5742584951,WWW.ICO.GOV.UK,9399,Equipment-purchase and rental,35,0,35
Resources,I.C.T. Services,69010,Administration,Supplies and Services,304259,Equipment and Materials,09-Feb-17,5742584953,WWW.ICO.GOV.UK,9399,Equipment-purchase and rental,35,0,35
Resources,I.C.T. Services,69010,Administration,Supplies and Services,304259,Equipment and Materials,09-Feb-17,5742584957,WWW.ICO.GOV.UK,9399,Equipment-purchase and rental,35,0,35
Resources,I.C.T. Services,69010,Administration,Supplies and Services,352001,Conference Expenses,09-Feb-17,5742584959,GRANGE HOTELS,7011,Conferencesseminars fees etc,324.36,0,324.36
Regeneration and Local Services,Culture & Sport,54399,Local Delivery-Libraries,Supplies and Services,304403,Equipment and Materials,09-Feb-17,5742584975,AMAZON UK RETAIL AMAZO,5999,Other consumables,10.98,0,10.98
Regeneration and Local Services,Direct Services,10301,C&G - North Grounds Maintenance,Supplies and Services,312011,Newspapers Books and Periodicals,09-Feb-17,5742585011,GRALANDS WOODWORK SUPP,5251,Books-school library,207,0,207
Regeneration and Local Services,Economic Development and Housing,30737,Durham Works Flexible Fund,Supplies and Services,304259,Equipment and Materials,09-Feb-17,5742585075,DURHAM COUNTY COUNCIL,9399,Equipment-purchase and rental,20,0,20
Regeneration and Local Services,Economic Development and Housing,30737,Durham Works Flexible Fund,Transport,235057,Public Transport,09-Feb-17,5742585079,WWW.SIMPLYGO.COM,4131,Staff travelling,6.4,0,6.4
Regeneration and Local Services,Economic Development and Housing,30737,Durham Works Flexible Fund,Transport,235057,Public Transport,09-Feb-17,5742585083,WWW.SIMPLYGO.COM,4131,Staff travelling,12.8,0,12.8
Regeneration and Local Services,Economic Development and Housing,30737,Durham Works Flexible Fund,Supplies and Services,324117,Provisions,09-Feb-17,5742585087,ASDA SUPERSTORE,5411,Catering costs - provisions,68.88,0,68.88
Regeneration and Local Services,Culture & Sport,10605,Woodhouse Close Leisure Complex,Supplies and Services,324117,Provisions,09-Feb-17,5742585101,BRAKE BROS LTD,5811,Catering costs - provisions,67.98,11.33,56.65
Regeneration and Local Services,Culture & Sport,10605,Woodhouse Close Leisure Complex,Supplies and Services,324117,Provisions,09-Feb-17,000005742585101 - 1,BRAKE BROS LTD,5811,Catering costs - provisions,37.83,,37.83
Children and Young Peoples Services,Childrens Services,88093,Newton Aycliffe 0 - 5,Supplies and Services,304259,Equipment and Materials,09-Feb-17,5747782365,AMAZON UK RETAIL AMAZO,5999,Equipment-purchase and rental,95.94,0,95.94
Regeneration and Local Services,Economic Development and Housing,30737,Durham Works Flexible Fund,Supplies and Services,328041,Clothing Uniforms and Laundry,09-Feb-17,5747782453,NEW LOOK INTERNET,5621,Clothing uniforms and laundry,37.96,0,37.96
Children and Young Peoples Services,Childrens Services,85351,Framwellgate Moor CU,Supplies and Services,304403,Equipment and Materials,09-Feb-17,5747782529,AMAZON UK RETAIL AMAZO,5999,Other consumables,13.98,0,13.98
Children and Young Peoples Services,Education,71801,Selby Cottage Childcare Centre,Supplies and Services,312011,Newspapers Books and Periodicals,10-Feb-17,5742584573,Amazon UK Marketplace,5942,Books-school library,16.49,0,16.49
Regeneration and Local Services,Economic Development and Housing,30699,Business Growth and Innovation General,Supplies and Services,336005,Advertising,10-Feb-17,5742584623,ADROLL,7311,Advertising other than for staff,0.06,0,0.06
Children and Young Peoples Services,Education,71801,Selby Cottage Childcare Centre,Supplies and Services,324117,Provisions,10-Feb-17,5747782351,TESCO STORES 2278,5411,Catering costs - provisions,62.06,0,62.06
Children and Young Peoples Services,Childrens Services,88093,Newton Aycliffe 0 - 5,Supplies and Services,304259,Equipment and Materials,10-Feb-17,5747782361,Amazon UK Marketplace,5942,Equipment-purchase and rental,12.55,0,12.55
Regeneration and Local Services,Economic Development and Housing,30737,Durham Works Flexible Fund,Transport,235005,Public Transport,10-Feb-17,5747782455,ARRIVA PASSENGER S,7538,Contract tickets,85.5,0,85.5
Regeneration and Local Services,Direct Services,21242,Catering - County Hall,Supplies and Services,324117,Provisions,10-Feb-17,5747782461,JR HOLLAND FOODSERVICE,5422,Catering costs - provisions,85.16,0,85.16
Regeneration and Local Services,Direct Services,21242,Catering - County Hall,Supplies and Services,324117,Provisions,10-Feb-17,5747782463,JR HOLLAND FOODSERVICE,5422,Catering costs - provisions,13.16,0,13.16
Regeneration and Local Services,Direct Services,21242,Catering - County Hall,Supplies and Services,324117,Provisions,10-Feb-17,5747782465,BRAKE BROS LTD,5811,Catering costs - provisions,314.41,0,314.41
Regeneration and Local Services,Economic Development and Housing,30554,International Relations,Payments In Advance,932001,Payments in advance,10-Feb-17,5747782481,EUROWINGS H8F6TP_1206126,4511,Payments in advance,287.63,0,287.63
Regeneration and Local Services,Economic Development and Housing,30554,International Relations,Payments In Advance,932001,Payments in advance,10-Feb-17,5747782485,EUROWINGS JYJ93G_1206129,4511,Payments in advance,26.15,0,26.15
Regeneration and Local Services,Spatial Policy Planning Assets & Environment,31200,North Pennines Core,Supplies and Services,312011,Newspapers Books and Periodicals,10-Feb-17,5747782521,MAD HATTERS HARDWARE,5251,Books-school library,15.99,2.67,13.32
Regeneration and Local Services,Economic Development and Housing,30749,Employability - Youth Contract,Supplies and Services,342033,Computers and Communications,10-Feb-17,5747782545,WWW.NISBETS.COM,5964,Computer hardware,171.58,0,171.58
Regeneration and Local Services,Economic Development and Housing,30737,Durham Works Flexible Fund,Supplies and Services,384956,Miscellaneous Expenses,10-Feb-17,5747782565,DVLA DRIVER ONLINE,9399,Licences,34,0,34
Adult and Health Services,Head of Adults,53816,Chester View Extra Care,Supplies and Services,384999,Miscellaneous Expenses,10-Feb-17,5747782569,Amazon UK Marketplace,5942,Other expenses,3.69,0,3.69
Regeneration and Local Services,Economic Development and Housing,30737,Durham Works Flexible Fund,Transport,230031,Contract Hire,10-Feb-17,5747782583,WWW.SIMPLYGO.COM,4131,Pupils-transport to play fields etc,18.9,0,18.9
Children and Young Peoples Services,Childrens Services,85957,Secure Management,Supplies and Services,324117,Provisions,10-Feb-17,5747782595,TESCO STORES 6329,5411,Catering costs - provisions,72.13,0,72.13
Regeneration and Local Services,Culture & Sport,11060,Hardwick Park Catering,Supplies and Services,324117,Provisions,10-Feb-17,5747782607,JR HOLLAND FOODSERVICE,5422,Catering costs - provisions,13.72,0,13.72
Regeneration and Local Services,Culture & Sport,11060,Hardwick Park Catering,Supplies and Services,324117,Provisions,10-Feb-17,5747782611,BRAKE BROS LTD,5811,Catering costs - provisions,274.68,45.78,228.9
Regeneration and Local Services,Culture & Sport,11060,Hardwick Park Catering,Supplies and Services,324117,Provisions,10-Feb-17,000005747782611 - 1,BRAKE BROS LTD,5811,Catering costs - provisions,100.14,,100.14
Regeneration and Local Services,Culture & Sport,11060,Hardwick Park Catering,Supplies and Services,324117,Provisions,10-Feb-17,5747782617,BRAKE BROS LTD,5811,Catering costs - provisions,87.72,14.62,73.1
Regeneration and Local Services,Culture & Sport,11060,Hardwick Park Catering,Supplies and Services,324117,Provisions,10-Feb-17,000005747782617 - 1,BRAKE BROS LTD,5811,Catering costs - provisions,99.16,,99.16
Resources,I.C.T. Services,70204,Operations - System & Repairs Team,Supplies and Services,304639,Equipment and Materials,10-Feb-17,5747782623,Amazon UK Marketplace,5942,Technicians-supplies,10.48,0,10.48
Regeneration and Local Services,Direct Services,21234,Catering - Locomotion,Supplies and Services,324117,Provisions,10-Feb-17,5747782627,JR HOLLAND FOODSERVICE,5422,Catering costs - provisions,26.02,0,26.02
Regeneration and Local Services,Direct Services,21234,Catering - Locomotion,Supplies and Services,324117,Provisions,10-Feb-17,5747782631,BRAKE BROS LTD,5811,Catering costs - provisions,170.28,0,170.28
Regeneration and Local Services,Direct Services,10525,Catering - Green Lane,Supplies and Services,324117,Provisions,10-Feb-17,5747782639,JR HOLLAND FOODSERVICE,5422,Catering costs - provisions,38.99,0,38.99
Regeneration and Local Services,Direct Services,10367,C&G - South Grounds Maintenance,Transport,215995,Running Costs of Vehicles,10-Feb-17,5747782681,SNOWBALLS (RAILWAY,5533,Vehicle running expenses,75.03,12.51,62.52
Children and Young Peoples Services,Childrens Services,71443,Stanley One Point Hub,Supplies and Services,324117,Provisions,10-Feb-17,5747782701,ASDA GEORGE COM LEEDS,5411,Catering costs - provisions,91,0,91
Regeneration and Local Services,Direct Services,10367,C&G - South Grounds Maintenance,Supplies and Services,324117,Provisions,10-Feb-17,5747782705,J M RAINE,5399,Catering costs - provisions,152.09,25.35,126.74
Regeneration and Local Services,Culture & Sport,11191,Wellbeing4Life,Supplies and Services,328041,Clothing Uniforms and Laundry,10-Feb-17,5747782707,W BOYES & CO LTD NEWTO,5310,Clothing uniforms and laundry,34.93,0,34.93
Resources,I.C.T. Services,69010,Administration,Supplies and Services,304403,Equipment and Materials,10-Feb-17,5747782731,ADOBE CAPTIVATE SUBS,5734,Other consumables,22.86,0,22.86
Resources,I.C.T. Services,69010,Administration,Supplies and Services,312011,Newspapers Books and Periodicals,10-Feb-17,5747782733,Amazon UK Marketplace,5942,Books-school library,5.56,0,5.56
Resources,I.C.T. Services,69010,Administration,Supplies and Services,304259,Equipment and Materials,10-Feb-17,5747782737,DARLINGTON BC INTERNET,9399,Equipment-purchase and rental,12,0,12
Children and Young Peoples Services,Childrens Services,88013,Seaham 0 - 5,Supplies and Services,304259,Equipment and Materials,10-Feb-17,5747782769,WILKO.COM,5722,Equipment-purchase and rental,14,0,14
Children and Young Peoples Services,Childrens Services,88001,Peterlee Locality,Supplies and Services,308011,Furniture,10-Feb-17,5747782795,J DODDS CARPETS LTD,5713,Furniture repair and replacement,148,0,148
Children and Young Peoples Services,Childrens Services,88001,Peterlee Locality,Supplies and Services,332047,Printing Stationery and Gen Off Exps,10-Feb-17,5747782797,EUROFFICE.CO.UK,5943,Stationery,237.48,39.58,197.9
Regeneration and Local Services,Direct Services,21324,Catering - Meadowfield,Supplies and Services,324117,Provisions,10-Feb-17,5747782817,JR HOLLAND FOODSERVICE,5422,Catering costs - provisions,52.05,0,52.05
Regeneration and Local Services,Direct Services,21324,Catering - Meadowfield,Supplies and Services,324117,Provisions,10-Feb-17,5747782821,JR HOLLAND FOODSERVICE,5422,Catering costs - provisions,9.87,0,9.87
Regeneration and Local Services,Direct Services,10341,Nei.Prot - N. Wardens,Supplies and Services,340001,Postages,10-Feb-17,5747782881,ROYAL MAIL ONLINE SHOP,9402,Postages,64,0,64
Regeneration and Local Services,Culture & Sport,26591,Hardwick Park,Supplies and Services,304649,Equipment and Materials,10-Feb-17,5747782887,WWW.ANGELWHOLESALE.CO.,5641,Toys,87.16,14.53,72.63
Regeneration and Local Services,Culture & Sport,10605,Woodhouse Close Leisure Complex,Supplies and Services,324117,Provisions,10-Feb-17,5747782893,BRAKE BROS LTD,5811,Catering costs - provisions,52.25,0,52.25
Regeneration and Local Services,Spatial Policy Planning Assets & Environment,36000,Asset Management,Employees,40149,Recruitment Instruction and Training,10-Feb-17,5747782899,RICS SUBS UK CYBS,8699,Training-all costs,655,0,655
Children and Young Peoples Services,Childrens Services,71693,Brandon Childrens Centre,Supplies and Services,324117,Provisions,10-Feb-17,5747782901,SAINSBURYS SACAT 0776,5411,Catering costs - provisions,57.29,0,57.29
Children and Young Peoples Services,Childrens Services,71693,Brandon Childrens Centre,Supplies and Services,384999,Miscellaneous Expenses,10-Feb-17,5747782903,PAYPAL DSVCS.CO.UK,5199,Other expenses,566,0,566
Children and Young Peoples Services,Childrens Services,71693,Brandon Childrens Centre,Supplies and Services,304259,Equipment and Materials,10-Feb-17,5747782907,WILKO DURHAM 426,5722,Equipment-purchase and rental,38,0,38
Children and Young Peoples Services,Childrens Services,71693,Brandon Childrens Centre,Supplies and Services,332047,Printing Stationery and Gen Off Exps,10-Feb-17,5747782909,WWW.HOTLINE.CO.UK,5943,Stationery,268.8,0,268.8
Regeneration and Local Services,Spatial Policy Planning Assets & Environment,31200,North Pennines Core,Supplies and Services,324117,Provisions,10-Feb-17,5747782915,STANHOPE PAPER SHOP,5399,Catering costs - provisions,6.86,0,6.86
Children and Young Peoples Services,Childrens Services,85342,9 Cedar Drive Aycliffe,Supplies and Services,324117,Provisions,11-Feb-17,5747782395,TESCO STORES 2916,5411,Catering costs - provisions,37.75,0,37.75
Children and Young Peoples Services,Childrens Services,85342,9 Cedar Drive Aycliffe,Supplies and Services,324117,Provisions,11-Feb-17,5747782399,TESCO STORES 2916,5411,Catering costs - provisions,9.27,0,9.27
Children and Young Peoples Services,Childrens Services,85342,9 Cedar Drive Aycliffe,Supplies and Services,324117,Provisions,11-Feb-17,5747782401,TESCO STORES 2916,5411,Catering costs - provisions,6,0,6
Regeneration and Local Services,Economic Development and Housing,30554,International Relations,Payments In Advance,932001,Payments in advance,11-Feb-17,5747782487,EUROWINGS H8F6TP_1206061,4511,Payments in advance,-128.16,0,-128.16
Children and Young Peoples Services,Childrens Services,85957,Secure Management,Supplies and Services,324117,Provisions,11-Feb-17,5747782597,TESCO STORES 6329,5411,Catering costs - provisions,115.76,0,115.76
Regeneration and Local Services,Culture & Sport,11191,Wellbeing4Life,Supplies and Services,324117,Provisions,11-Feb-17,5747782711,TESCO STORES 2916,5411,Catering costs - provisions,16.48,0,16.48
Children and Young Peoples Services,Childrens Services,88083,Ferryhill 0 - 5,Supplies and Services,324117,Provisions,11-Feb-17,5747782841,SAINSBURYS 2199,5411,Catering costs - provisions,9.6,0,9.6
Regeneration and Local Services,Direct Services,21235,Catering - Wharton Park,Supplies and Services,324117,Provisions,11-Feb-17,5747782869,BRAKE BROS LTD,5811,Catering costs - provisions,190.26,31.71,158.55
Regeneration and Local Services,Direct Services,21235,Catering - Wharton Park,Supplies and Services,324117,Provisions,11-Feb-17,000005747782869 - 1,BRAKE BROS LTD,5811,Catering costs - provisions,49.8,,49.8
Regeneration and Local Services,Economic Development and Housing,30737,Durham Works Flexible Fund,Supplies and Services,328041,Clothing Uniforms and Laundry,11-Feb-17,5754789333,NEW LOOK INTERNET,5621,Clothing uniforms and laundry,-25.98,0,-25.98
Children and Young Peoples Services,Childrens Services,88093,Newton Aycliffe 0 - 5,Supplies and Services,304259,Equipment and Materials,12-Feb-17,5747782367,Amazon UK Marketplace,5942,Equipment-purchase and rental,43.34,0,43.34
Children and Young Peoples Services,Education,75021,Youth Employment Initiative,Supplies and Services,304999,Equipment and Materials,12-Feb-17,5747782381,GOOGLE ADWS7021127990,5968,Misc equipment tools and materials,50,0,50
Children and Young Peoples Services,Childrens Services,85342,9 Cedar Drive Aycliffe,Supplies and Services,308011,Furniture,12-Feb-17,5747782403,DUNELM (SOFT FURNISHIN,5714,Furniture repair and replacement,51.94,0,51.94
Regeneration and Local Services,Economic Development and Housing,30699,Business Growth and Innovation General,Supplies and Services,312011,Newspapers Books and Periodicals,12-Feb-17,5747782405,FASTHOSTS INTERNET,4816,Books-school library,7.79,1.3,6.49
Regeneration and Local Services,Spatial Policy Planning Assets & Environment,31200,North Pennines Core,Supplies and Services,312011,Newspapers Books and Periodicals,12-Feb-17,5747782523,Amazon UK Marketplace,5942,Books-school library,6.54,0,6.54
Children and Young Peoples Services,Childrens Services,88063,Bishop Auckland 0 - 5,Supplies and Services,324117,Provisions,12-Feb-17,5747782543,SAINSBURYS 2199,5411,Catering costs - provisions,32.77,0,32.77
Regeneration and Local Services,Culture & Sport,11191,Wellbeing4Life,Supplies and Services,324117,Provisions,12-Feb-17,5747782713,TESCO STORES 2916,5411,Catering costs - provisions,6,0,6
Regeneration and Local Services,Culture & Sport,11191,Wellbeing4Life,Supplies and Services,384999,Miscellaneous Expenses,12-Feb-17,5747782715,CRAFTERS COMPANION LTD,5970,Other expenses,14.05,0,14.05
Regeneration and Local Services,Culture & Sport,11191,Wellbeing4Life,Supplies and Services,384999,Miscellaneous Expenses,12-Feb-17,5747782717,CRAFTERS COMPANION LTD,5970,Other expenses,-20.9,0,-20.9
Resources,I.C.T. Services,69010,Administration,Supplies and Services,312011,Newspapers Books and Periodicals,12-Feb-17,5747782739,Amazon UK Marketplace,5942,Books-school library,50.95,0,50.95
Regeneration and Local Services,Economic Development and Housing,30554,International Relations,Payments In Advance,932001,Payments in advance,13-Feb-17,5747782489,EUROWINGS H8F6TP_1206126,4511,Payments in advance,7.91,0,7.91
Regeneration and Local Services,Economic Development and Housing,30554,International Relations,Payments In Advance,932001,Payments in advance,13-Feb-17,5747782491,EUROWINGS JYJ93G_1206129,4511,Payments in advance,0.72,0,0.72
Regeneration and Local Services,Economic Development and Housing,30554,International Relations,Payments In Advance,932001,Payments in advance,13-Feb-17,5747782493,EUROWINGS H8F6TP_1206061,4511,Payments in advance,-3.52,0,-3.52
Regeneration and Local Services,Spatial Policy Planning Assets & Environment,31200,North Pennines Core,Supplies and Services,312011,Newspapers Books and Periodicals,13-Feb-17,5747782525,Amazon UK Marketplace,5942,Books-school library,35.3,0,35.3
Children and Young Peoples Services,Education,71801,Selby Cottage Childcare Centre,Supplies and Services,324117,Provisions,13-Feb-17,5754789093,ASDA HOME SHOPPING,5411,Catering costs - provisions,42.63,0,42.63
Children and Young Peoples Services,Childrens Services,88093,Newton Aycliffe 0 - 5,Supplies and Services,324117,Provisions,13-Feb-17,5754789105,ASDA HOME SHOPPING,5411,Catering costs - provisions,28.41,0,28.41
Children and Young Peoples Services,Childrens Services,88093,Newton Aycliffe 0 - 5,Supplies and Services,324117,Provisions,13-Feb-17,5754789109,ASDA HOME SHOPPING,5411,Catering costs - provisions,-1,0,-1
Regeneration and Local Services,Economic Development and Housing,30699,Business Growth and Innovation General,Supplies and Services,304403,Equipment and Materials,13-Feb-17,5754789139,WWW.ELITEINDUSTRIAL.CO,5999,Other consumables,12,2,10
Regeneration and Local Services,Economic Development and Housing,30699,Business Growth and Innovation General,Supplies and Services,304403,Equipment and Materials,13-Feb-17,000005754789139 - 1,WWW.ELITEINDUSTRIAL.CO,5999,Other consumables,3.75,,3.75
Regeneration and Local Services,Direct Services,21242,Catering - County Hall,Supplies and Services,324117,Provisions,13-Feb-17,5754789175,BRAMBLES FOODS LTD,5499,Catering costs - provisions,474.96,0,474.96
Regeneration and Local Services,Direct Services,21242,Catering - County Hall,Supplies and Services,324117,Provisions,13-Feb-17,5754789177,JR HOLLAND FOODSERVICE,5422,Catering costs - provisions,83.94,0,83.94
Regeneration and Local Services,Direct Services,21242,Catering - County Hall,Supplies and Services,324117,Provisions,13-Feb-17,5754789181,JR HOLLAND FOODSERVICE,5422,Catering costs - provisions,13.52,0,13.52
Children and Young Peoples Services,Childrens Services,85361,LAC & Permanence Team 1,Supplies and Services,304259,Equipment and Materials,13-Feb-17,5754789197,GRO HM PASSPORT OFFICE,9399,Equipment-purchase and rental,23.4,0,23.4
Children and Young Peoples Services,Childrens Services,85361,LAC & Permanence Team 1,Supplies and Services,304259,Equipment and Materials,13-Feb-17,5754789199,DURHAM COUNTY COUNCIL,9399,Equipment-purchase and rental,20,0,20
Children and Young Peoples Services,Childrens Services,85361,LAC & Permanence Team 1,Supplies and Services,304259,Equipment and Materials,13-Feb-17,5754789201,DURHAM COUNTY COUNCIL,9399,Equipment-purchase and rental,-20,0,-20
Regeneration and Local Services,Spatial Policy Planning Assets & Environment,31200,North Pennines Core,Supplies and Services,312011,Newspapers Books and Periodicals,13-Feb-17,5754789203,Amazon UK Marketplace,5942,Books-school library,6.93,0,6.93
Children and Young Peoples Services,Childrens Services,85333,Coxhoe Satelite Home,Supplies and Services,312011,Newspapers Books and Periodicals,13-Feb-17,5754789207,Amazon UK Marketplace,5942,Books-school library,28.82,0,28.82
Regeneration and Local Services,Direct Services,10561,Fleet - Morrison Busty Fleet,Transport,215013,Running Costs of Vehicles,13-Feb-17,5754789213,DVLA VEHICLE TAX,9399,Vehicle Excise Duty (VED),232.5,0,232.5
Regeneration and Local Services,Direct Services,10561,Fleet - Morrison Busty Fleet,Transport,215013,Running Costs of Vehicles,13-Feb-17,5754789215,DVLA VEHICLE TAX,9399,Vehicle Excise Duty (VED),232.5,0,232.5
Regeneration and Local Services,Direct Services,10900,Fleet - Meadowfield Fleet,Transport,215013,Running Costs of Vehicles,13-Feb-17,5754789219,DVLA VEHICLE TAX,9399,Vehicle Excise Duty (VED),232.5,0,232.5
Regeneration and Local Services,Direct Services,10561,Fleet - Morrison Busty Fleet,Transport,215013,Running Costs of Vehicles,13-Feb-17,5754789221,DVLA VEHICLE TAX,9399,Vehicle Excise Duty (VED),167.5,0,167.5
Regeneration and Local Services,Direct Services,10561,Fleet - Morrison Busty Fleet,Transport,215013,Running Costs of Vehicles,13-Feb-17,5754789223,DVLA VEHICLE TAX,9399,Vehicle Excise Duty (VED),232.5,0,232.5
Regeneration and Local Services,Direct Services,10561,Fleet - Morrison Busty Fleet,Transport,215013,Running Costs of Vehicles,13-Feb-17,5754789225,DVLA VEHICLE TAX,9399,Vehicle Excise Duty (VED),232.5,0,232.5
Regeneration and Local Services,Direct Services,10900,Fleet - Meadowfield Fleet,Transport,215013,Running Costs of Vehicles,13-Feb-17,5754789229,DVLA VEHICLE TAX,9399,Vehicle Excise Duty (VED),232.5,0,232.5
Regeneration and Local Services,Direct Services,10561,Fleet - Morrison Busty Fleet,Transport,215013,Running Costs of Vehicles,13-Feb-17,5754789231,DVLA VEHICLE TAX,9399,Vehicle Excise Duty (VED),232.5,0,232.5
Regeneration and Local Services,Direct Services,10551,Fleet - Chilton Fleet,Transport,215013,Running Costs of Vehicles,13-Feb-17,5754789233,DVLA VEHICLE TAX,9399,Vehicle Excise Duty (VED),232.5,0,232.5
Regeneration and Local Services,Direct Services,10864,Fleet - Hackworth Road Fleet,Transport,215013,Running Costs of Vehicles,13-Feb-17,5754789235,DVLA VEHICLE TAX,9399,Vehicle Excise Duty (VED),167.5,0,167.5
Regeneration and Local Services,Direct Services,10900,Fleet - Meadowfield Fleet,Transport,215013,Running Costs of Vehicles,13-Feb-17,5754789237,DVLA VEHICLE TAX,9399,Vehicle Excise Duty (VED),167.5,0,167.5
Regeneration and Local Services,Direct Services,10900,Fleet - Meadowfield Fleet,Transport,215013,Running Costs of Vehicles,13-Feb-17,5754789239,DVLA VEHICLE TAX,9399,Vehicle Excise Duty (VED),167.5,0,167.5
Regeneration and Local Services,Direct Services,10900,Fleet - Meadowfield Fleet,Transport,215013,Running Costs of Vehicles,13-Feb-17,5754789245,DVLA VEHICLE TAX,9399,Vehicle Excise Duty (VED),232.5,0,232.5
Regeneration and Local Services,Direct Services,10900,Fleet - Meadowfield Fleet,Transport,215013,Running Costs of Vehicles,13-Feb-17,5754789247,DVLA VEHICLE TAX,9399,Vehicle Excise Duty (VED),167.5,0,167.5
Regeneration and Local Services,Direct Services,10900,Fleet - Meadowfield Fleet,Transport,215013,Running Costs of Vehicles,13-Feb-17,5754789249,DVLA VEHICLE TAX,9399,Vehicle Excise Duty (VED),232.5,0,232.5
Regeneration and Local Services,Direct Services,10551,Fleet - Chilton Fleet,Transport,215013,Running Costs of Vehicles,13-Feb-17,5754789251,DVLA VEHICLE TAX,9399,Vehicle Excise Duty (VED),232.5,0,232.5
Regeneration and Local Services,Direct Services,10561,Fleet - Morrison Busty Fleet,Transport,215013,Running Costs of Vehicles,13-Feb-17,5754789255,DVLA VEHICLE TAX,9399,Vehicle Excise Duty (VED),232.5,0,232.5
Regeneration and Local Services,Direct Services,10900,Fleet - Meadowfield Fleet,Transport,215013,Running Costs of Vehicles,13-Feb-17,5754789257,DVLA VEHICLE TAX,9399,Vehicle Excise Duty (VED),232.5,0,232.5
Regeneration and Local Services,Direct Services,10561,Fleet - Morrison Busty Fleet,Transport,215013,Running Costs of Vehicles,13-Feb-17,5754789259,DVLA VEHICLE TAX,9399,Vehicle Excise Duty (VED),232.5,0,232.5
Regeneration and Local Services,Direct Services,10561,Fleet - Morrison Busty Fleet,Transport,215013,Running Costs of Vehicles,13-Feb-17,5754789261,DVLA VEHICLE TAX,9399,Vehicle Excise Duty (VED),232.5,0,232.5
Regeneration and Local Services,Direct Services,10900,Fleet - Meadowfield Fleet,Transport,215013,Running Costs of Vehicles,13-Feb-17,5754789263,DVLA VEHICLE TAX,9399,Vehicle Excise Duty (VED),232.5,0,232.5
Regeneration and Local Services,Direct Services,10900,Fleet - Meadowfield Fleet,Transport,215013,Running Costs of Vehicles,13-Feb-17,5754789265,DVLA VEHICLE TAX,9399,Vehicle Excise Duty (VED),232.5,0,232.5
Regeneration and Local Services,Direct Services,10551,Fleet - Chilton Fleet,Transport,215013,Running Costs of Vehicles,13-Feb-17,5754789267,DVLA VEHICLE TAX,9399,Vehicle Excise Duty (VED),232.5,0,232.5
Regeneration and Local Services,Direct Services,10900,Fleet - Meadowfield Fleet,Transport,215013,Running Costs of Vehicles,13-Feb-17,5754789269,DVLA VEHICLE TAX,9399,Vehicle Excise Duty (VED),232.5,0,232.5
Regeneration and Local Services,Direct Services,10900,Fleet - Meadowfield Fleet,Transport,215013,Running Costs of Vehicles,13-Feb-17,5754789271,DVLA VEHICLE TAX,9399,Vehicle Excise Duty (VED),232.5,0,232.5
Regeneration and Local Services,Direct Services,10900,Fleet - Meadowfield Fleet,Transport,215013,Running Costs of Vehicles,13-Feb-17,5754789273,DVLA VEHICLE TAX,9399,Vehicle Excise Duty (VED),232.5,0,232.5
Regeneration and Local Services,Direct Services,10900,Fleet - Meadowfield Fleet,Transport,215013,Running Costs of Vehicles,13-Feb-17,5754789275,DVLA VEHICLE TAX,9399,Vehicle Excise Duty (VED),232.5,0,232.5
Regeneration and Local Services,Direct Services,10900,Fleet - Meadowfield Fleet,Transport,215013,Running Costs of Vehicles,13-Feb-17,5754789277,DVLA VEHICLE TAX,9399,Vehicle Excise Duty (VED),232.5,0,232.5
Regeneration and Local Services,Direct Services,10900,Fleet - Meadowfield Fleet,Transport,215013,Running Costs of Vehicles,13-Feb-17,5754789279,DVLA VEHICLE TAX,9399,Vehicle Excise Duty (VED),232.5,0,232.5
Regeneration and Local Services,Direct Services,10900,Fleet - Meadowfield Fleet,Transport,215013,Running Costs of Vehicles,13-Feb-17,5754789281,DVLA VEHICLE TAX,9399,Vehicle Excise Duty (VED),232.5,0,232.5
Regeneration and Local Services,Direct Services,10900,Fleet - Meadowfield Fleet,Transport,215013,Running Costs of Vehicles,13-Feb-17,5754789283,DVLA VEHICLE TAX,9399,Vehicle Excise Duty (VED),232.5,0,232.5
Regeneration and Local Services,Direct Services,10900,Fleet - Meadowfield Fleet,Transport,215013,Running Costs of Vehicles,13-Feb-17,5754789285,DVLA VEHICLE TAX,9399,Vehicle Excise Duty (VED),232.5,0,232.5
Regeneration and Local Services,Direct Services,10551,Fleet - Chilton Fleet,Transport,215013,Running Costs of Vehicles,13-Feb-17,5754789287,DVLA VEHICLE TAX,9399,Vehicle Excise Duty (VED),232.5,0,232.5
Regeneration and Local Services,Direct Services,10900,Fleet - Meadowfield Fleet,Transport,215013,Running Costs of Vehicles,13-Feb-17,5754789291,DVLA VEHICLE TAX,9399,Vehicle Excise Duty (VED),232.5,0,232.5
Regeneration and Local Services,Direct Services,10900,Fleet - Meadowfield Fleet,Transport,215013,Running Costs of Vehicles,13-Feb-17,5754789293,DVLA VEHICLE TAX,9399,Vehicle Excise Duty (VED),232.5,0,232.5
Regeneration and Local Services,Direct Services,10561,Fleet - Morrison Busty Fleet,Transport,215013,Running Costs of Vehicles,13-Feb-17,5754789295,DVLA VEHICLE TAX,9399,Vehicle Excise Duty (VED),232.5,0,232.5
Regeneration and Local Services,Direct Services,10900,Fleet - Meadowfield Fleet,Transport,215013,Running Costs of Vehicles,13-Feb-17,5754789297,DVLA VEHICLE TAX,9399,Vehicle Excise Duty (VED),232.5,0,232.5
Regeneration and Local Services,Direct Services,10864,Fleet - Hackworth Road Fleet,Transport,215013,Running Costs of Vehicles,13-Feb-17,5754789299,DVLA VEHICLE TAX,9399,Vehicle Excise Duty (VED),232.5,0,232.5
Regeneration and Local Services,Direct Services,10551,Fleet - Chilton Fleet,Transport,215013,Running Costs of Vehicles,13-Feb-17,5754789303,DVLA VEHICLE TAX,9399,Vehicle Excise Duty (VED),232.5,0,232.5
Regeneration and Local Services,Direct Services,10900,Fleet - Meadowfield Fleet,Transport,215013,Running Costs of Vehicles,13-Feb-17,5754789305,DVLA VEHICLE TAX,9399,Vehicle Excise Duty (VED),232.5,0,232.5
Children and Young Peoples Services,Childrens Services,71641,Horden Childrens Centre,Supplies and Services,324117,Provisions,13-Feb-17,5754789315,ALDI,5411,Catering costs - provisions,10.43,0,10.43
Children and Young Peoples Services,Education,71732,Dean Bank Childcare,Supplies and Services,324117,Provisions,13-Feb-17,5754789317,ASDA HOME SHOPPING,5411,Catering costs - provisions,41.15,0,41.15
Children and Young Peoples Services,Education,71903,EYDCP-Sustainability EDS,Supplies and Services,324117,Provisions,13-Feb-17,5754789323,TESCO STORES 2371,5411,Catering costs - provisions,14.7,0,14.7
Regeneration and Local Services,Economic Development and Housing,30737,Durham Works Flexible Fund,Transport,230031,Contract Hire,13-Feb-17,5754789331,WWW.SIMPLYGO.COM,4131,Pupils-transport to play fields etc,6.4,0,6.4
Children and Young Peoples Services,Childrens Services,71445,Chester le Street One Point Hub,Supplies and Services,324117,Provisions,13-Feb-17,5754789371,SAINSBURYS 0776,5411,Catering costs - provisions,8.45,0,8.45
Regeneration and Local Services,Direct Services,10367,C&G - South Grounds Maintenance,Supplies and Services,312011,Newspapers Books and Periodicals,13-Feb-17,5754789373,WWW.GUSTHARTS.CO.UK,5251,Books-school library,172.2,28.7,143.5
Regeneration and Local Services,Culture & Sport,11060,Hardwick Park Catering,Supplies and Services,324117,Provisions,13-Feb-17,5754789379,JR HOLLAND FOODSERVICE,5422,Catering costs - provisions,43.55,0,43.55
Regeneration and Local Services,Culture & Sport,54813,Gala Theatre - Technical,Supplies and Services,328041,Clothing Uniforms and Laundry,13-Feb-17,5754789393,WWW.FLINTS.CO.UK,5691,Clothing uniforms and laundry,269.82,44.97,224.85
Regeneration and Local Services,Culture & Sport,54813,Gala Theatre - Technical,Third Party Payments,430100,Rendered by Private Contractors,13-Feb-17,5754789395,WWW.LOCKERKEYS.BIZ,7399,Payments to sub-contractors,63.72,10.62,53.1
Regeneration and Local Services,Economic Development and Housing,30762,Organisational Training & Development,Employees,40149,Recruitment Instruction and Training,13-Feb-17,5754789401,NCS VUE CITB HS&E REV,8299,Training-all costs,487.5,0,487.5
Regeneration and Local Services,Direct Services,21234,Catering - Locomotion,Supplies and Services,324117,Provisions,13-Feb-17,5754789403,BRAMBLES FOODS LTD,5499,Catering costs - provisions,160.51,0,160.51
Regeneration and Local Services,Economic Development and Housing,31500,Housing Solutions - Core Team,Supplies and Services,384999,Miscellaneous Expenses,13-Feb-17,5754789405,WWW.GOV.UK,8999,Other expenses,10,0,10
Regeneration and Local Services,Direct Services,10525,Catering - Green Lane,Supplies and Services,324117,Provisions,13-Feb-17,5754789417,BRAMBLES FOODS LTD,5499,Catering costs - provisions,78.09,0,78.09
Regeneration and Local Services,Direct Services,10525,Catering - Green Lane,Supplies and Services,324117,Provisions,13-Feb-17,5754789421,BRAKE BROS LTD,5811,Catering costs - provisions,126.08,0,126.08
Children and Young Peoples Services,Childrens Services,88063,Bishop Auckland 0 - 5,Supplies and Services,324117,Provisions,13-Feb-17,5754789463,LIDL UK,5411,Catering costs - provisions,24.37,0,24.37
Regeneration and Local Services,Direct Services,20073,Bldg Serv - R&M Div 73 - Gas Servicing,Supplies and Services,372009,Subscriptions,13-Feb-17,5754789523,CAPITA GAS,8699,Subscriptions,"1,803.77",300.63,1503.14
Children and Young Peoples Services,Childrens Services,85333,Coxhoe Satelite Home,Supplies and Services,324117,Provisions,13-Feb-17,5754789527,ALDI,5411,Catering costs - provisions,29.99,0,29.99
Children and Young Peoples Services,Childrens Services,85333,Coxhoe Satelite Home,Supplies and Services,324117,Provisions,13-Feb-17,5754789529,ALDI,5411,Catering costs - provisions,23.92,0,23.92
Children and Young Peoples Services,Childrens Services,85333,Coxhoe Satelite Home,Supplies and Services,312011,Newspapers Books and Periodicals,13-Feb-17,5754789531,HOME BARGAINS,5251,Books-school library,9.65,1.61,8.04
Resources,Resources Management,69000,Resources Management,Supplies and Services,324117,Provisions,13-Feb-17,5754789535,CO-OP GROUP 010592,5411,Catering costs - provisions,4,0,4
Regeneration and Local Services,Culture & Sport,11191,Wellbeing4Life,Supplies and Services,324117,Provisions,13-Feb-17,5754789537,ALDI,5411,Catering costs - provisions,6.92,0,6.92
Resources,I.C.T. Services,69010,Administration,Supplies and Services,342033,Computers and Communications,13-Feb-17,5754789541,SurveyMonkey,7372,Computer hardware,299,49.83,249.17
Resources,I.C.T. Services,69010,Administration,Supplies and Services,304259,Equipment and Materials,13-Feb-17,5754789543,DARLINGTON BC INTERNET,9399,Equipment-purchase and rental,12,0,12
Resources,I.C.T. Services,69010,Administration,Supplies and Services,304259,Equipment and Materials,13-Feb-17,5754789545,DARLINGTON BC INTERNET,9399,Equipment-purchase and rental,12,0,12
Resources,I.C.T. Services,69010,Administration,Supplies and Services,304259,Equipment and Materials,13-Feb-17,5754789547,DARLINGTON BC INTERNET,9399,Equipment-purchase and rental,12,0,12
Regeneration and Local Services,Direct Services,10301,C&G - North Grounds Maintenance,Supplies and Services,304259,Equipment and Materials,13-Feb-17,5754789561,HARELAW SAWMILL,5211,Equipment-purchase and rental,264.59,44.1,220.49
Children and Young Peoples Services,Education,71903,EYDCP-Sustainability EDS,Supplies and Services,328041,Clothing Uniforms and Laundry,13-Feb-17,5754789575,POUNDLAND LTD 1554,5310,Clothing uniforms and laundry,35.3,0,35.3
Regeneration and Local Services,Culture & Sport,54235,Bp Auckland Town Hall Cafe,Supplies and Services,324117,Provisions,13-Feb-17,5754789581,JR HOLLAND FOODSERVICE,5422,Catering costs - provisions,19.29,0,19.29
Regeneration and Local Services,Direct Services,21324,Catering - Meadowfield,Supplies and Services,324117,Provisions,13-Feb-17,5754789587,BRAMBLES FOODS LTD,5499,Catering costs - provisions,79.77,0,79.77
Regeneration and Local Services,Direct Services,10301,C&G - North Grounds Maintenance,Supplies and Services,312011,Newspapers Books and Periodicals,13-Feb-17,5754789593,TOOLSTATION LTD,5251,Books-school library,8.9,1.48,7.42
Children and Young Peoples Services,Childrens Services,88083,Ferryhill 0 - 5,Supplies and Services,324117,Provisions,13-Feb-17,5754789615,ASDA SUPERSTORE 4987,5411,Catering costs - provisions,10.96,0,10.96
Regeneration and Local Services,Economic Development and Housing,30737,Durham Works Flexible Fund,Supplies and Services,304403,Equipment and Materials,13-Feb-17,5754789627,ELECTROMARKET,5065,Other consumables,419.98,0,419.98
Regeneration and Local Services,Economic Development and Housing,30737,Durham Works Flexible Fund,Transport,235057,Public Transport,13-Feb-17,5754789629,WWW.SIMPLYGO.COM,4131,Staff travelling,11.15,0,11.15
Children and Young Peoples Services,Childrens Services,71404,Laurel Avenue Childrens Centre,Supplies and Services,324117,Provisions,13-Feb-17,5754789635,TESCO STORES 2371,5411,Catering costs - provisions,12.09,0,12.09
Regeneration and Local Services,Direct Services,21235,Catering - Wharton Park,Supplies and Services,324117,Provisions,13-Feb-17,5754789639,BRAMBLES FOODS LTD,5499,Catering costs - provisions,40.56,0,40.56
Regeneration and Local Services,Culture & Sport,10605,Woodhouse Close Leisure Complex,Supplies and Services,324117,Provisions,13-Feb-17,5754789643,JR HOLLAND FOODSERVICE,5422,Catering costs - provisions,38.92,0,38.92
Regeneration and Local Services,Spatial Policy Planning Assets & Environment,31200,North Pennines Core,Supplies and Services,340001,Postages,13-Feb-17,5754789651,THE POST OFFICE,9402,Postages,9,0,9
Regeneration and Local Services,Spatial Policy Planning Assets & Environment,31200,North Pennines Core,Supplies and Services,332047,Printing Stationery and Gen Off Exps,13-Feb-17,5754789653,WWW.UKPACKAGING.COM,5111,Stationery,38.48,0,38.48
Children and Young Peoples Services,Childrens Services,85361,LAC & Permanence Team 1,Supplies and Services,304259,Equipment and Materials,13-Feb-17,5758019477,GRO HM PASSPORT OFFICE,9399,Equipment-purchase and rental,-23.4,0,-23.4
Adult and Health Services,Head of Adults,53811,Harbour Lodge Extra Care,Supplies and Services,384999,Miscellaneous Expenses,14-Feb-17,5754789451,Amazon UK Marketplace,5942,Other expenses,11.95,0,11.95
Children and Young Peoples Services,Education,71801,Selby Cottage Childcare Centre,Supplies and Services,324117,Provisions,14-Feb-17,5758019385,ASDA HOME SHOPPING,5411,Catering costs - provisions,77.96,0,77.96
Regeneration and Local Services,Culture & Sport,54004,Newton Aycliffe New Library,Supplies and Services,332047,Printing Stationery and Gen Off Exps,14-Feb-17,5758019401,Amazon UK Marketplace,5942,Stationery,15.98,0,15.98
Adult and Health Services,Head of Adults,51625,Intermediate Care Plus - South,Supplies and Services,340001,Postages,14-Feb-17,5758019403,ROYAL MAIL ONLINE SHOP,9402,Postages,55,0,55
Regeneration and Local Services,Economic Development and Housing,30699,Business Growth and Innovation General,Supplies and Services,352001,Conference Expenses,14-Feb-17,5758019421,KINGSWELL HOTEL,7011,Conferencesseminars fees etc,18.45,3.08,15.37
Regeneration and Local Services,Economic Development and Housing,30699,Business Growth and Innovation General,Transport,235057,Public Transport,14-Feb-17,5758019425,GWR DIDCOT PKWY TO,4112,Staff travelling,158,26.33,131.67
Children and Young Peoples Services,Childrens Services,71440,Barnard Castle One Point Hub,Supplies and Services,312011,Newspapers Books and Periodicals,14-Feb-17,5758019443,Amazon UK Marketplace,5942,Books-school library,28.79,0,28.79
Regeneration and Local Services,Direct Services,21242,Catering - County Hall,Supplies and Services,324117,Provisions,14-Feb-17,5758019447,FREEMAN CATERING BUTCH,5422,Catering costs - provisions,177.53,0,177.53
Regeneration and Local Services,Direct Services,21242,Catering - County Hall,Supplies and Services,324117,Provisions,14-Feb-17,5758019449,JR HOLLAND FOODSERVICE,5422,Catering costs - provisions,33.59,0,33.59
Regeneration and Local Services,Direct Services,21242,Catering - County Hall,Supplies and Services,324117,Provisions,14-Feb-17,5758019453,JR HOLLAND FOODSERVICE,5422,Catering costs - provisions,6.58,0,6.58
Regeneration and Local Services,Direct Services,21242,Catering - County Hall,Supplies and Services,324117,Provisions,14-Feb-17,5758019455,BRAKE BROS LTD,5811,Catering costs - provisions,136.02,0,136.02
Regeneration and Local Services,Direct Services,21242,Catering - County Hall,Supplies and Services,324117,Provisions,14-Feb-17,5758019457,JR HOLLAND FOODSERVICE,5422,Catering costs - provisions,-9.12,0,-9.12
Regeneration and Local Services,Culture & Sport,54812,Gala Theatre - Catering etc,Supplies and Services,324117,Provisions,14-Feb-17,5758019463,JR HOLLAND FOODSERVICE,5422,Catering costs - provisions,31.74,0,31.74
Regeneration and Local Services,Culture & Sport,54812,Gala Theatre - Catering etc,Supplies and Services,324117,Provisions,14-Feb-17,5758019465,BRAKE BROS LTD,5811,Catering costs - provisions,74.94,12.49,62.45
Regeneration and Local Services,Culture & Sport,54812,Gala Theatre - Catering etc,Supplies and Services,324117,Provisions,14-Feb-17,000005758019465 - 1,BRAKE BROS LTD,5811,Catering costs - provisions,111.28,,111.28
Regeneration and Local Services,Culture & Sport,54812,Gala Theatre - Catering etc,Supplies and Services,324117,Provisions,14-Feb-17,5758019467,BRAKE BROS LTD,5811,Catering costs - provisions,31.92,0,31.92
Regeneration and Local Services,Spatial Policy Planning Assets & Environment,31200,North Pennines Core,Supplies and Services,312011,Newspapers Books and Periodicals,14-Feb-17,5758019479,Amazon UK Marketplace,5942,Books-school library,2.96,0,2.96
Regeneration and Local Services,Spatial Policy Planning Assets & Environment,31200,North Pennines Core,Supplies and Services,312011,Newspapers Books and Periodicals,14-Feb-17,5758019481,Amazon UK Marketplace,5942,Books-school library,1.8,0,1.8
Children and Young Peoples Services,Childrens Services,85351,Framwellgate Moor CU,Supplies and Services,324117,Provisions,14-Feb-17,5758019483,ASDA HOME SHOPPING,5411,Catering costs - provisions,133.86,0,133.86
Regeneration and Local Services,Direct Services,10900,Fleet - Meadowfield Fleet,Transport,215013,Running Costs of Vehicles,14-Feb-17,5758019499,DVLA VEHICLE TAX,9399,Vehicle Excise Duty (VED),232.5,0,232.5
Regeneration and Local Services,Direct Services,10900,Fleet - Meadowfield Fleet,Transport,215013,Running Costs of Vehicles,14-Feb-17,5758019503,DVLA VEHICLE TAX,9399,Vehicle Excise Duty (VED),232.5,0,232.5
Regeneration and Local Services,Direct Services,10551,Fleet - Chilton Fleet,Transport,215013,Running Costs of Vehicles,14-Feb-17,5758019505,DVLA VEHICLE TAX,9399,Vehicle Excise Duty (VED),652.5,0,652.5
Regeneration and Local Services,Direct Services,10864,Fleet - Hackworth Road Fleet,Transport,215013,Running Costs of Vehicles,14-Feb-17,5758019509,DVLA VEHICLE TAX,9399,Vehicle Excise Duty (VED),352.5,0,352.5
Regeneration and Local Services,Direct Services,10900,Fleet - Meadowfield Fleet,Transport,215013,Running Costs of Vehicles,14-Feb-17,5758019513,DVLA VEHICLE TAX,9399,Vehicle Excise Duty (VED),232.5,0,232.5
Regeneration and Local Services,Direct Services,10900,Fleet - Meadowfield Fleet,Transport,215013,Running Costs of Vehicles,14-Feb-17,5758019517,DVLA VEHICLE TAX,9399,Vehicle Excise Duty (VED),232.5,0,232.5
Regeneration and Local Services,Direct Services,10900,Fleet - Meadowfield Fleet,Transport,215013,Running Costs of Vehicles,14-Feb-17,5758019521,DVLA VEHICLE TAX,9399,Vehicle Excise Duty (VED),232.5,0,232.5
Regeneration and Local Services,Direct Services,10900,Fleet - Meadowfield Fleet,Transport,215013,Running Costs of Vehicles,14-Feb-17,5758019523,DVLA VEHICLE TAX,9399,Vehicle Excise Duty (VED),232.5,0,232.5
Regeneration and Local Services,Direct Services,10551,Fleet - Chilton Fleet,Transport,215013,Running Costs of Vehicles,14-Feb-17,5758019525,DVLA VEHICLE TAX,9399,Vehicle Excise Duty (VED),352.5,0,352.5
Regeneration and Local Services,Direct Services,10561,Fleet - Morrison Busty Fleet,Transport,215013,Running Costs of Vehicles,14-Feb-17,5758019529,DVLA VEHICLE TAX,9399,Vehicle Excise Duty (VED),652.5,0,652.5
Regeneration and Local Services,Direct Services,10900,Fleet - Meadowfield Fleet,Transport,215013,Running Costs of Vehicles,14-Feb-17,5758019533,DVLA VEHICLE TAX,9399,Vehicle Excise Duty (VED),232.5,0,232.5
Regeneration and Local Services,Direct Services,10561,Fleet - Morrison Busty Fleet,Transport,215013,Running Costs of Vehicles,14-Feb-17,5758019535,DVLA VEHICLE TAX,9399,Vehicle Excise Duty (VED),652.5,0,652.5
Regeneration and Local Services,Direct Services,10900,Fleet - Meadowfield Fleet,Transport,215013,Running Costs of Vehicles,14-Feb-17,5758019537,DVLA VEHICLE TAX,9399,Vehicle Excise Duty (VED),232.5,0,232.5
Regeneration and Local Services,Direct Services,10900,Fleet - Meadowfield Fleet,Transport,215013,Running Costs of Vehicles,14-Feb-17,5758019539,DVLA VEHICLE TAX,9399,Vehicle Excise Duty (VED),232.5,0,232.5
Regeneration and Local Services,Direct Services,10900,Fleet - Meadowfield Fleet,Transport,215013,Running Costs of Vehicles,14-Feb-17,5758019543,DVLA VEHICLE TAX,9399,Vehicle Excise Duty (VED),232.5,0,232.5
Regeneration and Local Services,Direct Services,10900,Fleet - Meadowfield Fleet,Transport,215013,Running Costs of Vehicles,14-Feb-17,5758019545,DVLA VEHICLE TAX,9399,Vehicle Excise Duty (VED),232.5,0,232.5
Regeneration and Local Services,Direct Services,10864,Fleet - Hackworth Road Fleet,Transport,215013,Running Costs of Vehicles,14-Feb-17,5758019549,DVLA VEHICLE TAX,9399,Vehicle Excise Duty (VED),232.5,0,232.5
Children and Young Peoples Services,Childrens Services,88037,One Point YEI,Supplies and Services,304403,Equipment and Materials,14-Feb-17,5758019585,GRO HM PASSPORT OFFICE,9399,Other consumables,9.25,0,9.25
Children and Young Peoples Services,Childrens Services,85957,Secure Management,Supplies and Services,328041,Clothing Uniforms and Laundry,14-Feb-17,5758019595,M and M Direct Ltd,5941,Clothing uniforms and laundry,40.97,0,40.97
Children and Young Peoples Services,Childrens Services,85965,Barnard,Supplies and Services,304649,Equipment and Materials,14-Feb-17,5758019597,Amazon UK Marketplace,5942,Toys,12.99,0,12.99
Regeneration and Local Services,Direct Services,10301,C&G - North Grounds Maintenance,Supplies and Services,304221,Equipment and Materials,14-Feb-17,5758019613,AGRATECH SERVICES,5599,Direct materials,56.1,0,56.1
Regeneration and Local Services,Direct Services,10301,C&G - North Grounds Maintenance,Supplies and Services,304221,Equipment and Materials,14-Feb-17,5758019617,WWW.ARCO.CO.UK,5085,Direct materials,154.22,0,154.22
Regeneration and Local Services,Culture & Sport,11060,Hardwick Park Catering,Supplies and Services,324117,Provisions,14-Feb-17,5758019619,FREEMAN CATERING BUTCH,5422,Catering costs - provisions,54.4,0,54.4
Regeneration and Local Services,Culture & Sport,11060,Hardwick Park Catering,Supplies and Services,324117,Provisions,14-Feb-17,5758019623,FREEMAN CATERING BUTCH,5422,Catering costs - provisions,45.18,0,45.18
Regeneration and Local Services,Culture & Sport,11060,Hardwick Park Catering,Supplies and Services,324117,Provisions,14-Feb-17,5758019625,FREEMAN CATERING BUTCH,5422,Catering costs - provisions,25.35,0,25.35
Regeneration and Local Services,Culture & Sport,11060,Hardwick Park Catering,Supplies and Services,324117,Provisions,14-Feb-17,5758019627,JR HOLLAND FOODSERVICE,5422,Catering costs - provisions,25.03,0,25.03
Regeneration and Local Services,Culture & Sport,11060,Hardwick Park Catering,Supplies and Services,324117,Provisions,14-Feb-17,5758019631,BRAKE BROS LTD,5811,Catering costs - provisions,-5.74,0,-5.74
Resources,I.C.T. Services,65335,Operations - System & Repairs Trading,Supplies and Services,304639,Equipment and Materials,14-Feb-17,5758019639,WWW.ALIEXPRESS.COM,5964,Technicians-supplies,186.4,0,186.4
Children and Young Peoples Services,Childrens Services,85551,Short Break Services-Park Hse Sher,Supplies and Services,304403,Equipment and Materials,14-Feb-17,5758019651,WWW.UKSMOBILITY.CO.UK,5999,Other consumables,22.55,0,22.55
Regeneration and Local Services,Direct Services,21234,Catering - Locomotion,Supplies and Services,324117,Provisions,14-Feb-17,5758019653,JR HOLLAND FOODSERVICE,5422,Catering costs - provisions,47.71,0,47.71
Regeneration and Local Services,Direct Services,10525,Catering - Green Lane,Supplies and Services,324117,Provisions,14-Feb-17,5758019667,BRAKE BROS LTD,5811,Catering costs - provisions,230.88,38.48,192.4
Regeneration and Local Services,Direct Services,10525,Catering - Green Lane,Supplies and Services,324117,Provisions,14-Feb-17,000005758019667 - 1,BRAKE BROS LTD,5811,Catering costs - provisions,133.2,,133.2
Regeneration and Local Services,Direct Services,10525,Catering - Green Lane,Supplies and Services,324117,Provisions,14-Feb-17,5758019675,JR HOLLAND FOODSERVICE,5422,Catering costs - provisions,-1.04,0,-1.04
Dedicated Schools Grant,Dedicated Schools Grant,73911,Pupil Premium,Supplies and Services,304403,Equipment and Materials,14-Feb-17,5758019699,Amazon UK Marketplace,5942,Other consumables,3.54,0,3.54
Dedicated Schools Grant,Dedicated Schools Grant,73911,Pupil Premium,Supplies and Services,304403,Equipment and Materials,14-Feb-17,5758019703,Amazon UK Marketplace,5942,Other consumables,14.9,0,14.9
Dedicated Schools Grant,Dedicated Schools Grant,73911,Pupil Premium,Supplies and Services,304403,Equipment and Materials,14-Feb-17,5758019705,Amazon UK Marketplace,5942,Other consumables,27.96,4.66,23.3
Dedicated Schools Grant,Dedicated Schools Grant,73911,Pupil Premium,Supplies and Services,304403,Equipment and Materials,14-Feb-17,000005758019705 - 1,Amazon UK Marketplace,5942,Other consumables,12.05,,12.05
Dedicated Schools Grant,Dedicated Schools Grant,73911,Pupil Premium,Supplies and Services,304403,Equipment and Materials,14-Feb-17,5758019709,Amazon UK Marketplace,5942,Other consumables,54.95,0,54.95
Regeneration and Local Services,Culture & Sport,11191,Wellbeing4Life,Supplies and Services,324117,Provisions,14-Feb-17,5758019731,ALDI,5411,Catering costs - provisions,10.43,0,10.43
Resources,I.C.T. Services,69010,Administration,Supplies and Services,312011,Newspapers Books and Periodicals,14-Feb-17,5758019747,Amazon UK Marketplace,5942,Books-school library,87.5,0,87.5
Resources,I.C.T. Services,69010,Administration,Supplies and Services,304259,Equipment and Materials,14-Feb-17,5758019749,DISCLOSURE SCOT,9399,Equipment-purchase and rental,25,0,25
Resources,I.C.T. Services,69010,Administration,Supplies and Services,304259,Equipment and Materials,14-Feb-17,5758019753,WWW.ICO.GOV.UK,9399,Equipment-purchase and rental,35,0,35
Regeneration and Local Services,Culture & Sport,54399,Local Delivery-Libraries,Supplies and Services,312009,Newspapers Books and Periodicals,14-Feb-17,5758019773,Amazon Prime,5968,Newspapers books and periodicals,7.99,0,7.99
Regeneration and Local Services,Direct Services,10301,C&G - North Grounds Maintenance,Supplies and Services,304221,Equipment and Materials,14-Feb-17,5758019805,JG PAXTON & SONS LTD,8911,Direct materials,53.78,8.96,44.82
Children and Young Peoples Services,Education,71903,EYDCP-Sustainability EDS,Supplies and Services,328041,Clothing Uniforms and Laundry,14-Feb-17,5758019823,DISCOUNT ARMY SURPLUSS,5655,Clothing uniforms and laundry,50,0,50
Children and Young Peoples Services,Education,71903,EYDCP-Sustainability EDS,Supplies and Services,304259,Equipment and Materials,14-Feb-17,5758019825,B & Q 1343,5211,Equipment-purchase and rental,63.88,0,63.88
Children and Young Peoples Services,Education,71903,EYDCP-Sustainability EDS,Supplies and Services,304259,Equipment and Materials,14-Feb-17,5758019829,HOMEBASE LTD 822,5211,Equipment-purchase and rental,236.96,0,236.96
Children and Young Peoples Services,Education,71903,EYDCP-Sustainability EDS,Supplies and Services,304259,Equipment and Materials,14-Feb-17,5758019831,HOMEBASE LTD 822,5211,Equipment-purchase and rental,42.88,0,42.88
Children and Young Peoples Services,Education,71903,EYDCP-Sustainability EDS,Supplies and Services,328041,Clothing Uniforms and Laundry,14-Feb-17,5758019833,B & M RETAIL,5310,Clothing uniforms and laundry,50.51,0,50.51
Children and Young Peoples Services,Education,71903,EYDCP-Sustainability EDS,Supplies and Services,328041,Clothing Uniforms and Laundry,14-Feb-17,5758019835,B & M RETAIL,5310,Clothing uniforms and laundry,42.95,0,42.95
Children and Young Peoples Services,Education,71903,EYDCP-Sustainability EDS,Supplies and Services,328041,Clothing Uniforms and Laundry,14-Feb-17,5758019839,B & M RETAIL,5310,Clothing uniforms and laundry,-13.01,0,-13.01
Regeneration and Local Services,Transport and Contracted Services,31701,Care Connect All Localities,Supplies and Services,344033,Telephones,14-Feb-17,5758019845,BT BILL PAYMENT 2,4812,Telephones general-all costs,88.47,0,88.47
Regeneration and Local Services,Direct Services,21324,Catering - Meadowfield,Supplies and Services,324117,Provisions,14-Feb-17,5758019857,FREEMAN CATERING BUTCH,5422,Catering costs - provisions,67.21,0,67.21
Regeneration and Local Services,Direct Services,21324,Catering - Meadowfield,Supplies and Services,324117,Provisions,14-Feb-17,5758019863,FREEMAN CATERING BUTCH,5422,Catering costs - provisions,41.88,0,41.88
Regeneration and Local Services,Direct Services,21324,Catering - Meadowfield,Supplies and Services,324117,Provisions,14-Feb-17,5758019865,BRAKE BROS LTD,5811,Catering costs - provisions,67.83,0,67.83
Regeneration and Local Services,Direct Services,10301,C&G - North Grounds Maintenance,Supplies and Services,304221,Equipment and Materials,14-Feb-17,5758019883,GREENHAM TRADING LTD,5085,Direct materials,7.91,1.32,6.59
Regeneration and Local Services,Culture & Sport,11191,Wellbeing4Life,Supplies and Services,324117,Provisions,14-Feb-17,5758019939,SAINSBURYS 2199,5411,Catering costs - provisions,73.35,0,73.35
Regeneration and Local Services,Culture & Sport,11191,Wellbeing4Life,Supplies and Services,324117,Provisions,14-Feb-17,5758019941,SAINSBURYS 2199,5411,Catering costs - provisions,5,0,5
Children and Young Peoples Services,Childrens Services,74000,TTF-Attachment and Results,Supplies and Services,308011,Furniture,14-Feb-17,5758019945,J DODDS CARPETS LTD,5713,Furniture repair and replacement,150,0,150
Regeneration and Local Services,Direct Services,21235,Catering - Wharton Park,Supplies and Services,324117,Provisions,14-Feb-17,5758019947,JR HOLLAND FOODSERVICE,5422,Catering costs - provisions,45.17,0,45.17
Regeneration and Local Services,Spatial Policy Planning Assets & Environment,31200,North Pennines Core,Supplies and Services,372009,Subscriptions,14-Feb-17,5758019995,NEWSQUEST MEDIA,2741,Subscriptions,238.8,0,238.8
Regeneration and Local Services,Economic Development and Housing,30699,Business Growth and Innovation General,Supplies and Services,342033,Computers and Communications,14-Feb-17,5762019851,WATCHFULPAYPAL,7379,Computer hardware,16.05,0,16.05
Children and Young Peoples Services,Childrens Services,71440,Barnard Castle One Point Hub,Supplies and Services,304403,Equipment and Materials,14-Feb-17,5762019875,AMAZON UK RETAIL AMAZO,5999,Other consumables,15.29,0,15.29
Regeneration and Local Services,Culture & Sport,10661,Meadowfield Leisure Centre,Supplies and Services,384956,Miscellaneous Expenses,14-Feb-17,5762019879,TVLICENSING.CO.UK,7392,Licences,145.5,0,145.5
Children and Young Peoples Services,Childrens Services,71443,Stanley One Point Hub,Supplies and Services,304403,Equipment and Materials,14-Feb-17,5762020155,AMAZON UK RETAIL AMAZO,5999,Other consumables,40.5,0,40.5
Dedicated Schools Grant,Dedicated Schools Grant,73911,Pupil Premium,Supplies and Services,304403,Equipment and Materials,14-Feb-17,5762020175,AMAZON UK RETAIL AMAZO,5999,Other consumables,66.77,0,66.77
Regeneration and Local Services,Spatial Policy Planning Assets & Environment,31200,North Pennines Core,Supplies and Services,304403,Equipment and Materials,14-Feb-17,5762020491,AMAZON UK RETAIL AMAZO,5999,Other consumables,16.83,0,16.83
Resources,I.C.T. Services,69010,Administration,Supplies and Services,312011,Newspapers Books and Periodicals,15-Feb-17,5758019755,Amazon UK Marketplace,5942,Books-school library,8.47,0,8.47
Regeneration and Local Services,Economic Development and Housing,31500,Housing Solutions - Core Team,Supplies and Services,352001,Conference Expenses,15-Feb-17,5762019793,TRAVELODGE,3615,Conferencesseminars fees etc,59.9,0,59.9
Children and Young Peoples Services,Education,78411,16-19 Education & Training,Supplies and Services,340001,Postages,15-Feb-17,5762019805,ROYAL MAIL ONLINE SHOP,9402,Postages,495,0,495
Dedicated Schools Grant,Dedicated Schools Grant,73911,Pupil Premium,Supplies and Services,332047,Printing Stationery and Gen Off Exps,15-Feb-17,5762019811,Amazon UK Marketplace,5942,Stationery,41.12,0,41.12
Children and Young Peoples Services,Childrens Services,85957,Secure Management,Supplies and Services,384871,Miscellaneous Expenses,15-Feb-17,5762019841,Amazon UK Marketplace,5942,Training-other activities,10,0,10
Children and Young Peoples Services,Childrens Services,85957,Secure Management,Supplies and Services,384985,Miscellaneous Expenses,15-Feb-17,5762019843,GRANITE SAFES LTD,5251,Miscellaneous-special facilities,132,22,110
Children and Young Peoples Services,Childrens Services,85342,9 Cedar Drive Aycliffe,Supplies and Services,324117,Provisions,15-Feb-17,5762019845,TESCO STORES 2916,5411,Catering costs - provisions,15.27,0,15.27
Regeneration and Local Services,Direct Services,10367,C&G - South Grounds Maintenance,Supplies and Services,304259,Equipment and Materials,15-Feb-17,5762019859,SCREWFIX,5211,Equipment-purchase and rental,32.98,5.5,27.48
Children and Young Peoples Services,Childrens Services,71440,Barnard Castle One Point Hub,Supplies and Services,312011,Newspapers Books and Periodicals,15-Feb-17,5762019871,Amazon UK Marketplace,5942,Books-school library,7.45,0,7.45
Regeneration and Local Services,Economic Development and Housing,30737,Durham Works Flexible Fund,Supplies and Services,304259,Equipment and Materials,15-Feb-17,5762019881,SCREWFIX DIRECT,5211,Equipment-purchase and rental,48.97,0,48.97
Regeneration and Local Services,Direct Services,21242,Catering - County Hall,Supplies and Services,324117,Provisions,15-Feb-17,5762019887,JR HOLLAND FOODSERVICE,5422,Catering costs - provisions,161.83,0,161.83
Regeneration and Local Services,Direct Services,21242,Catering - County Hall,Supplies and Services,324117,Provisions,15-Feb-17,5762019893,JR HOLLAND FOODSERVICE,5422,Catering costs - provisions,37.39,0,37.39
Regeneration and Local Services,Direct Services,21242,Catering - County Hall,Supplies and Services,324117,Provisions,15-Feb-17,5762019899,JR HOLLAND FOODSERVICE,5422,Catering costs - provisions,31.35,0,31.35
Children and Young Peoples Services,Education,70169,Durham SSP,Supplies and Services,384199,Miscellaneous Expenses,15-Feb-17,5762019905,WH SMITH,5994,Other hired and contracted services,30,0,30
Resources,I.C.T. Services,65464,Domains,Supplies and Services,372009,Subscriptions,15-Feb-17,5762019913,WEB NETWORKSOLUTIONS,5968,Subscriptions,49.38,0,49.38
Children and Young Peoples Services,Childrens Services,85361,LAC & Permanence Team 1,Supplies and Services,304259,Equipment and Materials,15-Feb-17,5762019933,GRO HM PASSPORT OFFICE,9399,Equipment-purchase and rental,18.5,0,18.5
Regeneration and Local Services,Direct Services,10551,Fleet - Chilton Fleet,Transport,215013,Running Costs of Vehicles,15-Feb-17,5762019957,DVLA VEHICLE TAX,9399,Vehicle Excise Duty (VED),652.5,0,652.5
Regeneration and Local Services,Direct Services,10551,Fleet - Chilton Fleet,Transport,215013,Running Costs of Vehicles,15-Feb-17,5762019961,DVLA VEHICLE TAX,9399,Vehicle Excise Duty (VED),652.5,0,652.5
Regeneration and Local Services,Direct Services,10864,Fleet - Hackworth Road Fleet,Transport,215013,Running Costs of Vehicles,15-Feb-17,5762019963,DVLA VEHICLE TAX,9399,Vehicle Excise Duty (VED),652.5,0,652.5
Regeneration and Local Services,Direct Services,10864,Fleet - Hackworth Road Fleet,Transport,215013,Running Costs of Vehicles,15-Feb-17,5762019967,DVLA VEHICLE TAX,9399,Vehicle Excise Duty (VED),652.5,0,652.5
Regeneration and Local Services,Direct Services,10551,Fleet - Chilton Fleet,Transport,215013,Running Costs of Vehicles,15-Feb-17,5762019973,DVLA VEHICLE TAX,9399,Vehicle Excise Duty (VED),652.5,0,652.5
Regeneration and Local Services,Direct Services,10864,Fleet - Hackworth Road Fleet,Transport,215013,Running Costs of Vehicles,15-Feb-17,5762019975,DVLA VEHICLE TAX,9399,Vehicle Excise Duty (VED),652.5,0,652.5
Regeneration and Local Services,Direct Services,10551,Fleet - Chilton Fleet,Transport,215013,Running Costs of Vehicles,15-Feb-17,5762019979,DVLA VEHICLE TAX,9399,Vehicle Excise Duty (VED),652.5,0,652.5
Regeneration and Local Services,Direct Services,10551,Fleet - Chilton Fleet,Transport,215013,Running Costs of Vehicles,15-Feb-17,5762019981,DVLA VEHICLE TAX,9399,Vehicle Excise Duty (VED),652.5,0,652.5
Regeneration and Local Services,Direct Services,10551,Fleet - Chilton Fleet,Transport,215013,Running Costs of Vehicles,15-Feb-17,5762019985,DVLA VEHICLE TAX,9399,Vehicle Excise Duty (VED),652.5,0,652.5
Regeneration and Local Services,Direct Services,10551,Fleet - Chilton Fleet,Transport,215013,Running Costs of Vehicles,15-Feb-17,5762019987,DVLA VEHICLE TAX,9399,Vehicle Excise Duty (VED),652.5,0,652.5
Regeneration and Local Services,Direct Services,10551,Fleet - Chilton Fleet,Transport,215013,Running Costs of Vehicles,15-Feb-17,5762019991,DVLA VEHICLE TAX,9399,Vehicle Excise Duty (VED),652.5,0,652.5
Regeneration and Local Services,Direct Services,10561,Fleet - Morrison Busty Fleet,Transport,215013,Running Costs of Vehicles,15-Feb-17,5762019993,DVLA VEHICLE TAX,9399,Vehicle Excise Duty (VED),652.5,0,652.5
Regeneration and Local Services,Direct Services,10864,Fleet - Hackworth Road Fleet,Transport,215013,Running Costs of Vehicles,15-Feb-17,5762019997,DVLA VEHICLE TAX,9399,Vehicle Excise Duty (VED),652.5,0,652.5
Regeneration and Local Services,Direct Services,10551,Fleet - Chilton Fleet,Transport,215013,Running Costs of Vehicles,15-Feb-17,5762019999,DVLA VEHICLE TAX,9399,Vehicle Excise Duty (VED),652.5,0,652.5
Regeneration and Local Services,Direct Services,10864,Fleet - Hackworth Road Fleet,Transport,215013,Running Costs of Vehicles,15-Feb-17,5762020003,DVLA VEHICLE TAX,9399,Vehicle Excise Duty (VED),652.5,0,652.5
Regeneration and Local Services,Direct Services,10551,Fleet - Chilton Fleet,Transport,215013,Running Costs of Vehicles,15-Feb-17,5762020005,DVLA VEHICLE TAX,9399,Vehicle Excise Duty (VED),652.5,0,652.5
Regeneration and Local Services,Direct Services,10551,Fleet - Chilton Fleet,Transport,215013,Running Costs of Vehicles,15-Feb-17,5762020007,DVLA VEHICLE TAX,9399,Vehicle Excise Duty (VED),652.5,0,652.5
Children and Young Peoples Services,Childrens Services,88063,Bishop Auckland 0 - 5,Supplies and Services,328041,Clothing Uniforms and Laundry,15-Feb-17,5762020011,W BOYES & CO LTD BISHO,5310,Clothing uniforms and laundry,5.52,0,5.52
Children and Young Peoples Services,Childrens Services,88063,Bishop Auckland 0 - 5,Supplies and Services,324117,Provisions,15-Feb-17,5762020013,WM MORRISON 040,5411,Catering costs - provisions,9,0,9
Children and Young Peoples Services,Education,71732,Dean Bank Childcare,Supplies and Services,312011,Newspapers Books and Periodicals,15-Feb-17,5762020021,HOME BARGAINS SPENNYMO,5251,Books-school library,13.33,0,13.33
Children and Young Peoples Services,Childrens Services,85957,Secure Management,Supplies and Services,304649,Equipment and Materials,15-Feb-17,5762020041,Amazon UK Marketplace,5942,Toys,9.99,0,9.99
Children and Young Peoples Services,Childrens Services,85957,Secure Management,Supplies and Services,324117,Provisions,15-Feb-17,5762020045,TESCO STORES 6329,5411,Catering costs - provisions,121.32,0,121.32
Regeneration and Local Services,Direct Services,10301,C&G - North Grounds Maintenance,Supplies and Services,328041,Clothing Uniforms and Laundry,15-Feb-17,5762020049,THOMAS OWEN & SONS /N/,5611,Clothing uniforms and laundry,377.39,62.9,314.49
Regeneration and Local Services,Direct Services,10301,C&G - North Grounds Maintenance,Supplies and Services,304259,Equipment and Materials,15-Feb-17,5762020053,HARELAW SAWMILL,5211,Equipment-purchase and rental,35.8,5.97,29.83
Regeneration and Local Services,Direct Services,10301,C&G - North Grounds Maintenance,Third Party Payments,430100,Rendered by Private Contractors,15-Feb-17,5762020055,JOHN WARREN (ANIMAL BY,7399,Payments to sub-contractors,7.2,0,7.2
Regeneration and Local Services,Culture & Sport,11060,Hardwick Park Catering,Supplies and Services,324117,Provisions,15-Feb-17,5762020059,JR HOLLAND FOODSERVICE,5422,Catering costs - provisions,59.28,0,59.28
Regeneration and Local Services,Culture & Sport,11060,Hardwick Park Catering,Supplies and Services,324117,Provisions,15-Feb-17,5762020065,JR HOLLAND FOODSERVICE,5422,Catering costs - provisions,12.02,0,12.02
Regeneration and Local Services,Culture & Sport,11060,Hardwick Park Catering,Supplies and Services,324117,Provisions,15-Feb-17,5762020069,BRAKE BROS LTD,5811,Catering costs - provisions,122.46,20.41,102.05
Regeneration and Local Services,Culture & Sport,11060,Hardwick Park Catering,Supplies and Services,324117,Provisions,15-Feb-17,000005762020069 - 1,BRAKE BROS LTD,5811,Catering costs - provisions,85.5,,85.5
Regeneration and Local Services,Culture & Sport,11060,Hardwick Park Catering,Supplies and Services,324117,Provisions,15-Feb-17,5762020073,BRAKE BROS LTD,5811,Catering costs - provisions,49.26,0,49.26
Regeneration and Local Services,Direct Services,21234,Catering - Locomotion,Supplies and Services,324117,Provisions,15-Feb-17,5762020085,BRAKE BROS LTD,5811,Catering costs - provisions,31.2,5.2,26
Regeneration and Local Services,Direct Services,21234,Catering - Locomotion,Supplies and Services,324117,Provisions,15-Feb-17,000005762020085 - 1,BRAKE BROS LTD,5811,Catering costs - provisions,246.27,,246.27
Regeneration and Local Services,Direct Services,10525,Catering - Green Lane,Supplies and Services,324117,Provisions,15-Feb-17,5762020097,JR HOLLAND FOODSERVICE,5422,Catering costs - provisions,42.85,0,42.85
Children and Young Peoples Services,Childrens Services,85332,Middlestone Moor CU,Supplies and Services,364352,Grants to Voluntary Organisations,15-Feb-17,5762020127,AIRBNB,7011,Leaving care-accommodation,209,0,209
Children and Young Peoples Services,Childrens Services,85332,Middlestone Moor CU,Employees,5001,Pay,15-Feb-17,5762020129,Trainline,4112,Pay,84.3,0,84.3
Children and Young Peoples Services,Childrens Services,85332,Middlestone Moor CU,Transport,235057,Public Transport,15-Feb-17,5762020131,NATIONAL RAILCARD,4112,Staff travelling,30,0,30
Children and Young Peoples Services,Childrens Services,88063,Bishop Auckland 0 - 5,Supplies and Services,312011,Newspapers Books and Periodicals,15-Feb-17,5762020149,Amazon UK Marketplace,5942,Books-school library,84.73,0,84.73
Children and Young Peoples Services,Childrens Services,88063,Bishop Auckland 0 - 5,Supplies and Services,324117,Provisions,15-Feb-17,5762020151,WM MORRISON 040,5411,Catering costs - provisions,3.5,0,3.5
Resources,Corporate Finance,69800,Corporate Procurement,Supplies and Services,312011,Newspapers Books and Periodicals,15-Feb-17,5762020159,Amazon UK Marketplace,5942,Books-school library,5.63,0,5.63
Dedicated Schools Grant,Dedicated Schools Grant,73911,Pupil Premium,Supplies and Services,304403,Equipment and Materials,15-Feb-17,5762020161,Amazon UK Marketplace,5942,Other consumables,89.65,0,89.65
Dedicated Schools Grant,Dedicated Schools Grant,73911,Pupil Premium,Supplies and Services,304403,Equipment and Materials,15-Feb-17,5762020165,Amazon UK Marketplace,5942,Other consumables,33.05,0,33.05
Dedicated Schools Grant,Dedicated Schools Grant,73911,Pupil Premium,Supplies and Services,304403,Equipment and Materials,15-Feb-17,5762020167,Amazon UK Marketplace,5942,Other consumables,27.96,0,27.96
Dedicated Schools Grant,Dedicated Schools Grant,73911,Pupil Premium,Supplies and Services,304403,Equipment and Materials,15-Feb-17,5762020169,Amazon UK Marketplace,5942,Other consumables,87.2,0,87.2
Dedicated Schools Grant,Dedicated Schools Grant,73911,Pupil Premium,Supplies and Services,304403,Equipment and Materials,15-Feb-17,5762020173,Amazon UK Marketplace,5942,Other consumables,55.8,0,55.8
Regeneration and Local Services,Direct Services,10367,C&G - South Grounds Maintenance,Supplies and Services,304259,Equipment and Materials,15-Feb-17,5762020181,JEWSON LTD,5211,Equipment-purchase and rental,235.01,39.17,195.84
Regeneration and Local Services,Economic Development and Housing,31576,B& B - Temp Accom,Supplies and Services,364320,Grants to Voluntary Organisations,15-Feb-17,5762020193,TRAVELODGE,3615,Accommodation assistance,50,0,50
Children and Young Peoples Services,Childrens Services,85333,Coxhoe Satelite Home,Supplies and Services,324117,Provisions,15-Feb-17,5762020195,CO-OP GROUP 310016,5411,Catering costs - provisions,25.17,0,25.17
Children and Young Peoples Services,Childrens Services,88043,Consett 0 - 5,Supplies and Services,312011,Newspapers Books and Periodicals,15-Feb-17,5762020203,Amazon UK Marketplace,5942,Books-school library,10.8,0,10.8
Children and Young Peoples Services,Childrens Services,88043,Consett 0 - 5,Supplies and Services,312011,Newspapers Books and Periodicals,15-Feb-17,5762020205,Amazon UK Marketplace,5942,Books-school library,14.82,0,14.82
Children and Young Peoples Services,Childrens Services,88043,Consett 0 - 5,Supplies and Services,312011,Newspapers Books and Periodicals,15-Feb-17,5762020207,Amazon EU,5969,Books-school library,108.97,0,108.97
Children and Young Peoples Services,Childrens Services,88043,Consett 0 - 5,Supplies and Services,324117,Provisions,15-Feb-17,5762020209,TESCO STORES 4358,5411,Catering costs - provisions,36.66,0,36.66
Children and Young Peoples Services,Childrens Services,88043,Consett 0 - 5,Supplies and Services,304403,Equipment and Materials,15-Feb-17,5762020213,AMAZON UK RETAIL AMAZO,5999,Other consumables,20.53,0,20.53
Resources,I.C.T. Services,69010,Administration,Supplies and Services,312011,Newspapers Books and Periodicals,15-Feb-17,5762020219,Amazon UK Marketplace,5942,Books-school library,5.75,0,5.75
Resources,I.C.T. Services,69010,Administration,Supplies and Services,312011,Newspapers Books and Periodicals,15-Feb-17,5762020221,Amazon UK Marketplace,5942,Books-school library,8.99,0,8.99
Resources,I.C.T. Services,69010,Administration,Supplies and Services,348037,Subsistence,15-Feb-17,5762020225,THE BRISTOL HOTEL,5813,Subsistence,135,0,135
Regeneration and Local Services,Culture & Sport,54399,Local Delivery-Libraries,Supplies and Services,312011,Newspapers Books and Periodicals,15-Feb-17,5762020259,Amazon UK Marketplace,5942,Books-school library,15.81,0,15.81
Regeneration and Local Services,Direct Services,10301,C&G - North Grounds Maintenance,Supplies and Services,304999,Equipment and Materials,15-Feb-17,5762020281,NEW ROW FARM NURSERIES,5193,Misc equipment tools and materials,489.89,81.65,408.24
Regeneration and Local Services,Direct Services,10301,C&G - North Grounds Maintenance,Supplies and Services,304259,Equipment and Materials,15-Feb-17,5762020285,HARELAW SAWMILL,5211,Equipment-purchase and rental,273.6,45.6,228
Children and Young Peoples Services,Childrens Services,88001,Peterlee Locality,Supplies and Services,304259,Equipment and Materials,15-Feb-17,5762020297,WILKO RETAIL LIMIT,5722,Equipment-purchase and rental,5.75,0,5.75
Children and Young Peoples Services,Childrens Services,88001,Peterlee Locality,Supplies and Services,304259,Equipment and Materials,15-Feb-17,5762020301,WILKO.COM,5722,Equipment-purchase and rental,22,0,22
Regeneration and Local Services,Culture & Sport,54235,Bp Auckland Town Hall Cafe,Supplies and Services,324117,Provisions,15-Feb-17,5762020309,JR HOLLAND FOODSERVICE,5422,Catering costs - provisions,42.92,0,42.92
Regeneration and Local Services,Transport and Contracted Services,31701,Care Connect All Localities,Supplies and Services,344033,Telephones,15-Feb-17,5762020315,BT BILL PAYMENT 2,4812,Telephones general-all costs,127.91,0,127.91
Regeneration and Local Services,Transport and Contracted Services,31701,Care Connect All Localities,Supplies and Services,344033,Telephones,15-Feb-17,5762020319,BT BILL PAYMENT 2,4812,Telephones general-all costs,127.91,0,127.91
Regeneration and Local Services,Direct Services,21324,Catering - Meadowfield,Supplies and Services,324117,Provisions,15-Feb-17,5762020355,JR HOLLAND FOODSERVICE,5422,Catering costs - provisions,59.6,0,59.6
Regeneration and Local Services,Direct Services,21324,Catering - Meadowfield,Supplies and Services,324117,Provisions,15-Feb-17,5762020359,JR HOLLAND FOODSERVICE,5422,Catering costs - provisions,13.45,0,13.45
Regeneration and Local Services,Direct Services,21324,Catering - Meadowfield,Supplies and Services,324117,Provisions,15-Feb-17,5762020363,BRAKE BROS LTD,5811,Catering costs - provisions,150.06,25.01,125.05
Regeneration and Local Services,Direct Services,21324,Catering - Meadowfield,Supplies and Services,324117,Provisions,15-Feb-17,000005762020363 - 1,BRAKE BROS LTD,5811,Catering costs - provisions,63.37,,63.37
Regeneration and Local Services,Direct Services,10301,C&G - North Grounds Maintenance,Supplies and Services,312011,Newspapers Books and Periodicals,15-Feb-17,5762020383,TOOLSTATION LTD,5251,Books-school library,5.62,0.94,4.68
Children and Young Peoples Services,Childrens Services,74000,TTF-Attachment and Results,Supplies and Services,304403,Equipment and Materials,15-Feb-17,5762020429,TESCO - Seller_IST_1_2,5999,Other consumables,139.98,0,139.98
Regeneration and Local Services,Direct Services,21235,Catering - Wharton Park,Supplies and Services,324117,Provisions,15-Feb-17,5762020441,JR HOLLAND FOODSERVICE,5422,Catering costs - provisions,11.02,0,11.02
Regeneration and Local Services,Culture & Sport,10605,Woodhouse Close Leisure Complex,Supplies and Services,324117,Provisions,15-Feb-17,5762020445,JR HOLLAND FOODSERVICE,5422,Catering costs - provisions,41.83,0,41.83
Regeneration and Local Services,Culture & Sport,11225,Locality 2 Team Management,Supplies and Services,304403,Equipment and Materials,15-Feb-17,5762020463,HOMEPLAN DIY LIMITED,5231,Other consumables,9.63,0,9.63
Children and Young Peoples Services,Childrens Services,71693,Brandon Childrens Centre,Supplies and Services,312011,Newspapers Books and Periodicals,15-Feb-17,5762020467,THE BOOK PEOPLE,5942,Books-school library,18,0,18
Children and Young Peoples Services,Childrens Services,71693,Brandon Childrens Centre,Supplies and Services,312011,Newspapers Books and Periodicals,15-Feb-17,5762020471,THE BOOK PEOPLE,5942,Books-school library,11,0,11
Children and Young Peoples Services,Childrens Services,71693,Brandon Childrens Centre,Supplies and Services,304403,Equipment and Materials,15-Feb-17,5762020473,AMAZON.CO.UK,5999,Other consumables,11.98,0,11.98
Regeneration and Local Services,Spatial Policy Planning Assets & Environment,31200,North Pennines Core,Supplies and Services,324117,Provisions,15-Feb-17,5762020487,SCOTMID CO-OP STANHOPE,5411,Catering costs - provisions,2.29,0,2.29
Children and Young Peoples Services,Childrens Services,85965,Barnard,Supplies and Services,332047,Printing Stationery and Gen Off Exps,15-Feb-17,5766338087,SEAWHITE OF BRIGHT,5943,Stationery,23.45,0,23.45
Resources,I.C.T. Services,65321,Operations,Supplies and Services,342033,Computers and Communications,15-Feb-17,5766338127,BT BUSINESS DIRECT LTD,5045,Computer hardware,296.54,49.42,247.12
Children and Young Peoples Services,Childrens Services,88043,Consett 0 - 5,Supplies and Services,304403,Equipment and Materials,15-Feb-17,5766338299,AMAZON UK RETAIL AMAZO,5999,Other consumables,105.89,0,105.89
Children and Young Peoples Services,Childrens Services,88001,Peterlee Locality,Supplies and Services,352001,Conference Expenses,15-Feb-17,5766338427,TVLICENSING.CO.UK,7392,Conferencesseminars fees etc,145.5,0,145.5
Regeneration and Local Services,Direct Services,10367,C&G - South Grounds Maintenance,Transport,215995,Running Costs of Vehicles,15-Feb-17,5771533319,SNOWBALLS (RAILWAY,5533,Vehicle running expenses,99.81,16.64,83.17
Regeneration and Local Services,Economic Development and Housing,30699,Business Growth and Innovation General,Supplies and Services,342033,Computers and Communications,16-Feb-17,5762019855,WATCHFULPAYPAL,7379,Computer hardware,0.44,0,0.44
Resources,I.C.T. Services,65464,Domains,Supplies and Services,372009,Subscriptions,16-Feb-17,5762019919,WEB NETWORKSOLUTIONS,5968,Subscriptions,1.36,0,1.36
Children and Young Peoples Services,Childrens Services,85957,Secure Management,Supplies and Services,338057,Services,16-Feb-17,5762020043,Amazon UK Marketplace,5942,Medical fees,33.9,0,33.9
Regeneration and Local Services,Economic Development and Housing,31500,Housing Solutions - Core Team,Supplies and Services,352001,Conference Expenses,16-Feb-17,5766337853,TRAVELODGE,3615,Conferencesseminars fees etc,59,0,59
Children and Young Peoples Services,Childrens Services,85957,Secure Management,Supplies and Services,312011,Newspapers Books and Periodicals,16-Feb-17,5766337899,Amazon UK Marketplace,5942,Books-school library,135.99,0,135.99
Children and Young Peoples Services,Childrens Services,85957,Secure Management,Supplies and Services,304649,Equipment and Materials,16-Feb-17,5766337905,Amazon UK Marketplace,5942,Toys,69.95,0,69.95
Children and Young Peoples Services,Childrens Services,85957,Secure Management,Supplies and Services,304259,Equipment and Materials,16-Feb-17,5766337911,VAX LTD,5722,Equipment-purchase and rental,19.98,3.33,16.65
Regeneration and Local Services,Economic Development and Housing,30699,Business Growth and Innovation General,Supplies and Services,336005,Advertising,16-Feb-17,5766337935,ADROLL,7311,Advertising other than for staff,1.47,0,1.47
Regeneration and Local Services,Economic Development and Housing,30699,Business Growth and Innovation General,Supplies and Services,312011,Newspapers Books and Periodicals,16-Feb-17,5766337939,FASTHOSTS INTERNET,4816,Books-school library,7.79,1.3,6.49
Regeneration and Local Services,Direct Services,21242,Catering - County Hall,Supplies and Services,324117,Provisions,16-Feb-17,5766337981,JR HOLLAND FOODSERVICE,5422,Catering costs - provisions,75.2,0,75.2
Regeneration and Local Services,Direct Services,21242,Catering - County Hall,Supplies and Services,324117,Provisions,16-Feb-17,5766337989,JR HOLLAND FOODSERVICE,5422,Catering costs - provisions,13.16,0,13.16
Regeneration and Local Services,Culture & Sport,54812,Gala Theatre - Catering etc,Supplies and Services,324117,Provisions,16-Feb-17,5766337999,JR HOLLAND FOODSERVICE,5422,Catering costs - provisions,62.34,0,62.34
Regeneration and Local Services,Technical Services,10807,Head of Technical Services Management & PA,Supplies and Services,312009,Newspapers Books and Periodicals,16-Feb-17,5766338033,TRANSPORT TIMES EVENTS,7399,Newspapers books and periodicals,99,0,99
Regeneration and Local Services,Direct Services,10301,C&G - North Grounds Maintenance,Supplies and Services,304259,Equipment and Materials,16-Feb-17,5766338053,HARELAW SAWMILL,5211,Equipment-purchase and rental,196.41,32.74,163.67
Regeneration and Local Services,Economic Development and Housing,30737,Durham Works Flexible Fund,Transport,230031,Contract Hire,16-Feb-17,5766338059,ARRIVA PASSENGER S,7538,Pupils-transport to play fields etc,85.5,0,85.5
Children and Young Peoples Services,Childrens Services,85965,Barnard,Supplies and Services,304649,Equipment and Materials,16-Feb-17,5766338085,Amazon UK Marketplace,5942,Toys,5.06,0,5.06
Children and Young Peoples Services,Childrens Services,85957,Secure Management,Supplies and Services,324117,Provisions,16-Feb-17,5766338089,TESCO STORES 6329,5411,Catering costs - provisions,79.35,0,79.35
Children and Young Peoples Services,Childrens Services,85957,Secure Management,Supplies and Services,328041,Clothing Uniforms and Laundry,16-Feb-17,5766338091,VERY.CO.UK,5964,Clothing uniforms and laundry,45,0,45
Children and Young Peoples Services,Childrens Services,85957,Secure Management,Supplies and Services,328041,Clothing Uniforms and Laundry,16-Feb-17,5766338093,VERY.CO.UK,5964,Clothing uniforms and laundry,3.99,0,3.99
Regeneration and Local Services,Culture & Sport,11060,Hardwick Park Catering,Supplies and Services,324117,Provisions,16-Feb-17,5766338105,JR HOLLAND FOODSERVICE,5422,Catering costs - provisions,29.79,0,29.79
Resources,I.C.T. Services,65335,Operations - System & Repairs Trading,Supplies and Services,304639,Equipment and Materials,16-Feb-17,5766338129,THE REPLACE BASE LTD,7699,Technicians-supplies,124.64,20.77,103.87
Regeneration and Local Services,Culture & Sport,11210,Parks & Countryside,Supplies and Services,304999,Equipment and Materials,16-Feb-17,5766338133,WWW.EQUIPASHOP.IE,5072,Misc equipment tools and materials,15.54,2.59,12.95
Regeneration and Local Services,Culture & Sport,11210,Parks & Countryside,Supplies and Services,304999,Equipment and Materials,16-Feb-17,000005766338133 - 1,WWW.EQUIPASHOP.IE,5072,Misc equipment tools and materials,5.4,,5.4
Children and Young Peoples Services,Childrens Services,85551,Short Break Services-Park Hse Sher,Supplies and Services,304259,Equipment and Materials,16-Feb-17,5766338143,OFSTED INTERNET,9399,Equipment-purchase and rental,722,0,722
Regeneration and Local Services,Direct Services,21234,Catering - Locomotion,Supplies and Services,324117,Provisions,16-Feb-17,5766338149,BRAKE BROS LTD,5811,Catering costs - provisions,149.64,24.94,124.7
Regeneration and Local Services,Direct Services,21234,Catering - Locomotion,Supplies and Services,324117,Provisions,16-Feb-17,000005766338149 - 1,BRAKE BROS LTD,5811,Catering costs - provisions,143,,143
Dedicated Schools Grant,Dedicated Schools Grant,73911,Pupil Premium,Supplies and Services,304403,Equipment and Materials,16-Feb-17,5766338239,Amazon UK Marketplace,5942,Other consumables,41.12,0,41.12
Regeneration and Local Services,Direct Services,10367,C&G - South Grounds Maintenance,Supplies and Services,304259,Equipment and Materials,16-Feb-17,5766338269,JEWSON LTD,5211,Equipment-purchase and rental,391.68,65.28,326.4
Children and Young Peoples Services,Childrens Services,88043,Consett 0 - 5,Supplies and Services,312011,Newspapers Books and Periodicals,16-Feb-17,5766338295,Amazon UK Marketplace,5942,Books-school library,11.95,0,11.95
Resources,I.C.T. Services,69010,Administration,Supplies and Services,312011,Newspapers Books and Periodicals,16-Feb-17,5766338311,Amazon UK Marketplace,5942,Books-school library,237.87,0,237.87
Resources,I.C.T. Services,69010,Administration,Third Party Payments,430100,Rendered by Private Contractors,16-Feb-17,5766338317,WWW.PUBLICPOLICYEXCHAN,7399,Payments to sub-contractors,508.8,84.8,424
Regeneration and Local Services,Culture & Sport,11215,Museums Heritage & Collections,Supplies and Services,332048,Printing Stationery and Gen Off Exps,16-Feb-17,5766338363,Amazon UK Marketplace,5942,Administrative stationery etc,7.68,0,7.68
Regeneration and Local Services,Culture & Sport,11215,Museums Heritage & Collections,Supplies and Services,332048,Printing Stationery and Gen Off Exps,16-Feb-17,5766338369,Amazon UK Marketplace,5942,Administrative stationery etc,19.16,0,19.16
Regeneration and Local Services,Direct Services,10301,C&G - North Grounds Maintenance,Supplies and Services,304259,Equipment and Materials,16-Feb-17,5766338487,MKM BUILDING SUPPLIES,5211,Equipment-purchase and rental,237.6,39.6,198
Regeneration and Local Services,Direct Services,10301,C&G - North Grounds Maintenance,Supplies and Services,304259,Equipment and Materials,16-Feb-17,5766338489,SCREWFIX,5211,Equipment-purchase and rental,344.98,57.5,287.48
Regeneration and Local Services,Culture & Sport,11086,Positive Futures,Supplies and Services,324117,Provisions,16-Feb-17,5766338521,ASDA STORES LTD,5411,Catering costs - provisions,5,0,5
Regeneration and Local Services,Culture & Sport,11086,Positive Futures,Supplies and Services,324117,Provisions,16-Feb-17,5766338525,ASDA STORES LTD,5411,Catering costs - provisions,3.02,0,3.02
Children and Young Peoples Services,Childrens Services,88083,Ferryhill 0 - 5,Supplies and Services,324117,Provisions,16-Feb-17,5766338533,SAINSBURYS 0776,5411,Catering costs - provisions,9.25,0,9.25
Regeneration and Local Services,Culture & Sport,10605,Woodhouse Close Leisure Complex,Supplies and Services,324117,Provisions,16-Feb-17,5766338603,BRAKE BROS LTD,5811,Catering costs - provisions,48.6,8.1,40.5
Regeneration and Local Services,Culture & Sport,10605,Woodhouse Close Leisure Complex,Supplies and Services,324117,Provisions,16-Feb-17,000005766338603 - 1,BRAKE BROS LTD,5811,Catering costs - provisions,106.09,,106.09
Regeneration and Local Services,Economic Development and Housing,30705,Visit County Durham,Supplies and Services,312011,Newspapers Books and Periodicals,16-Feb-17,5766338617,Amazon UK Marketplace,5942,Books-school library,7.95,0,7.95
Regeneration and Local Services,Spatial Policy Planning Assets & Environment,31200,North Pennines Core,Supplies and Services,312011,Newspapers Books and Periodicals,16-Feb-17,5766338653,123-REG.CO.UK,4816,Books-school library,57.53,0,57.53
Regeneration and Local Services,Economic Development and Housing,30737,Durham Works Flexible Fund,Supplies and Services,328041,Clothing Uniforms and Laundry,16-Feb-17,5771532983,NEW LOOK INTERNET,5621,Clothing uniforms and laundry,49.98,0,49.98
Resources,I.C.T. Services,69010,Administration,Supplies and Services,324117,Provisions,16-Feb-17,5771533411,LIGHT/MINI IN THE BOX,5399,Catering costs - provisions,141.83,0,141.83
Children and Young Peoples Services,Childrens Services,85352,Tow Law CU,Supplies and Services,352001,Conference Expenses,16-Feb-17,5766338177,"CENTER PARCS, INHOUSE",7011,Conferencesseminars fees etc,386.58,0,386.58
Regeneration and Local Services,Economic Development and Housing,30699,Business Growth and Innovation General,Supplies and Services,336005,Advertising,17-Feb-17,5766337943,ADROLL,7311,Advertising other than for staff,0.04,0,0.04
Children and Young Peoples Services,Education,71801,Selby Cottage Childcare Centre,Supplies and Services,328041,Clothing Uniforms and Laundry,17-Feb-17,5771532853,B&M RETAIL LTD,5310,Clothing uniforms and laundry,4.74,0,4.74
Regeneration and Local Services,Economic Development and Housing,31500,Housing Solutions - Core Team,Supplies and Services,352001,Conference Expenses,17-Feb-17,5771532873,TRAVELODGE,3615,Conferencesseminars fees etc,161,0,161
Regeneration and Local Services,Economic Development and Housing,30699,Business Growth and Innovation General,Supplies and Services,304999,Equipment and Materials,17-Feb-17,5771532917,PatentInspirationEU,5817,Misc equipment tools and materials,84.48,0,84.48
Resources,Financial Services,65180,Collections,Supplies and Services,338045,Services,17-Feb-17,5771532943,WWW.MONEYCLAIM.GOV,9399,Legal expenses,105,0,105
Resources,Financial Services,65180,Collections,Supplies and Services,338045,Services,17-Feb-17,5771532947,WWW.MONEYCLAIM.GOV,9399,Legal expenses,105,0,105
Regeneration and Local Services,Direct Services,21242,Catering - County Hall,Supplies and Services,324117,Provisions,17-Feb-17,5771532989,JR HOLLAND FOODSERVICE,5422,Catering costs - provisions,86.53,0,86.53
Regeneration and Local Services,Direct Services,21242,Catering - County Hall,Supplies and Services,324117,Provisions,17-Feb-17,5771532993,JR HOLLAND FOODSERVICE,5422,Catering costs - provisions,13.16,0,13.16
Children and Young Peoples Services,Education,70169,Durham SSP,Supplies and Services,384199,Miscellaneous Expenses,17-Feb-17,5771533001,Amazon UK Marketplace,5942,Other hired and contracted services,87.96,0,87.96
Regeneration and Local Services,Culture & Sport,11219,Office Services,Supplies and Services,384999,Miscellaneous Expenses,17-Feb-17,5771533037,DISPLAYSENSE.CO.UK,5046,Other expenses,596.6,0,596.6
Regeneration and Local Services,Culture & Sport,11219,Office Services,Supplies and Services,332047,Printing Stationery and Gen Off Exps,17-Feb-17,5771533041,CV1NEXTDAYSDISPLAY,5943,Stationery,158.21,0,158.21
Children and Young Peoples Services,Education,71732,Dean Bank Childcare,Supplies and Services,328041,Clothing Uniforms and Laundry,17-Feb-17,5771533061,B&M RETAIL LTD,5310,Clothing uniforms and laundry,32.62,0,32.62
Children and Young Peoples Services,Education,71732,Dean Bank Childcare,Supplies and Services,324117,Provisions,17-Feb-17,5771533065,CO-OP GROUP 010518,5411,Catering costs - provisions,7.67,0,7.67
Regeneration and Local Services,Culture & Sport,54813,Gala Theatre - Technical,Supplies and Services,304403,Equipment and Materials,17-Feb-17,5771533071,AMAZON UK RETAIL AMAZO,5999,Other consumables,12.48,0,12.48
Children and Young Peoples Services,Childrens Services,71445,Chester le Street One Point Hub,Supplies and Services,304259,Equipment and Materials,17-Feb-17,5771533117,DVLA DRIVER ONLINE,9399,Equipment-purchase and rental,34,0,34
Children and Young Peoples Services,Childrens Services,85957,Secure Management,Supplies and Services,328041,Clothing Uniforms and Laundry,17-Feb-17,5771533125,gethelabel.com,5651,Clothing uniforms and laundry,68.92,0,68.92
Children and Young Peoples Services,Childrens Services,85957,Secure Management,Supplies and Services,324117,Provisions,17-Feb-17,5771533129,TESCO STORES 6329,5411,Catering costs - provisions,65.53,0,65.53
Children and Young Peoples Services,Childrens Services,85957,Secure Management,Supplies and Services,328041,Clothing Uniforms and Laundry,17-Feb-17,5771533131,SPORTSDIRECT.COM,5941,Clothing uniforms and laundry,28.99,0,28.99
Regeneration and Local Services,Culture & Sport,26591,Hardwick Park,Supplies and Services,304259,Equipment and Materials,17-Feb-17,5771533137,SCREWFIX,5211,Equipment-purchase and rental,54.81,9.14,45.67
Regeneration and Local Services,Culture & Sport,11060,Hardwick Park Catering,Supplies and Services,324117,Provisions,17-Feb-17,5771533145,JR HOLLAND FOODSERVICE,5422,Catering costs - provisions,29.24,0,29.24
Regeneration and Local Services,Culture & Sport,11060,Hardwick Park Catering,Supplies and Services,324117,Provisions,17-Feb-17,5771533149,BRAKE BROS LTD,5811,Catering costs - provisions,207.66,34.61,173.05
Regeneration and Local Services,Culture & Sport,11060,Hardwick Park Catering,Supplies and Services,324117,Provisions,17-Feb-17,000005771533149 - 1,BRAKE BROS LTD,5811,Catering costs - provisions,261.21,,261.21
Regeneration and Local Services,Culture & Sport,11060,Hardwick Park Catering,Supplies and Services,324117,Provisions,17-Feb-17,5771533157,BRAKE BROS LTD,5811,Catering costs - provisions,86.64,0,86.64
Resources,I.C.T. Services,65335,Operations - System & Repairs Trading,Supplies and Services,304639,Equipment and Materials,17-Feb-17,5771533165,PROMETHEAN LTD,5722,Technicians-supplies,133.81,22.3,111.51
Resources,I.C.T. Services,65335,Operations - System & Repairs Trading,Supplies and Services,304639,Equipment and Materials,17-Feb-17,5771533167,Amazon UK Marketplace,5942,Technicians-supplies,16.05,0,16.05
Resources,I.C.T. Services,70204,Operations - System & Repairs Team,Supplies and Services,304639,Equipment and Materials,17-Feb-17,5771533169,PAYPAL RAPIDSPARES,5732,Technicians-supplies,8.29,0,8.29
Regeneration and Local Services,Direct Services,21234,Catering - Locomotion,Supplies and Services,324117,Provisions,17-Feb-17,5771533205,BRAKE BROS LTD,5811,Catering costs - provisions,48.66,8.11,40.55
Regeneration and Local Services,Direct Services,21234,Catering - Locomotion,Supplies and Services,324117,Provisions,17-Feb-17,000005771533205 - 1,BRAKE BROS LTD,5811,Catering costs - provisions,228.43,,228.43
Regeneration and Local Services,Direct Services,10525,Catering - Green Lane,Supplies and Services,324117,Provisions,17-Feb-17,5771533235,JR HOLLAND FOODSERVICE,5422,Catering costs - provisions,83.66,0,83.66
Children and Young Peoples Services,Childrens Services,85352,Tow Law CU,Supplies and Services,324117,Provisions,17-Feb-17,5771533247,TESCO STORES 2371,5411,Catering costs - provisions,244.49,0,244.49
Children and Young Peoples Services,Childrens Services,88063,Bishop Auckland 0 - 5,Supplies and Services,324117,Provisions,17-Feb-17,5771533279,WM MORRISON 040,5411,Catering costs - provisions,23.01,0,23.01
Regeneration and Local Services,Direct Services,10367,C&G - South Grounds Maintenance,Supplies and Services,304221,Equipment and Materials,17-Feb-17,5771533315,CORNFORTH INDUSTRIAL S,5085,Direct materials,144,24,120
Regeneration and Local Services,Direct Services,10913,Bldg Serv - Construction General,Supplies and Services,384999,Miscellaneous Expenses,17-Feb-17,5771533343,CONSIDERATE CONSTR,8699,Other expenses,654,109,545
Regeneration and Local Services,Direct Services,10913,Bldg Serv - Construction General,Supplies and Services,384999,Miscellaneous Expenses,17-Feb-17,5771533349,CONSIDERATE CONSTR,8699,Other expenses,654,109,545
Children and Young Peoples Services,Childrens Services,85333,Coxhoe Satelite Home,Supplies and Services,324117,Provisions,17-Feb-17,5771533355,TESCO STORES 2371,5411,Catering costs - provisions,117.28,0,117.28
Children and Young Peoples Services,Childrens Services,85333,Coxhoe Satelite Home,Supplies and Services,324117,Provisions,17-Feb-17,5771533359,TESCO STORES 2371,5411,Catering costs - provisions,22,0,22
Children and Young Peoples Services,Childrens Services,88043,Consett 0 - 5,Supplies and Services,312011,Newspapers Books and Periodicals,17-Feb-17,5771533399,Amazon UK Marketplace,5942,Books-school library,16.1,0,16.1
Resources,I.C.T. Services,69010,Administration,Supplies and Services,312011,Newspapers Books and Periodicals,17-Feb-17,5771533403,Amazon UK Marketplace,5942,Books-school library,40.65,0,40.65
Resources,I.C.T. Services,69010,Administration,Supplies and Services,332047,Printing Stationery and Gen Off Exps,17-Feb-17,5771533409,WWW.CARTRIDGEPEOPLE.CO,5943,Stationery,7.89,0,7.89
Resources,I.C.T. Services,69010,Administration,Supplies and Services,304403,Equipment and Materials,17-Feb-17,5771533415,AMAZON UK RETAIL AMAZO,5999,Other consumables,29.99,0,29.99
Resources,I.C.T. Services,69010,Administration,Supplies and Services,304259,Equipment and Materials,17-Feb-17,5771533419,WWW.ICO.GOV.UK,9399,Equipment-purchase and rental,35,0,35
Resources,I.C.T. Services,69010,Administration,Supplies and Services,304259,Equipment and Materials,17-Feb-17,5771533423,WWW.ICO.GOV.UK,9399,Equipment-purchase and rental,35,0,35
Resources,I.C.T. Services,69010,Administration,Supplies and Services,304259,Equipment and Materials,17-Feb-17,5771533425,WWW.ICO.GOV.UK,9399,Equipment-purchase and rental,35,0,35
Resources,I.C.T. Services,69010,Administration,Supplies and Services,304259,Equipment and Materials,17-Feb-17,5771533431,WWW.ICO.GOV.UK,9399,Equipment-purchase and rental,35,0,35
Resources,I.C.T. Services,69010,Administration,Supplies and Services,304403,Equipment and Materials,17-Feb-17,5771533433,AMAZON UK RETAIL AMAZO,5999,Other consumables,40.78,0,40.78
Resources,I.C.T. Services,69010,Administration,Supplies and Services,304259,Equipment and Materials,17-Feb-17,5771533437,DISCLOSURE SCOT,9399,Equipment-purchase and rental,25,0,25
Regeneration and Local Services,Culture & Sport,54235,Bp Auckland Town Hall Cafe,Supplies and Services,324117,Provisions,17-Feb-17,5771533513,JR HOLLAND FOODSERVICE,5422,Catering costs - provisions,13.84,0,13.84
Regeneration and Local Services,Culture & Sport,54235,Bp Auckland Town Hall Cafe,Supplies and Services,324117,Provisions,17-Feb-17,5771533515,BRAKE BROS LTD,5811,Catering costs - provisions,53.35,0,53.35
Regeneration and Local Services,Direct Services,21324,Catering - Meadowfield,Supplies and Services,324117,Provisions,17-Feb-17,5771533521,JR HOLLAND FOODSERVICE,5422,Catering costs - provisions,44.18,0,44.18
Regeneration and Local Services,Direct Services,21324,Catering - Meadowfield,Supplies and Services,324117,Provisions,17-Feb-17,5771533529,JR HOLLAND FOODSERVICE,5422,Catering costs - provisions,9.87,0,9.87
Children and Young Peoples Services,Childrens Services,85331,New Lea Childrens Home,Supplies and Services,308011,Furniture,17-Feb-17,5771533599,WORLDSTORES LTD,5719,Furniture repair and replacement,119.98,0,119.98
Children and Young Peoples Services,Childrens Services,85331,New Lea Childrens Home,Supplies and Services,308011,Furniture,17-Feb-17,5771533601,IKEA ONLINE,5719,Furniture repair and replacement,360,0,360
Regeneration and Local Services,Economic Development and Housing,30737,Durham Works Flexible Fund,Transport,235057,Public Transport,17-Feb-17,5771533605,WWW.SIMPLYGO.COM,4131,Staff travelling,89,0,89
Regeneration and Local Services,Direct Services,21235,Catering - Wharton Park,Supplies and Services,324117,Provisions,17-Feb-17,5771533649,JR HOLLAND FOODSERVICE,5422,Catering costs - provisions,33.84,0,33.84
Children and Young Peoples Services,Education,74973,HI Resources Base - Fund,Supplies and Services,304999,Equipment and Materials,17-Feb-17,5771533661,INTERNATIONAL CENTRE F,7991,Misc equipment tools and materials,142,0,142
Regeneration and Local Services,Culture & Sport,26591,Hardwick Park,Supplies and Services,304245,Equipment and Materials,17-Feb-17,5771533673,Amazon UK Marketplace,5942,Materials,3.2,0,3.2
Regeneration and Local Services,Culture & Sport,10605,Woodhouse Close Leisure Complex,Supplies and Services,324117,Provisions,17-Feb-17,5771533681,BRAKE BROS LTD,5811,Catering costs - provisions,117.44,0,117.44
Resources,Corporate Finance,69800,Corporate Procurement,Supplies and Services,384956,Miscellaneous Expenses,17-Feb-17,5771533683,CSS - COMODO GROUP IN,7399,Licences,870.97,0,870.97
Regeneration and Local Services,Economic Development and Housing,30737,Durham Works Flexible Fund,Supplies and Services,328041,Clothing Uniforms and Laundry,17-Feb-17,5771533713,MATALAN,5691,Clothing uniforms and laundry,48.05,0,48.05
Regeneration and Local Services,Direct Services,21242,Catering - County Hall,Supplies and Services,324117,Provisions,17-Feb-17,5778039663,BRAKE BROS LTD,5811,Catering costs - provisions,681.3,113.55,567.75
Regeneration and Local Services,Direct Services,21242,Catering - County Hall,Supplies and Services,324117,Provisions,17-Feb-17,000005778039663 - 1,BRAKE BROS LTD,5811,Catering costs - provisions,373.2,,373.2
Children and Young Peoples Services,Education,76004,Music - Parents Fund,Supplies and Services,384999,Miscellaneous Expenses,18-Feb-17,5771532885,AMAZON UK RETAIL AMAZO,5999,Other expenses,36.74,0,36.74
Children and Young Peoples Services,Childrens Services,85961,Themed Week Activity,Supplies and Services,384871,Miscellaneous Expenses,18-Feb-17,5771532905,Amazon UK Marketplace,5942,Training-other activities,39.92,0,39.92
Regeneration and Local Services,Spatial Policy Planning Assets & Environment,31200,North Pennines Core,Supplies and Services,384999,Miscellaneous Expenses,18-Feb-17,5771533029,HIGH PENNINE ANIMAL FE,5995,Other expenses,40,0,40
Children and Young Peoples Services,Childrens Services,85957,Secure Management,Supplies and Services,324117,Provisions,18-Feb-17,5771533133,TESCO STORES 6329,5411,Catering costs - provisions,128.83,0,128.83
Regeneration and Local Services,Direct Services,21235,Catering - Wharton Park,Supplies and Services,324117,Provisions,18-Feb-17,5771533651,BRAKE BROS LTD,5811,Catering costs - provisions,112.98,18.83,94.15
Regeneration and Local Services,Direct Services,21235,Catering - Wharton Park,Supplies and Services,324117,Provisions,18-Feb-17,000005771533651 - 1,BRAKE BROS LTD,5811,Catering costs - provisions,39.36,,39.36
Regeneration and Local Services,Direct Services,21235,Catering - Wharton Park,Supplies and Services,324117,Provisions,18-Feb-17,5771533655,BRAKE BROS LTD,5811,Catering costs - provisions,106.02,17.67,88.35
Regeneration and Local Services,Direct Services,21235,Catering - Wharton Park,Supplies and Services,324117,Provisions,18-Feb-17,000005771533655 - 1,BRAKE BROS LTD,5811,Catering costs - provisions,15.84,,15.84
Regeneration and Local Services,Culture & Sport,54813,Gala Theatre - Technical,Supplies and Services,332047,Printing Stationery and Gen Off Exps,19-Feb-17,5771533073,J & A (INT) LTD,5111,Stationery,40.74,6.79,33.95
Children and Young Peoples Services,Childrens Services,71445,Chester le Street One Point Hub,Supplies and Services,312011,Newspapers Books and Periodicals,19-Feb-17,5771533119,Amazon EU,5969,Books-school library,23.98,0,23.98
Children and Young Peoples Services,Childrens Services,85333,Coxhoe Satelite Home,Supplies and Services,324117,Provisions,19-Feb-17,5771533361,CO-OP GROUP 310016,5411,Catering costs - provisions,23.67,0,23.67
Resources,Resources Management,69000,Resources Management,Supplies and Services,324117,Provisions,19-Feb-17,5771533371,CO-OP GROUP 310016,5411,Catering costs - provisions,17.63,0,17.63
Regeneration and Local Services,Culture & Sport,54399,Local Delivery-Libraries,Supplies and Services,312011,Newspapers Books and Periodicals,19-Feb-17,5771533459,Amazon UK Marketplace,5942,Books-school library,2.8,0,2.8
Regeneration and Local Services,Economic Development and Housing,30699,Business Growth and Innovation General,Supplies and Services,304999,Equipment and Materials,20-Feb-17,5771532923,PatentInspirationEU,5817,Misc equipment tools and materials,2.32,0,2.32
Regeneration and Local Services,Culture & Sport,11219,Office Services,Supplies and Services,304999,Equipment and Materials,20-Feb-17,5771533043,GOOGLE ADWS2420292471,5968,Misc equipment tools and materials,29.34,0,29.34
Resources,Corporate Finance,69800,Corporate Procurement,Supplies and Services,384956,Miscellaneous Expenses,20-Feb-17,5771533689,CSS - COMODO GROUP IN,7399,Licences,23.95,0,23.95
Children and Young Peoples Services,Education,71801,Selby Cottage Childcare Centre,Supplies and Services,324117,Provisions,20-Feb-17,5778039565,TESCO STORES 2278,5411,Catering costs - provisions,34.72,0,34.72
Children and Young Peoples Services,Education,71801,Selby Cottage Childcare Centre,Supplies and Services,324117,Provisions,20-Feb-17,5778039567,TESCO STORES 2278,5411,Catering costs - provisions,26.5,0,26.5
Regeneration and Local Services,Direct Services,10301,C&G - North Grounds Maintenance,Supplies and Services,304403,Equipment and Materials,20-Feb-17,5778039575,BESCOL,5231,Other consumables,69.02,11.5,57.52
Children and Young Peoples Services,Childrens Services,88093,Newton Aycliffe 0 - 5,Supplies and Services,324117,Provisions,20-Feb-17,5778039579,ASDA HOME SHOPPING,5411,Catering costs - provisions,50.12,0,50.12
Children and Young Peoples Services,Childrens Services,88093,Newton Aycliffe 0 - 5,Supplies and Services,324117,Provisions,20-Feb-17,5778039581,ASDA HOME SHOPPING,5411,Catering costs - provisions,0.07,0,0.07
Regeneration and Local Services,Economic Development and Housing,31500,Housing Solutions - Core Team,Supplies and Services,352001,Conference Expenses,20-Feb-17,5778039583,TRAVELODGE,3615,Conferencesseminars fees etc,46,0,46
Children and Young Peoples Services,Childrens Services,85961,Themed Week Activity,Supplies and Services,384871,Miscellaneous Expenses,20-Feb-17,5778039595,Amazon UK Marketplace,5942,Training-other activities,9.98,0,9.98
Children and Young Peoples Services,Childrens Services,85961,Themed Week Activity,Supplies and Services,384871,Miscellaneous Expenses,20-Feb-17,5778039597,Amazon UK Marketplace,5942,Training-other activities,9.98,0,9.98
Children and Young Peoples Services,Childrens Services,85961,Themed Week Activity,Supplies and Services,384871,Miscellaneous Expenses,20-Feb-17,5778039599,Amazon UK Marketplace,5942,Training-other activities,9.98,0,9.98
Children and Young Peoples Services,Childrens Services,85961,Themed Week Activity,Supplies and Services,384871,Miscellaneous Expenses,20-Feb-17,5778039601,Amazon UK Marketplace,5942,Training-other activities,9.98,0,9.98
Children and Young Peoples Services,Childrens Services,85961,Themed Week Activity,Supplies and Services,312011,Newspapers Books and Periodicals,20-Feb-17,5778039605,Amazon UK Marketplace,5942,Books-school library,9.98,0,9.98
Children and Young Peoples Services,Childrens Services,85961,Themed Week Activity,Supplies and Services,384871,Miscellaneous Expenses,20-Feb-17,5778039607,Amazon UK Marketplace,5942,Training-other activities,9.98,0,9.98
Children and Young Peoples Services,Childrens Services,85961,Themed Week Activity,Supplies and Services,384871,Miscellaneous Expenses,20-Feb-17,5778039609,Amazon UK Marketplace,5942,Training-other activities,9.98,0,9.98
Children and Young Peoples Services,Childrens Services,85961,Themed Week Activity,Supplies and Services,384871,Miscellaneous Expenses,20-Feb-17,5778039611,Amazon UK Marketplace,5942,Training-other activities,9.98,0,9.98
Children and Young Peoples Services,Childrens Services,85957,Secure Management,Supplies and Services,384871,Miscellaneous Expenses,20-Feb-17,5778039615,Amazon UK Marketplace,5942,Training-other activities,9.98,0,9.98
Children and Young Peoples Services,Childrens Services,85961,Themed Week Activity,Supplies and Services,384871,Miscellaneous Expenses,20-Feb-17,5778039617,Amazon UK Marketplace,5942,Training-other activities,9.98,0,9.98
Children and Young Peoples Services,Childrens Services,85957,Secure Management,Supplies and Services,384871,Miscellaneous Expenses,20-Feb-17,5778039619,Amazon UK Marketplace,5942,Training-other activities,9.98,0,9.98
